{"text_format":"1","workbook":"xlsx","n_sheets":8,"sheets":["Benvenuto","SR650_Iper_Convergenza","Lotto3_SR650_1","Lotto3_SR650_2","Altre_Opzioni","Riepilogo_Ordine","ConfigurationTS4L3","Tabella_prezzi"],"not_rendered":{"charts":0,"images":12,"macros":1,"external_links":1,"defined_names":65,"comments":0,"pivot_tables":0},"unopened":[],"bounds":{"document_bytes":16777216,"sheet_cells":100000,"rows_first":2000,"rows_last":500,"rows_between":2000,"halvings":0,"cell_chars":16384,"cell_head_chars":4096},"cells_cut":0,"cells_raw":0,"read":"whole","date_system":"1900"}

{"sheet":"Benvenuto","index":0,"n_rows":8,"n_cols":17,"rows_kept":8,"cut":false,"hidden":false,"merged":[[2,4,42,13],[2,15,2,16],[4,15,4,16],[6,15,6,16]]}
[]
[]
[null,null,null,null,null,null,null,null,null,null,null,null,null,null,null,"LEGENDA"]
[null,null,null,null,null,null,null,null,null,null,null,null,null,null,null,"Campi Non Editabili","Campi Editabili"]
[]
[null,null,null,null,null,null,null,null,null,null,null,null,null,null,null,"Opzioni 20%","Qtà 20%"]
[]
[null,null,null,null,null,null,null,null,null,null,null,null,null,null,null,"Errore nella Selezione","Verifica Positiva"]

{"sheet":"SR650_Iper_Convergenza","index":1,"n_rows":123,"n_cols":30,"rows_kept":123,"cut":false,"hidden":false,"merged":[[112,6,113,6],[115,6,116,6],[122,5,122,8],[123,5,134,8],[80,6,81,6],[82,10,84,11],[83,6,84,6],[88,7,88,8],[94,4,95,4],[94,7,94,8],[35,6,36,6],[35,7,35,10],[38,6,39,6],[38,7,38,10],[41,5,42,5],[41,10,42,10],[18,6,19,6],[1,5,2,5],[3,7,4,7],[5,7,6,7],[9,6,10,6],[15,6,16,6],[3,5,5,5]]}
[]
[null,null,null,null,null,"Convenzione \nTecnologie Server 4 - Lotto 3",null,{"$f":"IF(R111>1,\"ERRORE NELLA CONFIGURAZIONE\",\"\")","v":""},null,null,{"$f":"IF(Riepilogo_Ordine!K98>Riepilogo_Ordine!G98,\"Superata Quota 20%\",\"\")","v":""},null,null,null,null,null,null,null,null,null,null,null,null,null,null,null,null,null,null,"SalvaPDF"]
[null,null,null,null,null,null,null,null,null,null,"Articoli 20% Totali",null,null,null,null,"Check CPU","Check RAM","Check Dischi","Check PCI","Check Win","Check Gar","Check Tot",null,null,null,null,null,null,null,{"$f":"IF(I8>0,1,0)","v":0}]
[null,null,null,null,null,"In questo foglio sono disponibili le configurazioni Iper Convergenti per le macchine ThinkAgile HX e VX, selezionando queste configurazioni si accetta la sostituzione della macchina base con la relativa versione HX o VX",null,{"$f":"IF(V4<>0,\"Cliccare su 'Compila Configurazione'\",\"\")","v":""},"Totale Altre Opzioni",null,{"$f":"Riepilogo_Ordine!K98","v":0},null,null,null,null,{"$f":"IF(I22<>\"\",1,0)","v":0},{"$f":"IF(I25<>\"\",1,0)","v":0},{"$f":"IF(OR(I44<>\"\",I50<>\"\",I52<>\"\",I54<>\"\"),1,0)","v":0},{"$f":"IF(I89<>\"\",1,0)","v":0},{"$f":"IF(I28<>\"\",1,0)","v":0},{"$f":"IF(I116<>\"\",1,0)","v":0},{"$f":"SUM(P4:U4)","v":0}]
[null,null,null,null,null,null,null,null,{"$f":"Altre_Opzioni!H10","v":0},null,"Quota Residua 20 %"]
[null,null,null,null,null,null,null,"Guida alla Convenzione","Totale Configurazione",null,{"$f":"Riepilogo_Ordine!G99","v":0}]
[null,null,null,null,null,{"$f":"IF(Riepilogo_Ordine!P8>0,\"Compilare i Dati nel Foglio Riepilogo per Stampare in PDF\",\"\")","v":"Compilare i Dati nel Foglio Riepilogo per Stampare in PDF"},null,null,{"$f":"IF(H4<>\"\",0,I119+I120)","v":0},null,"Totale Ordine\nIva Esclusa",null,null,null,null,{"$f":"IF(F11=ConfigurationTS4L3!A15,\"NUT1\",IF(F11=ConfigurationTS4L3!A16,\"NUT2\",IF(F11=ConfigurationTS4L3!A17,\"VSAN1\",IF(F11=ConfigurationTS4L3!A18,\"VSAN2\",FALSE))))","v":"NUT1"}]
[null,null,null,null,null,"LENOVO THINKAGILE \nHX/VX",null,"Quantità Server",0,null,{"$f":"Riepilogo_Ordine!K99","v":0}]
[]
[null,null,null,null,null,"Base",null,null,null,null,null,null,null,null,null,null,null,null,"Lenovo ThinkSystem SR650 V2 Server"]
[null,null,null,null,null,"Conversion Kit a sistemi HX (Hybrid)",null,{"$f":"IF($I$8=0,\"\",VLOOKUP(F11,TS4L4_Base,13,FALSE))","v":""},{"$f":"IF($I$8>0,1,\"\")","v":""},null,{"$f":"O11","v":2050.54},null,null,null,{"$f":"VLOOKUP($F$11,TS4L4_Base,10,FALSE)","v":2050.54},null,{"$f":"VLOOKUP($F11,TS4L4_Base,12,FALSE)","v":"L3N01"},null,null,null,null,null,{"$f":"IF(F11=ConfigurationTS4L3!A15,\"NutanixA\",IF(SR650_Iper_Convergenza!F11=ConfigurationTS4L3!A16,\"NutanixB\",IF(SR650_Iper_Convergenza!F11=ConfigurationTS4L3!A17,\"VsanA\",IF(SR650_Iper_Convergenza!F12=ConfigurationTS4L3!F12,\"VsanB\",IF(SR650_Iper_Convergenza!F11=ConfigurationTS4L3!A18,\"VsanC\")))))","v":"NutanixA"}]
[]
[]
[]
[null,null,null,null,null,null,null,null,null,null,null,null,null,null,null,null,null,{"$f":"IF(T11<>\"\",\"vsan\",\"\")","v":""},{"$f":"IF(AND(T15=\"GP1\",F26>512),\"Selezionare RAM Corretta\",\"\")","v":""}]
[null,null,null,null,null,"Chassis Configuration",null,{"$f":"IF($S$88=\"SW\",\"MAX 4 GPU\",IF($S$88=\"DW\",\"MAX 2 GPU\",\"\"))","v":""}]
[null,null,null,null,null,{"$f":"IF(I23=1,VLOOKUP($F$11,TS4L4_Chassis,3,FALSE),VLOOKUP($F$11,TS4L4_Chassis,2,FALSE))","v":"Kit Conversione Nutanix Chassis with Up to 12 x 3.5 Hard Drives for 2CPU Configuration"},null,{"$f":"IF($I$23=1,VLOOKUP($F$11,TS4L4_Chassis,11,FALSE),VLOOKUP($F$11,TS4L4_Chassis,9,FALSE))","v":"TS4L3-KIT-NUTANIX-A"},{"$f":"IF($I$8=0,0,VLOOKUP(F11,TS4L4_Chassis,7,0))","v":0},null,{"$f":"O17+P17","v":0},null,null,null,null,{"$f":"VLOOKUP($F$11,TS4L4_Chassis,10,FALSE)*I17","v":0},{"$f":"IF(I17=0,\"\",(VLOOKUP($F11,TS4L4_Chassis,12,FALSE)))","v":""},null,null,1]
[]
[null,null,null,null,null,"Processor"]
[null,null,null,null,null,{"$f":"IF($W$11=\"NutanixA\",ConfigurationTS4L3!$D$21,IF($W$11=\"NutanixB\",ConfigurationTS4L3!$D$23,IF($W$11=\"VsanA\",ConfigurationTS4L3!$D$23,IF($W$11=\"VsanB\",ConfigurationTS4L3!$D$23,FALSE))))","v":"Intel Xeon Silver 4310 12C 120W 2.1GHz Processor"},null,{"$f":"IF(F20=\"Intel Xeon Silver 4310 12C 120W 2.1GHz Processor\",\"\",IF(I14=1,VLOOKUP($F$20,TS4L4_CPU,13,FALSE),VLOOKUP($F$23,TS4L4_CPU,13,FALSE)))","v":""},{"$f":"IF(F20=\"Intel Xeon Silver 4310 12C 120W 2.1GHz Processor\",0,IF(I14=1,VLOOKUP($F$23,TS4L4_CPU,7,FALSE),VLOOKUP($F$23,TS4L4_CPU,7,FALSE)))","v":0},null,{"$f":"O20+P20","v":0},null,null,null,{"$f":"IF(F20=\"Intel Xeon Silver 4310 12C 120W 2.1GHz Processor\",0,IF(I14=1,VLOOKUP($F$20,TS4L4_CPU,10,FALSE),VLOOKUP($F$23,TS4L4_CPU,10,FALSE)))","v":0},{"$f":"IF(I14=1,VLOOKUP($F$20,TS4L4_CPU,11,FALSE),VLOOKUP($F$23,TS4L4_CPU,11,FALSE))","v":0},{"$f":"IF(F20=\"Intel Xeon Silver 4310 12C 120W 2.1GHz Processor\",0,IF(I14=1,VLOOKUP(F17,TS4L4_CPU,12,FALSE),VLOOKUP($F20,TS4L4_CPU,12,FALSE)))","v":0}]
[]
[null,null,null,null,null,"Additional Processor"]
[null,null,null,null,null,{"$f":"F20","v":"Intel Xeon Silver 4310 12C 120W 2.1GHz Processor"},null,{"$f":"IF(I17=1,VLOOKUP($F$20,TS4L4_CPU,13,FALSE),VLOOKUP($F$23,TS4L4_CPU,13,FALSE))","v":"TS4L3-CPU"},{"$f":"IF(I17=1,VLOOKUP($F$23,TS4L4_CPU,7,FALSE),VLOOKUP($F$23,TS4L4_CPU,7,FALSE))","v":1},null,{"$f":"O23+P23","v":623.57000000000005},null,null,null,{"$f":"IF(I17=1,VLOOKUP($F$20,TS4L4_CPU,10,FALSE),VLOOKUP($F$23,TS4L4_CPU,10,FALSE))","v":623.57000000000005},{"$f":"IF(I17=1,VLOOKUP($F$20,TS4L4_CPU,11,FALSE),VLOOKUP($F$23,TS4L4_CPU,11,FALSE))","v":0},{"$f":"IF(I17=1,VLOOKUP(F20,TS4L4_CPU,12,FALSE),VLOOKUP($F23,TS4L4_CPU,12,FALSE))","v":"L3N02"},null,{"$f":"IF(I23=1,\"Intel Xeon Silver 4310 12C 120W 2.1GHz Processor\",F23)","v":"Intel Xeon Silver 4310 12C 120W 2.1GHz Processor"}]
[]
[null,null,null,null,null,"Memory Capacity (GB)"]
[null,null,null,null,null,512,null,"TS4L3-RAM32",{"$f":"IF(I25<>\"\",0,T26)","v":14},null,{"$f":"O26","v":3126.34},null,null,null,{"$f":"U26","v":3126.34},null,{"$f":"IF(I25<>\"\",0,V26)","v":"L3N03"},null,{"$f":"IF(I25<>\"\",0,IF(AND(H26=\"TS4L3-RAM32\",I23=\"\"),VLOOKUP($F$26,TS4L3_RAM1CPU32GB,13,FALSE),IF(AND(H26=\"TS4L3-RAM32\",I23=1),VLOOKUP($F$26,TS4L3_RAM2CPU32GB,13,FALSE),IF(AND(H26=\"TS4L3-RAM64\",I23=\"\"),VLOOKUP($F$26,TS4L3_RAM1CPU64GB,13,FALSE),IF(AND(H26=\"TS4L3-RAM64\",I23=1),VLOOKUP($F$26,TS4L3_RAM2CPU64GB,13,FALSE),\"\")))))","v":"TS4L3-RAM32"},{"$f":"IF(AND(H26=\"TS4L3-RAM32\",I23=\"\"),VLOOKUP($F$26,TS4L3_RAM1CPU32GB,7,FALSE),IF(AND(H26=\"TS4L3-RAM32\",I23=1),VLOOKUP($F$26,TS4L3_RAM2CPU32GB,7,FALSE),IF(AND(H26=\"TS4L3-RAM64\",I23=\"\"),VLOOKUP($F$26,TS4L3_RAM1CPU64GB,7,FALSE),IF(AND(H26=\"TS4L3-RAM64\",I23=1),VLOOKUP($F$26,TS4L3_RAM2CPU64GB,7,FALSE),\"\"))))","v":14},{"$f":"IF(I25<>\"\",0,IF(AND(H26=\"TS4L3-RAM32\",I23=\"\"),VLOOKUP($F$26,TS4L3_RAM1CPU32GB,10,FALSE),IF(AND(H26=\"TS4L3-RAM32\",I23=1),VLOOKUP($F$26,TS4L3_RAM2CPU32GB,10,FALSE),IF(AND(H26=\"TS4L3-RAM64\",I23=\"\"),VLOOKUP($F$26,TS4L3_RAM1CPU64GB,10,FALSE),IF(AND(H26=\"TS4L3-RAM64\",I23=1),VLOOKUP($F$26,TS4L3_RAM2CPU64GB,10,FALSE),\"\")))))","v":3126.34},{"$f":"IF(I25<>\"\",0,IF(AND(H26=\"TS4L3-RAM32\",I23=\"\"),VLOOKUP($F$26,TS4L3_RAM1CPU32GB,12,FALSE),IF(AND(H26=\"TS4L3-RAM32\",I23=1),VLOOKUP($F$26,TS4L3_RAM2CPU32GB,12,FALSE),IF(AND(H26=\"TS4L3-RAM64\",I23=\"\"),VLOOKUP($F$26,TS4L3_RAM1CPU64GB,12,FALSE),IF(AND(H26=\"TS4L3-RAM64\",I23=1),VLOOKUP($F$26,TS4L3_RAM2CPU64GB,12,FALSE),\"\")))))","v":"L3N03"}]
[]
[null,null,null,null,null,"Operating System STANDARD"]
[null,null,null,null,null,"No Operating System",null,{"$f":"VLOOKUP($F$29,TS4L3_OS,13,FALSE)","v":""},0,null,{"$f":"O29","v":0},null,null,null,{"$f":"VLOOKUP($F$29,TS4L3_OS,10,FALSE)*I29","v":0},{"$f":"VLOOKUP($F$29,TS4L3_OS,11,FALSE)","v":0},{"$f":"VLOOKUP($F29,TS4L3_OS,12,FALSE)","v":""},null,{"$f":"IF(AND(F23=\"No Additional Processor\",I29>=3),TRUE,FALSE)","v":false}]
[null,null,null,null,null,"Windows Server 2022 Standard Edition, Add License,2CORE",null,{"$f":"VLOOKUP($F$30,TS4L3_OS,13,FALSE)","v":"TS4L3-WINSRV2C"},0,null,{"$f":"O30","v":0},null,null,null,{"$f":"VLOOKUP($F$30,TS4L3_OS,10,FALSE)*I30","v":0},{"$f":"VLOOKUP($F$29,TS4L3_OS,11,FALSE)","v":0},{"$f":"VLOOKUP($F30,TS4L3_OS,12,FALSE)","v":"L3N21"},null,{"$f":"IF(AND(F23<>\"No Additional Processor\",I29>=3),TRUE,FALSE)","v":false}]
[]
[null,null,null,null,null,"Operating System Device CAL / User CAL"]
[null,null,null,null,null,"1-pack of Windows Server 2022/2019 Device CALs (STD or DC)",null,{"$f":"VLOOKUP($F$33,TS4L3_OS,13,FALSE)","v":"TS4L3-WINDEVCAL"},0,null,{"$f":"O33","v":0},null,null,null,{"$f":"VLOOKUP($F$33,TS4L3_OS,10,FALSE)*I33","v":0},{"$f":"VLOOKUP($F$29,TS4L3_OS,11,FALSE)","v":0},{"$f":"VLOOKUP($F33,TS4L3_OS,12,FALSE)","v":"L3N19"}]
[null,null,null,null,null,"1-pack of Windows Server 2022/2019 User CALs (STD or DC)",null,{"$f":"VLOOKUP($F$34,TS4L3_OS,13,FALSE)","v":"TS4L3-WINUSRCAL"},0,null,{"$f":"O34","v":0},null,null,null,{"$f":"VLOOKUP($F$34,TS4L3_OS,10,FALSE)*I34","v":0},{"$f":"VLOOKUP($F$29,TS4L3_OS,11,FALSE)","v":0},{"$f":"VLOOKUP($F34,TS4L3_OS,12,FALSE)","v":"L3N20"}]
[]
[null,null,null,null,null,"Disk Controller"]
[null,null,null,null,null,"Solution Certified SAS HBA",null,null,null,null,null,null,null,null,null,null,{"$f":"IF(I17=1,\"\",VLOOKUP($F37,TS4L4_CRTL,12,FALSE))","v":{"$error":"#N/A"}},null,{"$f":"IF(F11=\"PowerEdge R7525 Server (vSAN Ready)\",\"Vsan\",\"\")","v":""}]
[]
[null,null,null,null,null,"Abilitazione RAID su dischi NVMe"]
[null,null,null,null,null,"2 x Boot Disks in RAID 1",null,null,null,null,null,null,null,null,null,null,null,null,{"$f":"IF(F17=\"PowerEdge R7525 Server (vSAN Ready)\",\"Vsan\",\"\")","v":""}]
[]
[null,null,null,null,null,"Hard Drivers Bays n° 12 + 2 Dischi nVME di Boot",null,"Usati","Disponibili",null,{"$f":"IF(I43<0,\"Troppi Dischi\",\"\")","v":""}]
[null,null,null,null,null,null,null,{"$f":"SUM(I45:I79)","v":12},{"$f":"12-H43","v":0}]
[]
[null,null,null,null,null,{"$f":"ConfigurationTS4L3!A70","v":" 8TB 7.2K SAS 12Gb Hot Swap 512e HDD"},null,{"$f":"VLOOKUP($F45,TS4L4_HDD,13,FALSE)","v":"TS4L3-HDD8TB"},0,null,{"$f":"O45","v":0},null,null,null,{"$f":"IF(K42<>\"\",0,VLOOKUP($F45,TS4L4_HDD,10,FALSE))*I45","v":0},{"$f":"VLOOKUP($F45,TS4L4_HDD,11,FALSE)","v":0},{"$f":"IF(K42<>\"\",\"\",VLOOKUP($F45,TS4L4_HDD,12,FALSE))","v":"L3N11"}]
[]
[null,null,null,null,null,{"$f":"ConfigurationTS4L3!A71","v":"2TB 7.2K SAS 12Gb Hot Swap 512n HDD"},null,{"$f":"VLOOKUP($F47,TS4L4_HDD,13,FALSE)","v":"TS4L3-HDD2TB"},0,null,{"$f":"O47","v":0},null,null,null,{"$f":"IF(K42<>\"\",0,VLOOKUP($F47,TS4L4_HDD,10,FALSE))*I47","v":0},{"$f":"VLOOKUP($F47,TS4L4_HDD,11,FALSE)","v":0},{"$f":"IF(K42<>\"\",\"\",VLOOKUP($F47,TS4L4_HDD,12,FALSE))","v":"L3N12"}]
[]
[null,null,null,null,null,{"$f":"ConfigurationTS4L3!A72","v":"1TB 7.2K SAS 12Gb Hot Swap 512n HDD"},null,{"$f":"VLOOKUP($F49,TS4L4_HDD,13,FALSE)","v":"TS4L3-HDD1TB"},0,null,{"$f":"O49","v":0},null,null,null,{"$f":"IF(K42<>\"\",0,VLOOKUP($F49,TS4L4_HDD,10,FALSE))*I49","v":0},{"$f":"VLOOKUP($F49,TS4L4_HDD,11,FALSE)","v":0},{"$f":"IF(K42<>\"\",\"\",VLOOKUP($F49,TS4L4_HDD,12,FALSE))","v":"L3N13"}]
[null,null,null,null,null,null,null,null,{"$f":"IF(AND(I51<>8,P7=\"NUT1\"),\"‼\",IF(AND(I51<>0,P7=\"NUT2\"),\"‼\",IF(AND(I51<>0,P7=\"VSAN1\"),\"‼\",IF(AND(I51<>0,P7=\"VSAN2\"),\"‼\",\"\"))))","v":""}]
[null,null,null,null,null,{"$f":"ConfigurationTS4L3!A73","v":"12TB 7.2K SAS 12Gb Hot Swap 512e HDD"},null,{"$f":"VLOOKUP($F51,TS4L4_HDD,13,FALSE)","v":"TS4L3-HDD12TB"},8,null,{"$f":"O51","v":2468.88},null,null,null,{"$f":"IF(K42<>\"\",0,VLOOKUP($F51,TS4L4_HDD,10,FALSE))*I51","v":2468.88},{"$f":"VLOOKUP($F51,TS4L4_HDD,11,FALSE)","v":0},{"$f":"IF(K42<>\"\",\"\",VLOOKUP($F51,TS4L4_HDD,12,FALSE))","v":"L3N14"}]
[null,null,null,null,null,null,null,null,{"$f":"IF(AND(I53<>4,P7=\"NUT1\"),\"‼\",IF(AND(I53<>12,P7=\"NUT2\"),\"‼\",IF(AND(I53<>0,P7=\"VSAN1\"),\"‼\",IF(AND(I53<>9,P7=\"VSAN2\"),\"‼\",\"\"))))","v":""}]
[null,null,null,null,null,{"$f":"ConfigurationTS4L3!A74","v":"PM1643a 3.84TB Entry SAS 12Gb Hot Swap SSD"},null,{"$f":"VLOOKUP($F53,TS4L4_HDD,13,FALSE)","v":"TS4L3-SSD-RI3,8TB"},4,null,{"$f":"O53","v":4444},null,null,null,{"$f":"IF(K42<>\"\",0,VLOOKUP($F53,TS4L4_HDD,10,FALSE))*I53","v":4444},{"$f":"VLOOKUP($F53,TS4L4_HDD,11,FALSE)","v":0},{"$f":"IF(K42<>\"\",\"\",VLOOKUP($F53,TS4L4_HDD,12,FALSE))","v":"L3N26"}]
[null,null,null,null,null,null,null,null,{"$f":"IF(AND(I55<>0,P7=\"NUT1\"),\"‼\",IF(AND(I55<>0,P7=\"NUT2\"),\"‼\",IF(AND(I55<>3,P7=\"VSAN1\"),\"‼\",IF(AND(I55<>3,P7=\"VSAN2\"),\"‼\",\"\"))))","v":""}]
[null,null,null,null,null,{"$f":"ConfigurationTS4L3!A75","v":"PM1645a 1.6TB Mainstream SAS 12Gb Hot Swap SSD"},null,{"$f":"VLOOKUP($F55,TS4L4_HDD,13,FALSE)","v":"TS4L3-SSD-RI1,6TB"},0,null,{"$f":"O55","v":0},null,null,null,{"$f":"IF(K42<>\"\",0,VLOOKUP($F55,TS4L4_HDD,10,FALSE))*I55","v":0},{"$f":"VLOOKUP($F55,TS4L4_HDD,11,FALSE)*I55","v":0},{"$f":"IF(K42<>\"\",\"\",VLOOKUP($F55,TS4L4_HDD,12,FALSE))","v":"L3N27"}]
[]
[null,null,null,null,null,{"$f":"ConfigurationTS4L3!A76","v":"ThinkSystem   3.2TB Mixed Use SAS 24Gb HS SSD"},null,{"$f":"VLOOKUP($F57,TS4L4_HDD,13,FALSE)","v":"TS4L3-SSDSAS3.2TBMU"},0,null,{"$f":"O57","v":0},null,null,null,{"$f":"IF($K$42<>\"\",0,VLOOKUP($F57,TS4L4_HDD,10,FALSE))*I57","v":0},{"$f":"VLOOKUP($F57,TS4L4_HDD,11,FALSE)","v":0},{"$f":"IF($K$42<>\"\",\"\",VLOOKUP($F57,TS4L4_HDD,12,FALSE))","v":"L3N54"}]
[]
[null,null,null,null,null,{"$f":"ConfigurationTS4L3!A77","v":"ThinkSystem  6.4TB Mixed Use SAS 24Gb HS SSD"},null,{"$f":"VLOOKUP($F59,TS4L4_HDD,13,FALSE)","v":"TS4L3-SSDSAS6.4TBMU"},0,null,{"$f":"O59","v":0},null,null,null,{"$f":"IF($K$42<>\"\",0,VLOOKUP($F59,TS4L4_HDD,10,FALSE))*I59","v":0},{"$f":"VLOOKUP($F59,TS4L4_HDD,11,FALSE)","v":0},{"$f":"IF($K$42<>\"\",\"\",VLOOKUP($F59,TS4L4_HDD,12,FALSE))","v":"L3N55"}]
[]
[null,null,null,null,null,{"$f":"ConfigurationTS4L3!A78","v":"ThinkSystem 7.68TB Read Intensive SAS 24Gb HS SSD"},null,{"$f":"VLOOKUP($F61,TS4L4_HDD,13,FALSE)","v":"TS4L3-SSDSAS7.68TBRI"},0,null,{"$f":"O61","v":0},null,null,null,{"$f":"IF($K$42<>\"\",0,VLOOKUP($F61,TS4L4_HDD,10,FALSE))*I61","v":0},{"$f":"VLOOKUP($F61,TS4L4_HDD,11,FALSE)","v":0},{"$f":"IF($K$42<>\"\",\"\",VLOOKUP($F61,TS4L4_HDD,12,FALSE))","v":"L3N56"}]
[]
[null,null,null,null,null,{"$f":"ConfigurationTS4L3!A79","v":"ThinkSystem  15.36TB Read Intensive SAS 24Gb HS SSD"},null,{"$f":"VLOOKUP($F63,TS4L4_HDD,13,FALSE)","v":"TS4L3-SSDSAS15.36TBRI"},0,null,{"$f":"O63","v":0},null,null,null,{"$f":"IF($K$42<>\"\",0,VLOOKUP($F63,TS4L4_HDD,10,FALSE))*I63","v":0},{"$f":"VLOOKUP($F63,TS4L4_HDD,11,FALSE)","v":0},{"$f":"IF($K$42<>\"\",\"\",VLOOKUP($F63,TS4L4_HDD,12,FALSE))","v":"L3N57"}]
[]
[null,null,null,null,null,{"$f":"ConfigurationTS4L3!A80","v":"ThinkSystem  3.84TB Read Intensive SATA 6Gb HS SSD"},null,{"$f":"VLOOKUP($F65,TS4L4_HDD,13,FALSE)","v":"TS4L3-SSDSATA3.84TBRI"},0,null,{"$f":"O65","v":0},null,null,null,{"$f":"IF($K$42<>\"\",0,VLOOKUP($F65,TS4L4_HDD,10,FALSE))*I65","v":0},{"$f":"VLOOKUP($F65,TS4L4_HDD,11,FALSE)","v":0},{"$f":"IF($K$42<>\"\",\"\",VLOOKUP($F65,TS4L4_HDD,12,FALSE))","v":"L3N58"}]
[]
[null,null,null,null,null,{"$f":"ConfigurationTS4L3!A81","v":"ThinkSystem   7.68TB Read Intensive SATA 6Gb HS SSD"},null,{"$f":"VLOOKUP($F67,TS4L4_HDD,13,FALSE)","v":"TS4L3-SSDSATA7.68TBRI"},0,null,{"$f":"O67","v":0},null,null,null,{"$f":"IF($K$42<>\"\",0,VLOOKUP($F67,TS4L4_HDD,10,FALSE))*I67","v":0},{"$f":"VLOOKUP($F67,TS4L4_HDD,11,FALSE)*I67","v":0},{"$f":"IF($K$42<>\"\",\"\",VLOOKUP($F67,TS4L4_HDD,12,FALSE))","v":"L3N59"}]
[]
[null,null,null,null,null,{"$f":"ConfigurationTS4L3!A82","v":"ThinkSystem 20TB 7.2K SAS 12Gb Hot Swap 512e HDD"},null,{"$f":"VLOOKUP($F69,TS4L4_HDD,13,FALSE)","v":"TS4L3-HDD_SAS20TB_HW"},0,null,{"$f":"O69","v":0},null,null,null,{"$f":"IF($K$42<>\"\",0,VLOOKUP($F69,TS4L4_HDD,10,FALSE))*I69","v":0},{"$f":"VLOOKUP($F69,TS4L4_HDD,11,FALSE)","v":0},{"$f":"IF($K$42<>\"\",\"\",VLOOKUP($F69,TS4L4_HDD,12,FALSE))","v":"L3N60"}]
[]
[null,null,null,null,null,{"$f":"ConfigurationTS4L3!A83","v":"ThinkSystem 16TB 7.2K SATA 6Gb Hot Swap 512e HDD"},null,{"$f":"VLOOKUP($F71,TS4L4_HDD,13,FALSE)","v":"TS4L3-HDD_SATA16TB_HW"},0,null,{"$f":"O71","v":0},null,null,null,{"$f":"IF($K$42<>\"\",0,VLOOKUP($F71,TS4L4_HDD,10,FALSE))*I71","v":0},{"$f":"VLOOKUP($F71,TS4L4_HDD,11,FALSE)","v":0},{"$f":"IF($K$42<>\"\",\"\",VLOOKUP($F71,TS4L4_HDD,12,FALSE))","v":"L3N61"}]
[]
[null,null,null,null,null,{"$f":"ConfigurationTS4L3!A84","v":"ThinkSystem 3.5\" 16TB 7.2K SAS 12Gb Hot Swap 512e HDD"},null,{"$f":"VLOOKUP($F73,TS4L4_HDD,13,FALSE)","v":"TS4L3-HDD_SAS16TB_HW"},0,null,{"$f":"O73","v":0},null,null,null,{"$f":"IF($K$42<>\"\",0,VLOOKUP($F73,TS4L4_HDD,10,FALSE))*I73","v":0},{"$f":"VLOOKUP($F73,TS4L4_HDD,11,FALSE)","v":0},{"$f":"IF($K$42<>\"\",\"\",VLOOKUP($F73,TS4L4_HDD,12,FALSE))","v":"L3N62"}]
[]
[null,null,null,null,null,{"$f":"ConfigurationTS4L3!A85","v":"ThinkSystem 3.5\"  800GB Write Intensive SAS 12Gb HS SSD"},null,{"$f":"VLOOKUP($F75,TS4L4_HDD,13,FALSE)","v":"TS4L3-SSD_SAS800GB_WI"},0,null,{"$f":"O75","v":0},null,null,null,{"$f":"IF($K$42<>\"\",0,VLOOKUP($F75,TS4L4_HDD,10,FALSE))*I75","v":0},{"$f":"VLOOKUP($F75,TS4L4_HDD,11,FALSE)","v":0},{"$f":"IF($K$42<>\"\",\"\",VLOOKUP($F75,TS4L4_HDD,12,FALSE))","v":"L3N63"}]
[]
[null,null,null,null,null,{"$f":"ConfigurationTS4L3!A86","v":"ThinkSystem 3.5\"  1.6TB Write Intensive SAS 12Gb HS SSD"},null,{"$f":"VLOOKUP($F77,TS4L4_HDD,13,FALSE)","v":"TS4L3-SSD_SAS1.6TB_WI"},0,null,{"$f":"O77","v":0},null,null,null,{"$f":"IF($K$42<>\"\",0,VLOOKUP($F77,TS4L4_HDD,10,FALSE))*I77","v":0},{"$f":"VLOOKUP($F77,TS4L4_HDD,11,FALSE)","v":0},{"$f":"IF($K$42<>\"\",\"\",VLOOKUP($F77,TS4L4_HDD,12,FALSE))","v":"L3N64"}]
[]
[null,null,null,null,null,{"$f":"ConfigurationTS4L3!A87","v":"ThinkSystem 3.5\"  3.2TB Write Intensive SAS 12Gb HS SSD"},null,{"$f":"VLOOKUP($F79,TS4L4_HDD,13,FALSE)","v":"TS4L3-SSD_SAS3.2TB_WI"},0,null,{"$f":"O79","v":0},null,null,null,{"$f":"IF($K$42<>\"\",0,VLOOKUP($F79,TS4L4_HDD,10,FALSE))*I79","v":0},{"$f":"VLOOKUP($F79,TS4L4_HDD,11,FALSE)*I79","v":0},{"$f":"IF($K$42<>\"\",\"\",VLOOKUP($F79,TS4L4_HDD,12,FALSE))","v":"L3N65"}]
[]
[null,null,null,null,null,"Power Supply",{"$f":"IF(K81=\"\",\"\",R82)","v":""}]
[null,null,null,null,null,"2 x 1800W (230V) Hot-Swap Power Supply"]
[]
[null,null,null,null,null,"Embedded Systems Management"]
[null,null,null,null,null,"Xclarity Controller Enterpise"]
[]
[]
[]
[null,null,null,null,null,"PCI Slot 1 Processor 1 x16 PCIe Gen4 for HL/FH"]
[null,null,null,null,null,"Broadcom 57416 10GBASE-T 2-Port PCIe Ethernet Adapter",null,{"$f":"VLOOKUP($F90,TS4L3_PCI,13,)","v":"TS4L3-BaseT"},{"$f":"VLOOKUP($F90,TS4L3_PCI,7,FALSE)","v":1},null,{"$f":"O90+P90","v":213.16},null,null,null,{"$f":"VLOOKUP($F90,TS4L3_PCI,10,FALSE)","v":213.16},{"$f":"VLOOKUP($F90,TS4L3_PCI,11,FALSE)","v":0},{"$f":"VLOOKUP($F90,TS4L3_PCI,12,FALSE)","v":"L3N09"}]
[]
[null,null,null,null,null,"PCI Slot 2 Processor 1 x8 PCIe Gen4 for HL/FH"]
[null,null,null,null,null,"Broadcom 57416 10GBASE-T 2-Port PCIe Ethernet Adapter",null,{"$f":"VLOOKUP($F93,TS4L3_PCI,13,FALSE)","v":"TS4L3-BaseT"},{"$f":"VLOOKUP($F93,TS4L3_PCI,7,FALSE)","v":1},null,{"$f":"O93+P93","v":213.16},null,null,null,{"$f":"VLOOKUP($F93,TS4L3_PCI,10,FALSE)","v":213.16},{"$f":"VLOOKUP($F93,TS4L3_PCI,11,FALSE)","v":0},{"$f":"VLOOKUP($F93,TS4L3_PCI,12,FALSE)","v":"L3N09"}]
[]
[null,null,null,null,null,"PCI Slot 3 Processor 1 x8 PCIe Gen4 for HL/FH"]
[null,null,null,null,null,"Slot non Utilizzato",null,{"$f":"VLOOKUP($F96,TS4L3_PCI,13,FALSE)","v":""},{"$f":"VLOOKUP($F96,TS4L3_PCI,7,FALSE)","v":""},null,{"$f":"O96+P96","v":0},null,null,null,{"$f":"VLOOKUP($F96,TS4L3_PCI,10,FALSE)","v":0},{"$f":"VLOOKUP($F96,TS4L3_PCI,11,FALSE)","v":0},{"$f":"VLOOKUP($F96,TS4L3_PCI,12,FALSE)","v":""}]
[]
[null,null,null,null,null,"PCI Slot 4 Processor 2 x8 PCIe Gen4 for HL/FH",{"$f":"IF($S$88=\"SW\",\"GPU Slot\",IF($S$88=\"DW\",\"GPU Slot\",\"\"))","v":""}]
[null,null,null,null,null,"Slot non Utilizzato",null,{"$f":"VLOOKUP($F99,TS4L3_PCI,13,FALSE)","v":""},{"$f":"VLOOKUP($F99,TS4L3_PCI,7,FALSE)","v":""},null,{"$f":"O99+P99","v":0},null,null,null,{"$f":"VLOOKUP($F99,TS4L3_PCI,10,FALSE)","v":0},{"$f":"VLOOKUP($F99,TS4L3_PCI,11,FALSE)","v":0},{"$f":"VLOOKUP($F99,TS4L3_PCI,12,FALSE)","v":""}]
[]
[null,null,null,null,null,"PCI Slot 5 Processor 2 x8 PCIe Gen4 for HL/FH",{"$f":"IF($S$88=\"SW\",\"GPU Slot\",\"\")","v":""}]
[null,null,null,null,null,"Slot non Utilizzato",null,{"$f":"VLOOKUP($F102,TS4L3_PCI,13,FALSE)","v":""},{"$f":"VLOOKUP($F102,TS4L3_PCI,7,FALSE)","v":""},null,{"$f":"O102+P102","v":0},null,null,null,{"$f":"VLOOKUP($F102,TS4L3_PCI,10,FALSE)","v":0},{"$f":"VLOOKUP($F102,TS4L3_PCI,11,FALSE)","v":0},{"$f":"VLOOKUP($F102,TS4L3_PCI,12,FALSE)","v":""}]
[]
[null,null,null,null,null,"PCI Slot 6 Processor 2 x16 PCIe Gen4 for HL/LP"]
[null,null,null,null,null,"Slot non Utilizzato",null,{"$f":"VLOOKUP($F105,TS4L3_PCI,13,FALSE)","v":""},{"$f":"VLOOKUP($F105,TS4L3_PCI,7,FALSE)","v":""},null,{"$f":"O105+P105","v":0},null,null,null,{"$f":"VLOOKUP($F105,TS4L3_PCI,10,FALSE)","v":0},{"$f":"VLOOKUP($F105,TS4L3_PCI,11,FALSE)","v":0},{"$f":"VLOOKUP($F105,TS4L3_PCI,12,FALSE)","v":""}]
[]
[null,null,null,null,null,"PCI Slot 7 Processor 2 x8 PCIe Gen4 for HL/FH",{"$f":"IF($S$88=\"SW\",\"GPU Slot\",\"\")","v":""}]
[null,null,null,null,null,"Slot non Utilizzato",null,{"$f":"VLOOKUP($F108,TS4L3_PCI,13,FALSE)","v":""},{"$f":"VLOOKUP($F108,TS4L3_PCI,7,FALSE)","v":""},null,{"$f":"O108+P108","v":0},null,null,null,{"$f":"VLOOKUP($F108,TS4L3_PCI,10,FALSE)","v":0},{"$f":"VLOOKUP($F108,TS4L3_PCI,11,FALSE)","v":0},{"$f":"VLOOKUP($F108,TS4L3_PCI,12,FALSE)","v":""}]
[]
[null,null,null,null,null,"PCI Slot 8 Processor 2 x8 PCIe Gen4 for HL/FH",{"$f":"IF($S$88=\"SW\",\"GPU Slot\",IF($S$88=\"DW\",\"GPU Slot\",\"\"))","v":""}]
[null,null,null,null,null,"Slot non Utilizzato",null,{"$f":"VLOOKUP($F111,TS4L3_PCI,13,FALSE)","v":""},{"$f":"VLOOKUP($F111,TS4L3_PCI,7,FALSE)","v":""},null,{"$f":"O111+P111","v":0},null,null,null,{"$f":"VLOOKUP($F111,TS4L3_PCI,10,FALSE)","v":0},{"$f":"VLOOKUP($F111,TS4L3_PCI,11,FALSE)","v":0},{"$f":"VLOOKUP($F111,TS4L3_PCI,12,FALSE)","v":""}]
[]
[null,null,null,null,null,"Garanzia"]
[null,null,null,null,null,"Manutenzione in garanzia (36 mesi)",null,{"$f":"VLOOKUP($F114,TS4L4_WARR,13,FALSE)","v":""},{"$f":"VLOOKUP($F114,TS4L4_WARR,7,FALSE)","v":""},null,{"$f":"O114","v":0},null,null,null,{"$f":"VLOOKUP($F114,TS4L4_WARR,10,FALSE)","v":0},{"$f":"VLOOKUP($F114,TS4L4_WARR,11,FALSE)","v":0},{"$f":"VLOOKUP($F114,TS4L4_WARR,12,FALSE)","v":""}]
[]
[null,null,null,null,null,"Hard Disk Retention",null,null,{"$f":"IF(AND($F$117=\"Hard Disk Retention 60 mesi\",$I$114=\"\"),\"Selezionare Estensione di Garanzia 24 Mesi\",IF(AND(F114=\"Estensione della Garanzia Per ulteriori 24 Mesi\",F117=\"Hard Disk Retention 36 mesi\"),\"Selezionare Hard Disk Retention 60 Mesi\",\"\"))","v":""}]
[null,null,null,null,null,"No Hard Disk Retention",null,{"$f":"VLOOKUP(F117,TS4L4_HDDRET,13,FALSE)","v":""},{"$f":"IF(F117=\"\",\"\",IF(F117=\"No Hard Disk Retention\",\"\",VLOOKUP(F117,TS4L4_HDDRET,7,FALSE)))","v":""},null,{"$f":"O117","v":0},null,null,null,{"$f":"IF(I116<>\"\",\"\",VLOOKUP(F117,TS4L4_HDDRET,10,FALSE))","v":0},{"$f":"IFERROR(U117,VLOOKUP(F117,TS4L4_HDDRET,11,FALSE))","v":0},{"$f":"IF(I116<>\"\",\"\",VLOOKUP(F117,TS4L4_HDDRET,12,FALSE))","v":""}]
[]
[null,null,null,null,null,null,null,"Configurazione",{"$f":"SUM(O11:O117)*I8","v":0},null,null,null,null,null,{"$f":"IF(AND($I$117=1,$I$114=\"\"),\"Selezionare Estensione di Garanzia 24 Mesi\",\"\")","v":""}]
[null,null,null,null,null,null,null,0.2,{"$f":"SUM(P11:P117)*I8","v":0}]
[null,null,null,null,null,null,null,"Totale",{"$f":"SUM(I119:I120)","v":0}]
[]
[null,null,null,null,null,"NOTE"]

{"sheet":"Lotto3_SR650_1","index":2,"n_rows":123,"n_cols":30,"rows_kept":123,"cut":false,"hidden":false,"merged":[[1,5,2,5],[122,5,122,8],[123,5,134,8],[41,5,42,5],[9,6,10,6],[115,6,116,6],[83,6,84,6],[80,6,81,6],[35,7,35,10],[15,6,16,6],[18,6,19,6],[35,6,36,6],[82,10,84,11],[112,6,113,6],[41,10,42,10],[38,6,39,6],[38,7,38,10],[94,4,95,4],[94,7,94,8],[3,7,4,7],[88,7,88,8],[5,7,6,7]]}
[]
[null,null,null,null,null,"Convenzione \nTecnologie Server 4 - Lotto 3",null,{"$f":"IF(R111>1,\"ERRORE NELLA CONFIGURAZIONE\",\"\")","v":""},null,null,{"$f":"IF(Riepilogo_Ordine!K98>Riepilogo_Ordine!G98,\"Superata Quota 20%\",\"\")","v":""},null,null,null,null,null,null,null,null,null,null,null,null,null,null,null,null,null,null,"SalvaPDF"]
[null,null,null,null,null,null,null,null,null,null,"Articoli 20% Totali",null,null,null,null,"Check CPU","Check RAM","Check Dischi","Check PCI","Check Win","Check Gar","Check Tot",null,null,null,null,null,null,null,{"$f":"IF(I8>0,1,0)","v":0}]
[null,null,null,null,null,null,null,{"$f":"IF(V4>1,\"Errori nella Configurazione\",IF(P4>0,\"Errore nella Selezione della CPU\",IF(Q4>0,\"Errore Nella Selezione della RAM\",IF(R4>0,\"Errore Nella selezione dei Dischi\",IF(S4>0,\"Errore nella Selezione Slot PCI\",IF(T4>0,\"Errore nella Selezione Licenze Windows\",IF(U4>0,\"Errore nella Selezione Estensione di Garanzia\",\"\")))))))","v":""},"Totale Altre Opzioni",null,{"$f":"Riepilogo_Ordine!K98","v":0},null,null,null,null,{"$f":"IF(I22<>\"\",1,0)","v":0},{"$f":"IF(I25<>\"\",1,0)","v":0},{"$f":"IF(K42<>\"\",1,0)","v":0},{"$f":"IF(I89<>\"\",1,0)","v":0},{"$f":"IF(I27<>\"\",1,0)","v":0},{"$f":"IF(I116<>\"\",1,0)","v":0},{"$f":"SUM(P4:U4)","v":0}]
[null,null,null,null,null,null,null,null,{"$f":"Altre_Opzioni!H10","v":0},null,"Quota Residua 20 %"]
[null,null,null,null,null,null,null,"Guida alla Convenzione","Totale Configurazione",null,{"$f":"Riepilogo_Ordine!G99","v":0}]
[null,null,null,null,null,{"$f":"IF(Riepilogo_Ordine!P8>0,\"Compilare i Dati nel Foglio Riepilogo per Stampare in PDF\",\"\")","v":"Compilare i Dati nel Foglio Riepilogo per Stampare in PDF"},null,null,{"$f":"IF(H4<>\"\",0,I119+I120)","v":0},null,"Totale Ordine\nIva Esclusa"]
[null,null,null,null,null,"LENOVO THINKSYSTEM \nSR650 V2",null,"Quantità Server",0,null,{"$f":"Riepilogo_Ordine!K99","v":0}]
[]
[null,null,null,null,null,"Base",null,null,null,null,null,null,null,null,null,null,null,null,"Lenovo ThinkSystem SR650 V2 Server"]
[null,null,null,null,null,"Lenovo ThinkSystem SR650 V2 Server",null,{"$f":"IF($I$8=0,\"\",VLOOKUP(F11,TS4L4_Base,13,FALSE))","v":""},{"$f":"IF($I$8>0,1,\"\")","v":""},null,{"$f":"O11","v":2050.54},null,null,null,{"$f":"VLOOKUP($F$11,TS4L4_Base,10,FALSE)","v":2050.54},null,{"$f":"VLOOKUP($F11,TS4L4_Base,12,FALSE)","v":"L3N01"},null,null,null,null,null,{"$f":"IF(F11=ConfigurationTS4L3!A15,\"NutanixA\",IF(Lotto3_SR650_1!F11=ConfigurationTS4L3!#REF!,\"NutanixB\",IF(Lotto3_SR650_1!F11=ConfigurationTS4L3!A16,\"NutanixC\",IF(Lotto3_SR650_1!F11=ConfigurationTS4L3!A17,\"VsanA\",IF(Lotto3_SR650_1!F11=ConfigurationTS4L3!#REF!,\"VsanB\",IF(Lotto3_SR650_1!F11=ConfigurationTS4L3!A18,\"VsanC\"))))))","v":{"$error":"#REF!"}}]
[]
[]
[]
[null,null,null,null,null,null,null,null,null,null,null,null,null,null,null,null,null,{"$f":"IF(T11<>\"\",\"vsan\",\"\")","v":""},{"$f":"IF(AND(T15=\"GP1\",F26>512),\"Selezionare RAM Corretta\",\"\")","v":""}]
[null,null,null,null,null,"Chassis Configuration",null,{"$f":"IF($S$88=\"SW\",\"MAX 4 GPU\",IF($S$88=\"DW\",\"MAX 2 GPU\",\"\"))","v":""}]
[null,null,null,null,null,{"$f":"IF(I23=1,VLOOKUP($F$11,TS4L4_Chassis,3,FALSE),VLOOKUP($F$11,TS4L4_Chassis,2,FALSE))","v":"Chassis fino a 12 x 3.5 Hard Drives"},null,{"$f":"IF($I$23=1,VLOOKUP($F$11,TS4L4_Chassis,11,FALSE),VLOOKUP($F$11,TS4L4_Chassis,9,FALSE))","v":"TS4L3-Opz2CPU"},{"$f":"IF($I$8=0,0,VLOOKUP(F11,TS4L4_Chassis,7,0))","v":0},null,{"$f":"O17+P17","v":0},null,null,null,null,{"$f":"VLOOKUP($F$11,TS4L4_Chassis,10,FALSE)*I17","v":0},{"$f":"IF(I17=0,\"\",(VLOOKUP($F11,TS4L4_Chassis,12,FALSE)))","v":""},null,null,1]
[]
[null,null,null,null,null,"Processor"]
[null,null,null,null,null,"Intel Xeon Silver 4310 12C 120W 2.1GHz Processor",null,null,null,null,null,null,null,null,{"$f":"IF(I17=1,VLOOKUP($F$20,TS4L4_CPU,11,FALSE),VLOOKUP($F$20,TS4L4_CPU,11,FALSE))","v":0},{"$f":"IF(I17=1,VLOOKUP($F$20,TS4L4_CPU,11,FALSE),VLOOKUP($F$20,TS4L4_CPU,11,FALSE))","v":0},{"$f":"IF(P20=0,0,VLOOKUP($F20,TS4L4_CPU,12,FALSE))","v":0}]
[]
[null,null,null,null,null,"Additional Processor"]
[null,null,null,null,null,"Intel Xeon Silver 4310 12C 120W 2.1GHz Processor",null,{"$f":"IF(I17=1,VLOOKUP($F$20,TS4L4_CPU,13,FALSE),VLOOKUP($F$23,TS4L4_CPU,13,FALSE))","v":"TS4L3-CPU"},{"$f":"IF(I17=1,VLOOKUP($F$23,TS4L4_CPU,7,FALSE),VLOOKUP($F$23,TS4L4_CPU,7,FALSE))","v":1},null,{"$f":"O23","v":623.57000000000005},null,null,null,{"$f":"IF(I17=1,VLOOKUP($F$20,TS4L4_CPU,10,FALSE),VLOOKUP($F$23,TS4L4_CPU,10,FALSE))","v":623.57000000000005},{"$f":"IF(I17=1,VLOOKUP($F$20,TS4L4_CPU,11,FALSE),VLOOKUP($F$23,TS4L4_CPU,11,FALSE))","v":0},{"$f":"IF(I17=1,VLOOKUP(F20,TS4L4_CPU,12,FALSE),VLOOKUP($F23,TS4L4_CPU,12,FALSE))","v":"L3N02"},null,{"$f":"IF(I23=1,\"Intel Xeon Silver 4310 12C 120W 2.1GHz Processor\",F23)","v":"Intel Xeon Silver 4310 12C 120W 2.1GHz Processor"}]
[]
[null,null,null,null,null,"Memory Capacity (GB)",null,"↓ Selezionare Taglio RAM ↓",{"$f":"IF(AND(F26>512,I23<>1,H26=\"TS4L3-RAM32\"),\"Selezionare RAM 64 GB o Aggiungere CPU\",IF(AND(F26>1024,I23<>1,H26=\"TS4L3-RAM64\"),\"Selezionare RAM Corretta o Aggiungere CPU\",IF(AND(F26>1024,I23=1,H26=\"TS4L3-RAM32\"),\"Selezionare RAM Corretta\",IF(AND(F26>512,I23=\"\",H26=\"TS4L3-RAM32\"),\"Selezionare RAM Corretta o Aggiungere CPU\",IF(AND(F26<128,I23=1,H26=\"TS4L3-RAM64\"),\"Selezionare RAM Corretta\",\"\")))))","v":""}]
[null,null,null,null,null,128,null,"TS4L3-RAM64",{"$f":"IF(I25<>\"\",0,T26)","v":1},null,{"$f":"O26","v":478.29},null,null,null,{"$f":"U26","v":478.29},null,{"$f":"IF(I25<>\"\",0,V26)","v":"L3N04"},null,{"$f":"IF(I25<>\"\",0,IF(AND(H26=\"TS4L3-RAM32\",I23=\"\"),VLOOKUP($F$26,TS4L3_RAM1CPU32GB,13,FALSE),IF(AND(H26=\"TS4L3-RAM32\",I23=1),VLOOKUP($F$26,TS4L3_RAM2CPU32GB,13,FALSE),IF(AND(H26=\"TS4L3-RAM64\",I23=\"\"),VLOOKUP($F$26,TS4L3_RAM1CPU64GB,13,FALSE),IF(AND(H26=\"TS4L3-RAM64\",I23=1),VLOOKUP($F$26,TS4L3_RAM2CPU64GB,13,FALSE),\"\")))))","v":"TS4L3-RAM64"},{"$f":"IF(AND(H26=\"TS4L3-RAM32\",I23=\"\"),VLOOKUP($F$26,TS4L3_RAM1CPU32GB,7,FALSE),IF(AND(H26=\"TS4L3-RAM32\",I23=1),VLOOKUP($F$26,TS4L3_RAM2CPU32GB,7,FALSE),IF(AND(H26=\"TS4L3-RAM64\",I23=\"\"),VLOOKUP($F$26,TS4L3_RAM1CPU64GB,7,FALSE),IF(AND(H26=\"TS4L3-RAM64\",I23=1),VLOOKUP($F$26,TS4L3_RAM2CPU64GB,7,FALSE),\"\"))))","v":1},{"$f":"IF(I25<>\"\",0,IF(AND(H26=\"TS4L3-RAM32\",I23=\"\"),VLOOKUP($F$26,TS4L3_RAM1CPU32GB,10,FALSE),IF(AND(H26=\"TS4L3-RAM32\",I23=1),VLOOKUP($F$26,TS4L3_RAM2CPU32GB,10,FALSE),IF(AND(H26=\"TS4L3-RAM64\",I23=\"\"),VLOOKUP($F$26,TS4L3_RAM1CPU64GB,10,FALSE),IF(AND(H26=\"TS4L3-RAM64\",I23=1),VLOOKUP($F$26,TS4L3_RAM2CPU64GB,10,FALSE),\"\")))))","v":478.29},{"$f":"IF(I25<>\"\",0,IF(AND(H26=\"TS4L3-RAM32\",I23=\"\"),VLOOKUP($F$26,TS4L3_RAM1CPU32GB,12,FALSE),IF(AND(H26=\"TS4L3-RAM32\",I23=1),VLOOKUP($F$26,TS4L3_RAM2CPU32GB,12,FALSE),IF(AND(H26=\"TS4L3-RAM64\",I23=\"\"),VLOOKUP($F$26,TS4L3_RAM1CPU64GB,12,FALSE),IF(AND(H26=\"TS4L3-RAM64\",I23=1),VLOOKUP($F$26,TS4L3_RAM2CPU64GB,12,FALSE),\"\")))))","v":"L3N04"}]
[]
[null,null,null,null,null,"Operating System STANDARD"]
[null,null,null,null,null,"No Operating System",null,{"$f":"VLOOKUP($F$29,TS4L3_OS,13,FALSE)","v":""},0,null,{"$f":"O29","v":0},null,null,null,{"$f":"VLOOKUP($F$29,TS4L3_OS,10,FALSE)*I29","v":0},{"$f":"VLOOKUP($F$29,TS4L3_OS,11,FALSE)","v":0},{"$f":"VLOOKUP($F29,TS4L3_OS,12,FALSE)","v":""},null,{"$f":"IF(AND(F23=\"No Additional Processor\",I29>=3),TRUE,FALSE)","v":false}]
[null,null,null,null,null,"Windows Server 2022 Standard Edition, Add License,2CORE",null,{"$f":"VLOOKUP($F$30,TS4L3_OS,13,FALSE)","v":"TS4L3-WINSRV2C"},0,null,{"$f":"O30","v":0},null,null,null,{"$f":"VLOOKUP($F$30,TS4L3_OS,10,FALSE)*I30","v":0},{"$f":"VLOOKUP($F$29,TS4L3_OS,11,FALSE)","v":0},{"$f":"VLOOKUP($F30,TS4L3_OS,12,FALSE)","v":"L3N21"},null,{"$f":"IF(AND(F23<>\"No Additional Processor\",I29>=3),TRUE,FALSE)","v":false}]
[]
[null,null,null,null,null,"Operating System Device CAL / User CAL"]
[null,null,null,null,null,"1-pack of Windows Server 2022/2019 Device CALs (STD or DC)",null,{"$f":"VLOOKUP($F$33,TS4L3_OS,13,FALSE)","v":"TS4L3-WINDEVCAL"},0,null,{"$f":"O33","v":0},null,null,null,{"$f":"VLOOKUP($F$33,TS4L3_OS,10,FALSE)*I33","v":0},{"$f":"VLOOKUP($F$29,TS4L3_OS,11,FALSE)","v":0},{"$f":"VLOOKUP($F33,TS4L3_OS,12,FALSE)","v":"L3N19"}]
[null,null,null,null,null,"1-pack of Windows Server 2022/2019 User CALs (STD or DC)",null,{"$f":"VLOOKUP($F$34,TS4L3_OS,13,FALSE)","v":"TS4L3-WINUSRCAL"},0,null,{"$f":"O34","v":0},null,null,null,{"$f":"VLOOKUP($F$34,TS4L3_OS,10,FALSE)*I34","v":0},{"$f":"VLOOKUP($F$29,TS4L3_OS,11,FALSE)","v":0},{"$f":"VLOOKUP($F34,TS4L3_OS,12,FALSE)","v":"L3N20"}]
[]
[null,null,null,null,null,"Disk Controller"]
[null,null,null,null,null,{"$f":"IF(I17=0,ConfigurationTS4L3!A98,ConfigurationTS4L3!A98)","v":"RAID 9350-16i 4GB Flash PCIe 12Gb Adapter"},null,{"$f":"VLOOKUP(F37,TS4L3_CTRL,13,FALSE)","v":"TS4L3-DiskController"},{"$f":"VLOOKUP($F37,TS4L3_CTRL,7,FALSE)","v":""},null,{"$f":"P37","v":0},null,null,null,{"$f":"IF(F37=ConfigurationTS4L3!A48,0,VLOOKUP($F37,TS4L4_CRTL,10,FALSE))","v":0},{"$f":"IF(I17=1,0,VLOOKUP($F37,TS4L4_CRTL,11,FALSE))","v":0},{"$f":"\"\"","v":""},null,{"$f":"IF(F11=\"PowerEdge R7525 Server (vSAN Ready)\",\"Vsan\",\"\")","v":""}]
[]
[null,null,null,null,null,"Abilitazione RAID su dischi NVMe",null,{"$f":"IF(F40=\"NO RAID\",\"Il RAID sui dischi NVMe di base non è abilitato\",\"\")","v":""}]
[null,null,null,null,null,"Intel VROC (VMD NVMe RAID) Premium",null,{"$f":"VLOOKUP(F40,TS4L3_RAID,13,FALSE)","v":"TS4L3-VROC"},{"$f":"VLOOKUP($F40,TS4L3_RAID,7,FALSE)","v":1},null,{"$f":"P40","v":380},null,null,null,{"$f":"VLOOKUP($F40,TS4L3_RAID,10,FALSE)","v":0},{"$f":"VLOOKUP($F40,TS4L3_RAID,11,FALSE)","v":380},{"$f":"VLOOKUP($F40,TS4L3_RAID,12,FALSE)","v":"L3N52"},null,{"$f":"IF(F17=\"PowerEdge R7525 Server (vSAN Ready)\",\"Vsan\",\"\")","v":""}]
[]
[null,null,null,null,null,"Hard Drivers Bays n° 12 + 2 Dischi nVME di Boot",null,"Usati","Disponibili",null,{"$f":"IF(I43<0,\"Troppi Dischi\",\"\")","v":""}]
[null,null,null,null,null,null,null,{"$f":"SUM(I45:I79)","v":0},{"$f":"12-H43","v":12}]
[]
[null,null,null,null,null,{"$f":"ConfigurationTS4L3!A70","v":" 8TB 7.2K SAS 12Gb Hot Swap 512e HDD"},null,{"$f":"VLOOKUP($F45,TS4L4_HDD,13,FALSE)","v":"TS4L3-HDD8TB"},0,null,{"$f":"O45","v":0},null,null,null,{"$f":"IF(K42<>\"\",0,VLOOKUP($F45,TS4L4_HDD,10,FALSE))*I45","v":0},{"$f":"VLOOKUP($F45,TS4L4_HDD,11,FALSE)","v":0},{"$f":"IF(K42<>\"\",\"\",VLOOKUP($F45,TS4L4_HDD,12,FALSE))","v":"L3N11"}]
[]
[null,null,null,null,null,{"$f":"ConfigurationTS4L3!A71","v":"2TB 7.2K SAS 12Gb Hot Swap 512n HDD"},null,{"$f":"VLOOKUP($F47,TS4L4_HDD,13,FALSE)","v":"TS4L3-HDD2TB"},0,null,{"$f":"O47","v":0},null,null,null,{"$f":"IF(K42<>\"\",0,VLOOKUP($F47,TS4L4_HDD,10,FALSE))*I47","v":0},{"$f":"VLOOKUP($F47,TS4L4_HDD,11,FALSE)","v":0},{"$f":"IF(K42<>\"\",\"\",VLOOKUP($F47,TS4L4_HDD,12,FALSE))","v":"L3N12"}]
[]
[null,null,null,null,null,{"$f":"ConfigurationTS4L3!A72","v":"1TB 7.2K SAS 12Gb Hot Swap 512n HDD"},null,{"$f":"VLOOKUP($F49,TS4L4_HDD,13,FALSE)","v":"TS4L3-HDD1TB"},0,null,{"$f":"O49","v":0},null,null,null,{"$f":"IF(K42<>\"\",0,VLOOKUP($F49,TS4L4_HDD,10,FALSE))*I49","v":0},{"$f":"VLOOKUP($F49,TS4L4_HDD,11,FALSE)","v":0},{"$f":"IF(K42<>\"\",\"\",VLOOKUP($F49,TS4L4_HDD,12,FALSE))","v":"L3N13"}]
[]
[null,null,null,null,null,{"$f":"ConfigurationTS4L3!A73","v":"12TB 7.2K SAS 12Gb Hot Swap 512e HDD"},null,{"$f":"VLOOKUP($F51,TS4L4_HDD,13,FALSE)","v":"TS4L3-HDD12TB"},0,null,{"$f":"O51","v":0},null,null,null,{"$f":"IF(K42<>\"\",0,VLOOKUP($F51,TS4L4_HDD,10,FALSE))*I51","v":0},{"$f":"VLOOKUP($F51,TS4L4_HDD,11,FALSE)","v":0},{"$f":"IF(K42<>\"\",\"\",VLOOKUP($F51,TS4L4_HDD,12,FALSE))","v":"L3N14"}]
[]
[null,null,null,null,null,{"$f":"ConfigurationTS4L3!A74","v":"PM1643a 3.84TB Entry SAS 12Gb Hot Swap SSD"},null,{"$f":"VLOOKUP($F53,TS4L4_HDD,13,FALSE)","v":"TS4L3-SSD-RI3,8TB"},0,null,{"$f":"O53","v":0},null,null,null,{"$f":"IF(K42<>\"\",0,VLOOKUP($F53,TS4L4_HDD,10,FALSE))*I53","v":0},{"$f":"VLOOKUP($F53,TS4L4_HDD,11,FALSE)","v":0},{"$f":"IF(K42<>\"\",\"\",VLOOKUP($F53,TS4L4_HDD,12,FALSE))","v":"L3N26"}]
[]
[null,null,null,null,null,{"$f":"ConfigurationTS4L3!A75","v":"PM1645a 1.6TB Mainstream SAS 12Gb Hot Swap SSD"},null,{"$f":"VLOOKUP($F55,TS4L4_HDD,13,FALSE)","v":"TS4L3-SSD-RI1,6TB"},0,null,{"$f":"O55","v":0},null,null,null,{"$f":"IF(K42<>\"\",0,VLOOKUP($F55,TS4L4_HDD,10,FALSE))*I55","v":0},{"$f":"VLOOKUP($F55,TS4L4_HDD,11,FALSE)*I55","v":0},{"$f":"IF(K42<>\"\",\"\",VLOOKUP($F55,TS4L4_HDD,12,FALSE))","v":"L3N27"}]
[]
[null,null,null,null,null,{"$f":"ConfigurationTS4L3!A76","v":"ThinkSystem   3.2TB Mixed Use SAS 24Gb HS SSD"},null,{"$f":"VLOOKUP($F57,TS4L4_HDD,13,FALSE)","v":"TS4L3-SSDSAS3.2TBMU"},0,null,{"$f":"O57","v":0},null,null,null,{"$f":"IF($K$42<>\"\",0,VLOOKUP($F57,TS4L4_HDD,10,FALSE))*I57","v":0},{"$f":"VLOOKUP($F57,TS4L4_HDD,11,FALSE)","v":0},{"$f":"IF($K$42<>\"\",\"\",VLOOKUP($F57,TS4L4_HDD,12,FALSE))","v":"L3N54"}]
[]
[null,null,null,null,null,{"$f":"ConfigurationTS4L3!A77","v":"ThinkSystem  6.4TB Mixed Use SAS 24Gb HS SSD"},null,{"$f":"VLOOKUP($F59,TS4L4_HDD,13,FALSE)","v":"TS4L3-SSDSAS6.4TBMU"},0,null,{"$f":"O59","v":0},null,null,null,{"$f":"IF($K$42<>\"\",0,VLOOKUP($F59,TS4L4_HDD,10,FALSE))*I59","v":0},{"$f":"VLOOKUP($F59,TS4L4_HDD,11,FALSE)","v":0},{"$f":"IF($K$42<>\"\",\"\",VLOOKUP($F59,TS4L4_HDD,12,FALSE))","v":"L3N55"}]
[]
[null,null,null,null,null,{"$f":"ConfigurationTS4L3!A78","v":"ThinkSystem 7.68TB Read Intensive SAS 24Gb HS SSD"},null,{"$f":"VLOOKUP($F61,TS4L4_HDD,13,FALSE)","v":"TS4L3-SSDSAS7.68TBRI"},0,null,{"$f":"O61","v":0},null,null,null,{"$f":"IF($K$42<>\"\",0,VLOOKUP($F61,TS4L4_HDD,10,FALSE))*I61","v":0},{"$f":"VLOOKUP($F61,TS4L4_HDD,11,FALSE)","v":0},{"$f":"IF($K$42<>\"\",\"\",VLOOKUP($F61,TS4L4_HDD,12,FALSE))","v":"L3N56"}]
[]
[null,null,null,null,null,{"$f":"ConfigurationTS4L3!A79","v":"ThinkSystem  15.36TB Read Intensive SAS 24Gb HS SSD"},null,{"$f":"VLOOKUP($F63,TS4L4_HDD,13,FALSE)","v":"TS4L3-SSDSAS15.36TBRI"},0,null,{"$f":"O63","v":0},null,null,null,{"$f":"IF($K$42<>\"\",0,VLOOKUP($F63,TS4L4_HDD,10,FALSE))*I63","v":0},{"$f":"VLOOKUP($F63,TS4L4_HDD,11,FALSE)","v":0},{"$f":"IF($K$42<>\"\",\"\",VLOOKUP($F63,TS4L4_HDD,12,FALSE))","v":"L3N57"}]
[]
[null,null,null,null,null,{"$f":"ConfigurationTS4L3!A80","v":"ThinkSystem  3.84TB Read Intensive SATA 6Gb HS SSD"},null,{"$f":"VLOOKUP($F65,TS4L4_HDD,13,FALSE)","v":"TS4L3-SSDSATA3.84TBRI"},0,null,{"$f":"O65","v":0},null,null,null,{"$f":"IF($K$42<>\"\",0,VLOOKUP($F65,TS4L4_HDD,10,FALSE))*I65","v":0},{"$f":"VLOOKUP($F65,TS4L4_HDD,11,FALSE)","v":0},{"$f":"IF($K$42<>\"\",\"\",VLOOKUP($F65,TS4L4_HDD,12,FALSE))","v":"L3N58"}]
[]
[null,null,null,null,null,{"$f":"ConfigurationTS4L3!A81","v":"ThinkSystem   7.68TB Read Intensive SATA 6Gb HS SSD"},null,{"$f":"VLOOKUP($F67,TS4L4_HDD,13,FALSE)","v":"TS4L3-SSDSATA7.68TBRI"},0,null,{"$f":"O67","v":0},null,null,null,{"$f":"IF($K$42<>\"\",0,VLOOKUP($F67,TS4L4_HDD,10,FALSE))*I67","v":0},{"$f":"VLOOKUP($F67,TS4L4_HDD,11,FALSE)*I67","v":0},{"$f":"IF($K$42<>\"\",\"\",VLOOKUP($F67,TS4L4_HDD,12,FALSE))","v":"L3N59"}]
[]
[null,null,null,null,null,{"$f":"ConfigurationTS4L3!A82","v":"ThinkSystem 20TB 7.2K SAS 12Gb Hot Swap 512e HDD"},null,{"$f":"VLOOKUP($F69,TS4L4_HDD,13,FALSE)","v":"TS4L3-HDD_SAS20TB_HW"},0,null,{"$f":"O69","v":0},null,null,null,{"$f":"IF($K$42<>\"\",0,VLOOKUP($F69,TS4L4_HDD,10,FALSE))*I69","v":0},{"$f":"VLOOKUP($F69,TS4L4_HDD,11,FALSE)","v":0},{"$f":"IF($K$42<>\"\",\"\",VLOOKUP($F69,TS4L4_HDD,12,FALSE))","v":"L3N60"}]
[]
[null,null,null,null,null,{"$f":"ConfigurationTS4L3!A83","v":"ThinkSystem 16TB 7.2K SATA 6Gb Hot Swap 512e HDD"},null,{"$f":"VLOOKUP($F71,TS4L4_HDD,13,FALSE)","v":"TS4L3-HDD_SATA16TB_HW"},0,null,{"$f":"O71","v":0},null,null,null,{"$f":"IF($K$42<>\"\",0,VLOOKUP($F71,TS4L4_HDD,10,FALSE))*I71","v":0},{"$f":"VLOOKUP($F71,TS4L4_HDD,11,FALSE)","v":0},{"$f":"IF($K$42<>\"\",\"\",VLOOKUP($F71,TS4L4_HDD,12,FALSE))","v":"L3N61"}]
[]
[null,null,null,null,null,{"$f":"ConfigurationTS4L3!A84","v":"ThinkSystem 3.5\" 16TB 7.2K SAS 12Gb Hot Swap 512e HDD"},null,{"$f":"VLOOKUP($F73,TS4L4_HDD,13,FALSE)","v":"TS4L3-HDD_SAS16TB_HW"},0,null,{"$f":"O73","v":0},null,null,null,{"$f":"IF($K$42<>\"\",0,VLOOKUP($F73,TS4L4_HDD,10,FALSE))*I73","v":0},{"$f":"VLOOKUP($F73,TS4L4_HDD,11,FALSE)","v":0},{"$f":"IF($K$42<>\"\",\"\",VLOOKUP($F73,TS4L4_HDD,12,FALSE))","v":"L3N62"}]
[]
[null,null,null,null,null,{"$f":"ConfigurationTS4L3!A85","v":"ThinkSystem 3.5\"  800GB Write Intensive SAS 12Gb HS SSD"},null,{"$f":"VLOOKUP($F75,TS4L4_HDD,13,FALSE)","v":"TS4L3-SSD_SAS800GB_WI"},0,null,{"$f":"O75","v":0},null,null,null,{"$f":"IF($K$42<>\"\",0,VLOOKUP($F75,TS4L4_HDD,10,FALSE))*I75","v":0},{"$f":"VLOOKUP($F75,TS4L4_HDD,11,FALSE)","v":0},{"$f":"IF($K$42<>\"\",\"\",VLOOKUP($F75,TS4L4_HDD,12,FALSE))","v":"L3N63"}]
[]
[null,null,null,null,null,{"$f":"ConfigurationTS4L3!A86","v":"ThinkSystem 3.5\"  1.6TB Write Intensive SAS 12Gb HS SSD"},null,{"$f":"VLOOKUP($F77,TS4L4_HDD,13,FALSE)","v":"TS4L3-SSD_SAS1.6TB_WI"},0,null,{"$f":"O77","v":0},null,null,null,{"$f":"IF($K$42<>\"\",0,VLOOKUP($F77,TS4L4_HDD,10,FALSE))*I77","v":0},{"$f":"VLOOKUP($F77,TS4L4_HDD,11,FALSE)","v":0},{"$f":"IF($K$42<>\"\",\"\",VLOOKUP($F77,TS4L4_HDD,12,FALSE))","v":"L3N64"}]
[]
[null,null,null,null,null,{"$f":"ConfigurationTS4L3!A87","v":"ThinkSystem 3.5\"  3.2TB Write Intensive SAS 12Gb HS SSD"},null,{"$f":"VLOOKUP($F79,TS4L4_HDD,13,FALSE)","v":"TS4L3-SSD_SAS3.2TB_WI"},0,null,{"$f":"O79","v":0},null,null,null,{"$f":"IF($K$42<>\"\",0,VLOOKUP($F79,TS4L4_HDD,10,FALSE))*I79","v":0},{"$f":"VLOOKUP($F79,TS4L4_HDD,11,FALSE)*I79","v":0},{"$f":"IF($K$42<>\"\",\"\",VLOOKUP($F79,TS4L4_HDD,12,FALSE))","v":"L3N65"}]
[]
[null,null,null,null,null,"Power Supply",{"$f":"IF(K81=\"\",\"\",R82)","v":""}]
[null,null,null,null,null,{"$f":"ConfigurationTS4L3!A94","v":"2 x 750W(230V/115V) Platinum Hot-Swap Power Supply v2"},null,null,null,null,null,null,null,null,{"$f":"VLOOKUP($F82,TS4L4_PSU,10,FALSE)","v":0},{"$f":"VLOOKUP($F82,TS4L4_PSU,11,FALSE)","v":0},{"$f":"IF(I82<>1,\"\",VLOOKUP($F82,TS4L4_PSU,12,FALSE))","v":""}]
[]
[null,null,null,null,null,"Embedded Systems Management"]
[null,null,null,null,null,"Xclarity Controller Enterpise"]
[]
[]
[]
[null,null,null,null,null,"PCI Slot 1 Processor 1 x16 PCIe Gen4 for HL/FH"]
[null,null,null,null,null,"RISERVATO SCHEDA SAS HBA ThinkSystem 4350",null,{"$f":"VLOOKUP($F90,TS4L3_PCI,13,)","v":""},{"$f":"VLOOKUP($F90,TS4L3_PCI,7,FALSE)","v":""},null,{"$f":"O90+P90","v":0},null,null,null,{"$f":"VLOOKUP($F90,TS4L3_PCI,10,FALSE)","v":0},{"$f":"VLOOKUP($F90,TS4L3_PCI,11,FALSE)","v":0},{"$f":"VLOOKUP($F90,TS4L3_PCI,12,FALSE)","v":""}]
[]
[null,null,null,null,null,"PCI Slot 2 Processor 1 x8 PCIe Gen4 for HL/FH"]
[null,null,null,null,null,"Slot non Utilizzato",null,{"$f":"VLOOKUP($F93,TS4L3_PCI,13,FALSE)","v":""},{"$f":"VLOOKUP($F93,TS4L3_PCI,7,FALSE)","v":""},null,{"$f":"O93+P93","v":0},null,null,null,{"$f":"VLOOKUP($F93,TS4L3_PCI,10,FALSE)","v":0},{"$f":"VLOOKUP($F93,TS4L3_PCI,11,FALSE)","v":0},{"$f":"VLOOKUP($F93,TS4L3_PCI,12,FALSE)","v":""}]
[]
[null,null,null,null,null,"PCI Slot 3 Processor 1 x8 PCIe Gen4 for HL/FH"]
[null,null,null,null,null,"Slot non Utilizzato",null,{"$f":"VLOOKUP($F96,TS4L3_PCI,13,FALSE)","v":""},{"$f":"VLOOKUP($F96,TS4L3_PCI,7,FALSE)","v":""},null,{"$f":"O96+P96","v":0},null,null,null,{"$f":"VLOOKUP($F96,TS4L3_PCI,10,FALSE)","v":0},{"$f":"VLOOKUP($F96,TS4L3_PCI,11,FALSE)","v":0},{"$f":"VLOOKUP($F96,TS4L3_PCI,12,FALSE)","v":""}]
[]
[null,null,null,null,null,"PCI Slot 4 Processor 2 x8 PCIe Gen4 for HL/FH",{"$f":"IF($S$88=\"SW\",\"GPU Slot\",IF($S$88=\"DW\",\"GPU Slot\",\"\"))","v":""}]
[null,null,null,null,null,"Slot non Utilizzato",null,{"$f":"VLOOKUP($F99,TS4L3_PCI,13,FALSE)","v":""},{"$f":"VLOOKUP($F99,TS4L3_PCI,7,FALSE)","v":""},null,{"$f":"O99+P99","v":0},null,null,null,{"$f":"VLOOKUP($F99,TS4L3_PCI,10,FALSE)","v":0},{"$f":"VLOOKUP($F99,TS4L3_PCI,11,FALSE)","v":0},{"$f":"VLOOKUP($F99,TS4L3_PCI,12,FALSE)","v":""}]
[]
[null,null,null,null,null,"PCI Slot 5 Processor 2 x8 PCIe Gen4 for HL/FH",{"$f":"IF($S$88=\"SW\",\"GPU Slot\",\"\")","v":""}]
[null,null,null,null,null,"Slot non Utilizzato",null,{"$f":"VLOOKUP($F102,TS4L3_PCI,13,FALSE)","v":""},{"$f":"VLOOKUP($F102,TS4L3_PCI,7,FALSE)","v":""},null,{"$f":"O102+P102","v":0},null,null,null,{"$f":"VLOOKUP($F102,TS4L3_PCI,10,FALSE)","v":0},{"$f":"VLOOKUP($F102,TS4L3_PCI,11,FALSE)","v":0},{"$f":"VLOOKUP($F102,TS4L3_PCI,12,FALSE)","v":""}]
[]
[null,null,null,null,null,"PCI Slot 6 Processor 2 x16 PCIe Gen4 for HL/LP"]
[null,null,null,null,null,"Slot non Utilizzato",null,{"$f":"VLOOKUP($F105,TS4L3_PCI,13,FALSE)","v":""},{"$f":"VLOOKUP($F105,TS4L3_PCI,7,FALSE)","v":""},null,{"$f":"O105+P105","v":0},null,null,null,{"$f":"VLOOKUP($F105,TS4L3_PCI,10,FALSE)","v":0},{"$f":"VLOOKUP($F105,TS4L3_PCI,11,FALSE)","v":0},{"$f":"VLOOKUP($F105,TS4L3_PCI,12,FALSE)","v":""}]
[]
[null,null,null,null,null,"PCI Slot 7 Processor 2 x8 PCIe Gen4 for HL/FH",{"$f":"IF($S$88=\"SW\",\"GPU Slot\",\"\")","v":""}]
[null,null,null,null,null,"Slot non Utilizzato",null,{"$f":"VLOOKUP($F108,TS4L3_PCI,13,FALSE)","v":""},{"$f":"VLOOKUP($F108,TS4L3_PCI,7,FALSE)","v":""},null,{"$f":"O108+P108","v":0},null,null,null,{"$f":"VLOOKUP($F108,TS4L3_PCI,10,FALSE)","v":0},{"$f":"VLOOKUP($F108,TS4L3_PCI,11,FALSE)","v":0},{"$f":"VLOOKUP($F108,TS4L3_PCI,12,FALSE)","v":""}]
[]
[null,null,null,null,null,"PCI Slot 8 Processor 2 x8 PCIe Gen4 for HL/FH",{"$f":"IF($S$88=\"SW\",\"GPU Slot\",IF($S$88=\"DW\",\"GPU Slot\",\"\"))","v":""}]
[null,null,null,null,null,"Slot non Utilizzato",null,{"$f":"VLOOKUP($F111,TS4L3_PCI,13,FALSE)","v":""},{"$f":"VLOOKUP($F111,TS4L3_PCI,7,FALSE)","v":""},null,{"$f":"O111+P111","v":0},null,null,null,{"$f":"VLOOKUP($F111,TS4L3_PCI,10,FALSE)","v":0},{"$f":"VLOOKUP($F111,TS4L3_PCI,11,FALSE)","v":0},{"$f":"VLOOKUP($F111,TS4L3_PCI,12,FALSE)","v":""}]
[]
[null,null,null,null,null,"Garanzia"]
[null,null,null,null,null,"Manutenzione in garanzia (36 mesi)",null,{"$f":"VLOOKUP($F114,TS4L4_WARR,13,FALSE)","v":""},{"$f":"VLOOKUP($F114,TS4L4_WARR,7,FALSE)","v":""},null,{"$f":"O114","v":0},null,null,null,{"$f":"VLOOKUP($F114,TS4L4_WARR,10,FALSE)","v":0},{"$f":"VLOOKUP($F114,TS4L4_WARR,11,FALSE)","v":0},{"$f":"VLOOKUP($F114,TS4L4_WARR,12,FALSE)","v":""}]
[]
[null,null,null,null,null,"Hard Disk Retention",null,null,{"$f":"IF(AND($F$117=\"Hard Disk Retention 60 mesi\",$I$114=\"\"),\"Selezionare Estensione di Garanzia 24 Mesi\",IF(AND(F114=\"Estensione della Garanzia Per ulteriori 24 Mesi\",F117=\"Hard Disk Retention 36 mesi\"),\"Selezionare Hard Disk Retention 60 Mesi\",\"\"))","v":""}]
[null,null,null,null,null,"No Hard Disk Retention",null,{"$f":"VLOOKUP(F117,TS4L4_HDDRET,13,FALSE)","v":""},{"$f":"IF(F117=\"\",\"\",IF(F117=\"No Hard Disk Retention\",\"\",VLOOKUP(F117,TS4L4_HDDRET,7,FALSE)))","v":""},null,{"$f":"O117","v":0},null,null,null,{"$f":"IF(I116<>\"\",\"\",VLOOKUP(F117,TS4L4_HDDRET,10,FALSE))","v":0},{"$f":"IFERROR(U117,VLOOKUP(F117,TS4L4_HDDRET,11,FALSE))","v":0},{"$f":"IF(I116<>\"\",\"\",VLOOKUP(F117,TS4L4_HDDRET,12,FALSE))","v":""}]
[]
[null,null,null,null,null,null,null,"Configurazione",{"$f":"SUM(O11:O117)*I8","v":0},null,null,null,null,null,{"$f":"IF(AND($I$117=1,$I$114=\"\"),\"Selezionare Estensione di Garanzia 24 Mesi\",\"\")","v":""}]
[null,null,null,null,null,null,null,0.2,{"$f":"SUM(P11:P117)*I8","v":0}]
[null,null,null,null,null,null,null,"Totale",{"$f":"SUM(I119:I120)","v":0}]
[]
[null,null,null,null,null,"NOTE"]

{"sheet":"Lotto3_SR650_2","index":3,"n_rows":123,"n_cols":30,"rows_kept":123,"cut":false,"hidden":false,"merged":[[112,6,113,6],[115,6,116,6],[122,5,122,8],[123,5,134,8],[80,6,81,6],[82,10,84,11],[83,6,84,6],[88,7,88,8],[94,4,95,4],[94,7,94,8],[35,6,36,6],[35,7,35,10],[38,6,39,6],[38,7,38,10],[41,5,42,5],[41,10,42,10],[18,6,19,6],[1,5,2,5],[3,7,4,7],[5,7,6,7],[9,6,10,6],[15,6,16,6]]}
[]
[null,null,null,null,null,"Convenzione \nTecnologie Server 4 - Lotto 3",null,{"$f":"IF(R111>1,\"ERRORE NELLA CONFIGURAZIONE\",\"\")","v":""},null,null,{"$f":"IF(Riepilogo_Ordine!K98>Riepilogo_Ordine!G98,\"Superata Quota 20%\",\"\")","v":""},null,null,null,null,null,null,null,null,null,null,null,null,null,null,null,null,null,null,"SalvaPDF"]
[null,null,null,null,null,null,null,null,null,null,"Articoli 20% Totali",null,null,null,null,"Check CPU","Check RAM","Check Dischi","Check PCI","Check Win","Check Gar","Check Tot",null,null,null,null,null,null,null,{"$f":"IF(I8>0,1,0)","v":0}]
[null,null,null,null,null,null,null,{"$f":"IF(V4>1,\"Errori nella Configurazione\",IF(P4>0,\"Errore nella Selezione della CPU\",IF(Q4>0,\"Errore Nella Selezione della RAM\",IF(R4>0,\"Errore Nella selezione dei Dischi\",IF(S4>0,\"Errore nella Selezione Slot PCI\",IF(T4>0,\"Errore nella Selezione Licenze Windows\",IF(U4>0,\"Errore nella Selezione Estensione di Garanzia\",\"\")))))))","v":""},"Totale Altre Opzioni",null,{"$f":"Riepilogo_Ordine!K98","v":0},null,null,null,null,{"$f":"IF(I22<>\"\",1,0)","v":0},{"$f":"IF(I25<>\"\",1,0)","v":0},{"$f":"IF(K42<>\"\",1,0)","v":0},{"$f":"IF(I89<>\"\",1,0)","v":0},{"$f":"IF(I28<>\"\",1,0)","v":0},{"$f":"IF(I116<>\"\",1,0)","v":0},{"$f":"SUM(P4:U4)","v":0}]
[null,null,null,null,null,null,null,null,{"$f":"Altre_Opzioni!H10","v":0},null,"Quota Residua 20 %"]
[null,null,null,null,null,null,null,"Guida alla Convenzione","Totale Configurazione",null,{"$f":"Riepilogo_Ordine!G99","v":0}]
[null,null,null,null,null,{"$f":"IF(Riepilogo_Ordine!P8>0,\"Compilare i Dati nel Foglio Riepilogo per Stampare in PDF\",\"\")","v":"Compilare i Dati nel Foglio Riepilogo per Stampare in PDF"},null,null,{"$f":"I119+I120","v":0},null,"Totale Ordine\nIva Esclusa"]
[null,null,null,null,null,"LENOVO THINKSYSTEM \nSR650 V2",null,"Quantità Server",0,null,{"$f":"Riepilogo_Ordine!K99","v":0}]
[]
[null,null,null,null,null,"Base",null,null,null,null,null,null,null,null,null,null,null,null,"Lenovo ThinkSystem SR650 V2 Server"]
[null,null,null,null,null,"Lenovo ThinkSystem SR650 V2 Server",null,{"$f":"IF($I$8=0,\"\",VLOOKUP(F11,TS4L4_Base,13,FALSE))","v":""},{"$f":"IF($I$8>0,1,\"\")","v":""},null,{"$f":"O11","v":2050.54},null,null,null,{"$f":"VLOOKUP($F$11,TS4L4_Base,10,FALSE)","v":2050.54},null,{"$f":"VLOOKUP($F11,TS4L4_Base,12,FALSE)","v":"L3N01"},null,null,null,null,null,{"$f":"IF(F11=ConfigurationTS4L3!A15,\"NutanixA\",IF(Lotto3_SR650_2!F11=ConfigurationTS4L3!#REF!,\"NutanixB\",IF(Lotto3_SR650_2!F11=ConfigurationTS4L3!A16,\"NutanixC\",IF(Lotto3_SR650_2!F11=ConfigurationTS4L3!A17,\"VsanA\",IF(Lotto3_SR650_2!F11=ConfigurationTS4L3!#REF!,\"VsanB\",IF(Lotto3_SR650_2!F11=ConfigurationTS4L3!A18,\"VsanC\"))))))","v":{"$error":"#REF!"}}]
[]
[]
[]
[null,null,null,null,null,null,null,null,null,null,null,null,null,null,null,null,null,{"$f":"IF(T11<>\"\",\"vsan\",\"\")","v":""},{"$f":"IF(AND(T15=\"GP1\",F26>512),\"Selezionare RAM Corretta\",\"\")","v":""}]
[null,null,null,null,null,"Chassis Configuration",null,{"$f":"IF($S$88=\"SW\",\"MAX 4 GPU\",IF($S$88=\"DW\",\"MAX 2 GPU\",\"\"))","v":""}]
[null,null,null,null,null,{"$f":"IF(I23=1,VLOOKUP($F$11,TS4L4_Chassis,3,FALSE),VLOOKUP($F$11,TS4L4_Chassis,2,FALSE))","v":"Chassis fino a 12 x 3.5 Hard Drives"},null,{"$f":"IF($I$23=1,VLOOKUP($F$11,TS4L4_Chassis,11,FALSE),VLOOKUP($F$11,TS4L4_Chassis,9,FALSE))","v":"TS4L3-SRV"},{"$f":"IF($I$8=0,0,VLOOKUP(F11,TS4L4_Chassis,7,0))","v":0},null,{"$f":"O17+P17","v":0},null,null,null,null,{"$f":"VLOOKUP($F$11,TS4L4_Chassis,10,FALSE)*I17","v":0},{"$f":"IF(I17=0,\"\",(VLOOKUP($F11,TS4L4_Chassis,12,FALSE)))","v":""},null,null,1]
[]
[null,null,null,null,null,"Processor"]
[null,null,null,null,null,"Intel Xeon Silver 4310 12C 120W 2.1GHz Processor",null,null,null,null,null,null,null,null,{"$f":"IF(I17=1,VLOOKUP($F$20,TS4L4_CPU,11,FALSE),VLOOKUP($F$20,TS4L4_CPU,11,FALSE))","v":0},{"$f":"IF(I17=1,VLOOKUP($F$20,TS4L4_CPU,11,FALSE),VLOOKUP($F$20,TS4L4_CPU,11,FALSE))","v":0},{"$f":"IF(P20=0,0,VLOOKUP($F20,TS4L4_CPU,12,FALSE))","v":0}]
[]
[null,null,null,null,null,"Additional Processor"]
[null,null,null,null,null,"No Additional Processor",null,{"$f":"IF(I17=1,VLOOKUP($F$20,TS4L4_CPU,13,FALSE),VLOOKUP($F$23,TS4L4_CPU,13,FALSE))","v":""},{"$f":"IF(I17=1,VLOOKUP($F$23,TS4L4_CPU,7,FALSE),VLOOKUP($F$23,TS4L4_CPU,7,FALSE))","v":""},null,{"$f":"O23","v":0},null,null,null,{"$f":"IF(I17=1,VLOOKUP($F$20,TS4L4_CPU,10,FALSE),VLOOKUP($F$23,TS4L4_CPU,10,FALSE))","v":0},{"$f":"IF(I17=1,VLOOKUP($F$20,TS4L4_CPU,11,FALSE),VLOOKUP($F$23,TS4L4_CPU,11,FALSE))","v":0},{"$f":"IF(I17=1,VLOOKUP(F20,TS4L4_CPU,12,FALSE),VLOOKUP($F23,TS4L4_CPU,12,FALSE))","v":""},null,{"$f":"IF(I23=1,\"Intel Xeon Silver 4310 12C 120W 2.1GHz Processor\",F23)","v":"No Additional Processor"}]
[]
[null,null,null,null,null,"Memory Capacity (GB)",null,"↓ Selezionare Taglio RAM ↓",{"$f":"IF(AND(F26>512,I23<>1,H26=\"TS4L3-RAM32\"),\"Selezionare RAM 64 GB o Aggiungere CPU\",IF(AND(F26>1024,I23<>1,H26=\"TS4L3-RAM64\"),\"Selezionare RAM Corretta o Aggiungere CPU\",IF(AND(F26>1024,I23=1,H26=\"TS4L3-RAM32\"),\"Selezionare RAM Corretta\",IF(AND(F26>512,I23=\"\",H26=\"TS4L3-RAM32\"),\"Selezionare RAM Corretta o Aggiungere CPU\",IF(AND(F26<128,I23=1,H26=\"TS4L3-RAM64\"),\"Selezionare RAM Corretta\",\"\")))))","v":""}]
[null,null,null,null,null,64,null,"TS4L3-RAM32",{"$f":"IF(I25<>\"\",0,T26)","v":0},null,{"$f":"O26","v":0},null,null,null,{"$f":"U26","v":0},null,{"$f":"IF(I25<>\"\",0,V26)","v":"L3N03"},null,{"$f":"IF(I25<>\"\",0,IF(AND(H26=\"TS4L3-RAM32\",I23=\"\"),VLOOKUP($F$26,TS4L3_RAM1CPU32GB,13,FALSE),IF(AND(H26=\"TS4L3-RAM32\",I23=1),VLOOKUP($F$26,TS4L3_RAM2CPU32GB,13,FALSE),IF(AND(H26=\"TS4L3-RAM64\",I23=\"\"),VLOOKUP($F$26,TS4L3_RAM1CPU64GB,13,FALSE),IF(AND(H26=\"TS4L3-RAM64\",I23=1),VLOOKUP($F$26,TS4L3_RAM2CPU64GB,13,FALSE),\"\")))))","v":"TS4L3-RAM32"},{"$f":"IF(AND(H26=\"TS4L3-RAM32\",I23=\"\"),VLOOKUP($F$26,TS4L3_RAM1CPU32GB,7,FALSE),IF(AND(H26=\"TS4L3-RAM32\",I23=1),VLOOKUP($F$26,TS4L3_RAM2CPU32GB,7,FALSE),IF(AND(H26=\"TS4L3-RAM64\",I23=\"\"),VLOOKUP($F$26,TS4L3_RAM1CPU64GB,7,FALSE),IF(AND(H26=\"TS4L3-RAM64\",I23=1),VLOOKUP($F$26,TS4L3_RAM2CPU64GB,7,FALSE),\"\"))))","v":0},{"$f":"IF(I25<>\"\",0,IF(AND(H26=\"TS4L3-RAM32\",I23=\"\"),VLOOKUP($F$26,TS4L3_RAM1CPU32GB,10,FALSE),IF(AND(H26=\"TS4L3-RAM32\",I23=1),VLOOKUP($F$26,TS4L3_RAM2CPU32GB,10,FALSE),IF(AND(H26=\"TS4L3-RAM64\",I23=\"\"),VLOOKUP($F$26,TS4L3_RAM1CPU64GB,10,FALSE),IF(AND(H26=\"TS4L3-RAM64\",I23=1),VLOOKUP($F$26,TS4L3_RAM2CPU64GB,10,FALSE),\"\")))))","v":0},{"$f":"IF(I25<>\"\",0,IF(AND(H26=\"TS4L3-RAM32\",I23=\"\"),VLOOKUP($F$26,TS4L3_RAM1CPU32GB,12,FALSE),IF(AND(H26=\"TS4L3-RAM32\",I23=1),VLOOKUP($F$26,TS4L3_RAM2CPU32GB,12,FALSE),IF(AND(H26=\"TS4L3-RAM64\",I23=\"\"),VLOOKUP($F$26,TS4L3_RAM1CPU64GB,12,FALSE),IF(AND(H26=\"TS4L3-RAM64\",I23=1),VLOOKUP($F$26,TS4L3_RAM2CPU64GB,12,FALSE),\"\")))))","v":"L3N03"}]
[]
[null,null,null,null,null,"Operating System STANDARD"]
[null,null,null,null,null,"No Operating System",null,{"$f":"VLOOKUP($F$29,TS4L3_OS,13,FALSE)","v":""},0,null,{"$f":"O29","v":0},null,null,null,{"$f":"VLOOKUP($F$29,TS4L3_OS,10,FALSE)*I29","v":0},{"$f":"VLOOKUP($F$29,TS4L3_OS,11,FALSE)","v":0},{"$f":"VLOOKUP($F29,TS4L3_OS,12,FALSE)","v":""},null,{"$f":"IF(AND(F23=\"No Additional Processor\",I29>=3),TRUE,FALSE)","v":false}]
[null,null,null,null,null,"Windows Server 2022 Standard Edition, Add License,2CORE",null,{"$f":"VLOOKUP($F$30,TS4L3_OS,13,FALSE)","v":"TS4L3-WINSRV2C"},0,null,{"$f":"O30","v":0},null,null,null,{"$f":"VLOOKUP($F$30,TS4L3_OS,10,FALSE)*I30","v":0},{"$f":"VLOOKUP($F$29,TS4L3_OS,11,FALSE)","v":0},{"$f":"VLOOKUP($F30,TS4L3_OS,12,FALSE)","v":"L3N21"},null,{"$f":"IF(AND(F23<>\"No Additional Processor\",I29>=3),TRUE,FALSE)","v":false}]
[]
[null,null,null,null,null,"Operating System Device CAL / User CAL"]
[null,null,null,null,null,"1-pack of Windows Server 2022/2019 Device CALs (STD or DC)",null,{"$f":"VLOOKUP($F$33,TS4L3_OS,13,FALSE)","v":"TS4L3-WINDEVCAL"},0,null,{"$f":"O33","v":0},null,null,null,{"$f":"VLOOKUP($F$33,TS4L3_OS,10,FALSE)*I33","v":0},{"$f":"VLOOKUP($F$29,TS4L3_OS,11,FALSE)","v":0},{"$f":"VLOOKUP($F33,TS4L3_OS,12,FALSE)","v":"L3N19"}]
[null,null,null,null,null,"1-pack of Windows Server 2022/2019 User CALs (STD or DC)",null,{"$f":"VLOOKUP($F$34,TS4L3_OS,13,FALSE)","v":"TS4L3-WINUSRCAL"},0,null,{"$f":"O34","v":0},null,null,null,{"$f":"VLOOKUP($F$34,TS4L3_OS,10,FALSE)*I34","v":0},{"$f":"VLOOKUP($F$29,TS4L3_OS,11,FALSE)","v":0},{"$f":"VLOOKUP($F34,TS4L3_OS,12,FALSE)","v":"L3N20"}]
[]
[null,null,null,null,null,"Disk Controller"]
[null,null,null,null,null,{"$f":"IF(I17=0,ConfigurationTS4L3!A98,ConfigurationTS4L3!A98)","v":"RAID 9350-16i 4GB Flash PCIe 12Gb Adapter"},null,{"$f":"VLOOKUP(F37,TS4L3_CTRL,13,FALSE)","v":"TS4L3-DiskController"},{"$f":"VLOOKUP($F37,TS4L3_CTRL,7,FALSE)","v":""},null,{"$f":"P37","v":0},null,null,null,{"$f":"IF(F37=ConfigurationTS4L3!A48,0,VLOOKUP($F37,TS4L4_CRTL,10,FALSE))","v":0},{"$f":"IF(I17=1,0,VLOOKUP($F37,TS4L4_CRTL,11,FALSE))","v":0},{"$f":"\"\"","v":""},null,{"$f":"IF(F11=\"PowerEdge R7525 Server (vSAN Ready)\",\"Vsan\",\"\")","v":""}]
[]
[null,null,null,null,null,"Abilitazione RAID su dischi NVMe",null,{"$f":"IF(F40=\"NO RAID\",\"Il RAID sui dischi NVMe di base non è abilitato\",\"\")","v":""}]
[null,null,null,null,null,"Intel VROC (VMD NVMe RAID) Premium",null,{"$f":"VLOOKUP(F40,TS4L3_RAID,13,FALSE)","v":"TS4L3-VROC"},{"$f":"VLOOKUP($F40,TS4L3_RAID,7,FALSE)","v":1},null,{"$f":"P40","v":380},null,null,null,{"$f":"VLOOKUP($F40,TS4L3_RAID,10,FALSE)","v":0},{"$f":"VLOOKUP($F40,TS4L3_RAID,11,FALSE)","v":380},{"$f":"VLOOKUP($F40,TS4L3_RAID,12,FALSE)","v":"L3N52"},null,{"$f":"IF(F17=\"PowerEdge R7525 Server (vSAN Ready)\",\"Vsan\",\"\")","v":""}]
[]
[null,null,null,null,null,"Hard Drivers Bays n° 12 + 2 Dischi nVME di Boot",null,"Usati","Disponibili",null,{"$f":"IF(I43<0,\"Troppi Dischi\",\"\")","v":""}]
[null,null,null,null,null,null,null,{"$f":"SUM(I45:I79)","v":6},{"$f":"12-H43","v":6}]
[]
[null,null,null,null,null,{"$f":"ConfigurationTS4L3!A70","v":" 8TB 7.2K SAS 12Gb Hot Swap 512e HDD"},null,{"$f":"VLOOKUP($F45,TS4L4_HDD,13,FALSE)","v":"TS4L3-HDD8TB"},1,null,{"$f":"O45","v":206.8},null,null,null,{"$f":"IF(K42<>\"\",0,VLOOKUP($F45,TS4L4_HDD,10,FALSE))*I45","v":206.8},{"$f":"VLOOKUP($F45,TS4L4_HDD,11,FALSE)","v":0},{"$f":"IF(K42<>\"\",\"\",VLOOKUP($F45,TS4L4_HDD,12,FALSE))","v":"L3N11"}]
[]
[null,null,null,null,null,{"$f":"ConfigurationTS4L3!A71","v":"2TB 7.2K SAS 12Gb Hot Swap 512n HDD"},null,{"$f":"VLOOKUP($F47,TS4L4_HDD,13,FALSE)","v":"TS4L3-HDD2TB"},2,null,{"$f":"O47","v":311.77999999999997},null,null,null,{"$f":"IF(K42<>\"\",0,VLOOKUP($F47,TS4L4_HDD,10,FALSE))*I47","v":311.77999999999997},{"$f":"VLOOKUP($F47,TS4L4_HDD,11,FALSE)","v":0},{"$f":"IF(K42<>\"\",\"\",VLOOKUP($F47,TS4L4_HDD,12,FALSE))","v":"L3N12"}]
[]
[null,null,null,null,null,{"$f":"ConfigurationTS4L3!A72","v":"1TB 7.2K SAS 12Gb Hot Swap 512n HDD"},null,{"$f":"VLOOKUP($F49,TS4L4_HDD,13,FALSE)","v":"TS4L3-HDD1TB"},3,null,{"$f":"O49","v":416.79},null,null,null,{"$f":"IF(K42<>\"\",0,VLOOKUP($F49,TS4L4_HDD,10,FALSE))*I49","v":416.79},{"$f":"VLOOKUP($F49,TS4L4_HDD,11,FALSE)","v":0},{"$f":"IF(K42<>\"\",\"\",VLOOKUP($F49,TS4L4_HDD,12,FALSE))","v":"L3N13"}]
[]
[null,null,null,null,null,{"$f":"ConfigurationTS4L3!A73","v":"12TB 7.2K SAS 12Gb Hot Swap 512e HDD"},null,{"$f":"VLOOKUP($F51,TS4L4_HDD,13,FALSE)","v":"TS4L3-HDD12TB"},0,null,{"$f":"O51","v":0},null,null,null,{"$f":"IF(K42<>\"\",0,VLOOKUP($F51,TS4L4_HDD,10,FALSE))*I51","v":0},{"$f":"VLOOKUP($F51,TS4L4_HDD,11,FALSE)","v":0},{"$f":"IF(K42<>\"\",\"\",VLOOKUP($F51,TS4L4_HDD,12,FALSE))","v":"L3N14"}]
[]
[null,null,null,null,null,{"$f":"ConfigurationTS4L3!A74","v":"PM1643a 3.84TB Entry SAS 12Gb Hot Swap SSD"},null,{"$f":"VLOOKUP($F53,TS4L4_HDD,13,FALSE)","v":"TS4L3-SSD-RI3,8TB"},0,null,{"$f":"O53","v":0},null,null,null,{"$f":"IF(K42<>\"\",0,VLOOKUP($F53,TS4L4_HDD,10,FALSE))*I53","v":0},{"$f":"VLOOKUP($F53,TS4L4_HDD,11,FALSE)","v":0},{"$f":"IF(K42<>\"\",\"\",VLOOKUP($F53,TS4L4_HDD,12,FALSE))","v":"L3N26"}]
[]
[null,null,null,null,null,{"$f":"ConfigurationTS4L3!A75","v":"PM1645a 1.6TB Mainstream SAS 12Gb Hot Swap SSD"},null,{"$f":"VLOOKUP($F55,TS4L4_HDD,13,FALSE)","v":"TS4L3-SSD-RI1,6TB"},0,null,{"$f":"O55","v":0},null,null,null,{"$f":"IF(K42<>\"\",0,VLOOKUP($F55,TS4L4_HDD,10,FALSE))*I55","v":0},{"$f":"VLOOKUP($F55,TS4L4_HDD,11,FALSE)*I55","v":0},{"$f":"IF(K42<>\"\",\"\",VLOOKUP($F55,TS4L4_HDD,12,FALSE))","v":"L3N27"}]
[]
[null,null,null,null,null,{"$f":"ConfigurationTS4L3!A76","v":"ThinkSystem   3.2TB Mixed Use SAS 24Gb HS SSD"},null,{"$f":"VLOOKUP($F57,TS4L4_HDD,13,FALSE)","v":"TS4L3-SSDSAS3.2TBMU"},0,null,{"$f":"O57","v":0},null,null,null,{"$f":"IF($K$42<>\"\",0,VLOOKUP($F57,TS4L4_HDD,10,FALSE))*I57","v":0},{"$f":"VLOOKUP($F57,TS4L4_HDD,11,FALSE)","v":0},{"$f":"IF($K$42<>\"\",\"\",VLOOKUP($F57,TS4L4_HDD,12,FALSE))","v":"L3N54"}]
[]
[null,null,null,null,null,{"$f":"ConfigurationTS4L3!A77","v":"ThinkSystem  6.4TB Mixed Use SAS 24Gb HS SSD"},null,{"$f":"VLOOKUP($F59,TS4L4_HDD,13,FALSE)","v":"TS4L3-SSDSAS6.4TBMU"},0,null,{"$f":"O59","v":0},null,null,null,{"$f":"IF($K$42<>\"\",0,VLOOKUP($F59,TS4L4_HDD,10,FALSE))*I59","v":0},{"$f":"VLOOKUP($F59,TS4L4_HDD,11,FALSE)","v":0},{"$f":"IF($K$42<>\"\",\"\",VLOOKUP($F59,TS4L4_HDD,12,FALSE))","v":"L3N55"}]
[]
[null,null,null,null,null,{"$f":"ConfigurationTS4L3!A78","v":"ThinkSystem 7.68TB Read Intensive SAS 24Gb HS SSD"},null,{"$f":"VLOOKUP($F61,TS4L4_HDD,13,FALSE)","v":"TS4L3-SSDSAS7.68TBRI"},0,null,{"$f":"O61","v":0},null,null,null,{"$f":"IF($K$42<>\"\",0,VLOOKUP($F61,TS4L4_HDD,10,FALSE))*I61","v":0},{"$f":"VLOOKUP($F61,TS4L4_HDD,11,FALSE)","v":0},{"$f":"IF($K$42<>\"\",\"\",VLOOKUP($F61,TS4L4_HDD,12,FALSE))","v":"L3N56"}]
[]
[null,null,null,null,null,{"$f":"ConfigurationTS4L3!A79","v":"ThinkSystem  15.36TB Read Intensive SAS 24Gb HS SSD"},null,{"$f":"VLOOKUP($F63,TS4L4_HDD,13,FALSE)","v":"TS4L3-SSDSAS15.36TBRI"},0,null,{"$f":"O63","v":0},null,null,null,{"$f":"IF($K$42<>\"\",0,VLOOKUP($F63,TS4L4_HDD,10,FALSE))*I63","v":0},{"$f":"VLOOKUP($F63,TS4L4_HDD,11,FALSE)","v":0},{"$f":"IF($K$42<>\"\",\"\",VLOOKUP($F63,TS4L4_HDD,12,FALSE))","v":"L3N57"}]
[]
[null,null,null,null,null,{"$f":"ConfigurationTS4L3!A80","v":"ThinkSystem  3.84TB Read Intensive SATA 6Gb HS SSD"},null,{"$f":"VLOOKUP($F65,TS4L4_HDD,13,FALSE)","v":"TS4L3-SSDSATA3.84TBRI"},0,null,{"$f":"O65","v":0},null,null,null,{"$f":"IF($K$42<>\"\",0,VLOOKUP($F65,TS4L4_HDD,10,FALSE))*I65","v":0},{"$f":"VLOOKUP($F65,TS4L4_HDD,11,FALSE)","v":0},{"$f":"IF($K$42<>\"\",\"\",VLOOKUP($F65,TS4L4_HDD,12,FALSE))","v":"L3N58"}]
[]
[null,null,null,null,null,{"$f":"ConfigurationTS4L3!A81","v":"ThinkSystem   7.68TB Read Intensive SATA 6Gb HS SSD"},null,{"$f":"VLOOKUP($F67,TS4L4_HDD,13,FALSE)","v":"TS4L3-SSDSATA7.68TBRI"},0,null,{"$f":"O67","v":0},null,null,null,{"$f":"IF($K$42<>\"\",0,VLOOKUP($F67,TS4L4_HDD,10,FALSE))*I67","v":0},{"$f":"VLOOKUP($F67,TS4L4_HDD,11,FALSE)*I67","v":0},{"$f":"IF($K$42<>\"\",\"\",VLOOKUP($F67,TS4L4_HDD,12,FALSE))","v":"L3N59"}]
[]
[null,null,null,null,null,{"$f":"ConfigurationTS4L3!A82","v":"ThinkSystem 20TB 7.2K SAS 12Gb Hot Swap 512e HDD"},null,{"$f":"VLOOKUP($F69,TS4L4_HDD,13,FALSE)","v":"TS4L3-HDD_SAS20TB_HW"},0,null,{"$f":"O69","v":0},null,null,null,{"$f":"IF($K$42<>\"\",0,VLOOKUP($F69,TS4L4_HDD,10,FALSE))*I69","v":0},{"$f":"VLOOKUP($F69,TS4L4_HDD,11,FALSE)","v":0},{"$f":"IF($K$42<>\"\",\"\",VLOOKUP($F69,TS4L4_HDD,12,FALSE))","v":"L3N60"}]
[]
[null,null,null,null,null,{"$f":"ConfigurationTS4L3!A83","v":"ThinkSystem 16TB 7.2K SATA 6Gb Hot Swap 512e HDD"},null,{"$f":"VLOOKUP($F71,TS4L4_HDD,13,FALSE)","v":"TS4L3-HDD_SATA16TB_HW"},0,null,{"$f":"O71","v":0},null,null,null,{"$f":"IF($K$42<>\"\",0,VLOOKUP($F71,TS4L4_HDD,10,FALSE))*I71","v":0},{"$f":"VLOOKUP($F71,TS4L4_HDD,11,FALSE)","v":0},{"$f":"IF($K$42<>\"\",\"\",VLOOKUP($F71,TS4L4_HDD,12,FALSE))","v":"L3N61"}]
[]
[null,null,null,null,null,{"$f":"ConfigurationTS4L3!A84","v":"ThinkSystem 3.5\" 16TB 7.2K SAS 12Gb Hot Swap 512e HDD"},null,{"$f":"VLOOKUP($F73,TS4L4_HDD,13,FALSE)","v":"TS4L3-HDD_SAS16TB_HW"},0,null,{"$f":"O73","v":0},null,null,null,{"$f":"IF($K$42<>\"\",0,VLOOKUP($F73,TS4L4_HDD,10,FALSE))*I73","v":0},{"$f":"VLOOKUP($F73,TS4L4_HDD,11,FALSE)","v":0},{"$f":"IF($K$42<>\"\",\"\",VLOOKUP($F73,TS4L4_HDD,12,FALSE))","v":"L3N62"}]
[]
[null,null,null,null,null,{"$f":"ConfigurationTS4L3!A85","v":"ThinkSystem 3.5\"  800GB Write Intensive SAS 12Gb HS SSD"},null,{"$f":"VLOOKUP($F75,TS4L4_HDD,13,FALSE)","v":"TS4L3-SSD_SAS800GB_WI"},0,null,{"$f":"O75","v":0},null,null,null,{"$f":"IF($K$42<>\"\",0,VLOOKUP($F75,TS4L4_HDD,10,FALSE))*I75","v":0},{"$f":"VLOOKUP($F75,TS4L4_HDD,11,FALSE)","v":0},{"$f":"IF($K$42<>\"\",\"\",VLOOKUP($F75,TS4L4_HDD,12,FALSE))","v":"L3N63"}]
[]
[null,null,null,null,null,{"$f":"ConfigurationTS4L3!A86","v":"ThinkSystem 3.5\"  1.6TB Write Intensive SAS 12Gb HS SSD"},null,{"$f":"VLOOKUP($F77,TS4L4_HDD,13,FALSE)","v":"TS4L3-SSD_SAS1.6TB_WI"},0,null,{"$f":"O77","v":0},null,null,null,{"$f":"IF($K$42<>\"\",0,VLOOKUP($F77,TS4L4_HDD,10,FALSE))*I77","v":0},{"$f":"VLOOKUP($F77,TS4L4_HDD,11,FALSE)","v":0},{"$f":"IF($K$42<>\"\",\"\",VLOOKUP($F77,TS4L4_HDD,12,FALSE))","v":"L3N64"}]
[]
[null,null,null,null,null,{"$f":"ConfigurationTS4L3!A87","v":"ThinkSystem 3.5\"  3.2TB Write Intensive SAS 12Gb HS SSD"},null,{"$f":"VLOOKUP($F79,TS4L4_HDD,13,FALSE)","v":"TS4L3-SSD_SAS3.2TB_WI"},0,null,{"$f":"O79","v":0},null,null,null,{"$f":"IF($K$42<>\"\",0,VLOOKUP($F79,TS4L4_HDD,10,FALSE))*I79","v":0},{"$f":"VLOOKUP($F79,TS4L4_HDD,11,FALSE)*I79","v":0},{"$f":"IF($K$42<>\"\",\"\",VLOOKUP($F79,TS4L4_HDD,12,FALSE))","v":"L3N65"}]
[]
[null,null,null,null,null,"Power Supply",{"$f":"IF(K81=\"\",\"\",R82)","v":""}]
[null,null,null,null,null,{"$f":"ConfigurationTS4L3!A94","v":"2 x 750W(230V/115V) Platinum Hot-Swap Power Supply v2"},null,null,null,null,null,null,null,null,{"$f":"VLOOKUP($F82,TS4L4_PSU,10,FALSE)","v":0},{"$f":"VLOOKUP($F82,TS4L4_PSU,11,FALSE)","v":0},{"$f":"IF(I82<>1,\"\",VLOOKUP($F82,TS4L4_PSU,12,FALSE))","v":""}]
[]
[null,null,null,null,null,"Embedded Systems Management"]
[null,null,null,null,null,"Xclarity Controller Enterpise"]
[]
[]
[]
[null,null,null,null,null,"PCI Slot 1 Processor 1 x16 PCIe Gen4 for HL/FH"]
[null,null,null,null,null,"RISERVATO SCHEDA SAS HBA ThinkSystem 4350",null,{"$f":"VLOOKUP($F90,TS4L3_PCI,13,)","v":""},{"$f":"VLOOKUP($F90,TS4L3_PCI,7,FALSE)","v":""},null,{"$f":"O90+P90","v":0},null,null,null,{"$f":"VLOOKUP($F90,TS4L3_PCI,10,FALSE)","v":0},{"$f":"VLOOKUP($F90,TS4L3_PCI,11,FALSE)","v":0},{"$f":"VLOOKUP($F90,TS4L3_PCI,12,FALSE)","v":""}]
[]
[null,null,null,null,null,"PCI Slot 2 Processor 1 x8 PCIe Gen4 for HL/FH"]
[null,null,null,null,null,"Slot non Utilizzato",null,{"$f":"VLOOKUP($F93,TS4L3_PCI,13,FALSE)","v":""},{"$f":"VLOOKUP($F93,TS4L3_PCI,7,FALSE)","v":""},null,{"$f":"O93+P93","v":0},null,null,null,{"$f":"VLOOKUP($F93,TS4L3_PCI,10,FALSE)","v":0},{"$f":"VLOOKUP($F93,TS4L3_PCI,11,FALSE)","v":0},{"$f":"VLOOKUP($F93,TS4L3_PCI,12,FALSE)","v":""}]
[]
[null,null,null,null,null,"PCI Slot 3 Processor 1 x8 PCIe Gen4 for HL/FH"]
[null,null,null,null,null,"Slot non Utilizzato",null,{"$f":"VLOOKUP($F96,TS4L3_PCI,13,FALSE)","v":""},{"$f":"VLOOKUP($F96,TS4L3_PCI,7,FALSE)","v":""},null,{"$f":"O96+P96","v":0},null,null,null,{"$f":"VLOOKUP($F96,TS4L3_PCI,10,FALSE)","v":0},{"$f":"VLOOKUP($F96,TS4L3_PCI,11,FALSE)","v":0},{"$f":"VLOOKUP($F96,TS4L3_PCI,12,FALSE)","v":""}]
[]
[null,null,null,null,null,"PCI Slot 4 Processor 2 x8 PCIe Gen4 for HL/FH",{"$f":"IF($S$88=\"SW\",\"GPU Slot\",IF($S$88=\"DW\",\"GPU Slot\",\"\"))","v":""}]
[null,null,null,null,null,"Slot non Utilizzato",null,{"$f":"VLOOKUP($F99,TS4L3_PCI,13,FALSE)","v":""},{"$f":"VLOOKUP($F99,TS4L3_PCI,7,FALSE)","v":""},null,{"$f":"O99+P99","v":0},null,null,null,{"$f":"VLOOKUP($F99,TS4L3_PCI,10,FALSE)","v":0},{"$f":"VLOOKUP($F99,TS4L3_PCI,11,FALSE)","v":0},{"$f":"VLOOKUP($F99,TS4L3_PCI,12,FALSE)","v":""}]
[]
[null,null,null,null,null,"PCI Slot 5 Processor 2 x8 PCIe Gen4 for HL/FH",{"$f":"IF($S$88=\"SW\",\"GPU Slot\",\"\")","v":""}]
[null,null,null,null,null,"Slot non Utilizzato",null,{"$f":"VLOOKUP($F102,TS4L3_PCI,13,FALSE)","v":""},{"$f":"VLOOKUP($F102,TS4L3_PCI,7,FALSE)","v":""},null,{"$f":"O102+P102","v":0},null,null,null,{"$f":"VLOOKUP($F102,TS4L3_PCI,10,FALSE)","v":0},{"$f":"VLOOKUP($F102,TS4L3_PCI,11,FALSE)","v":0},{"$f":"VLOOKUP($F102,TS4L3_PCI,12,FALSE)","v":""}]
[]
[null,null,null,null,null,"PCI Slot 6 Processor 2 x16 PCIe Gen4 for HL/LP"]
[null,null,null,null,null,"Slot non Utilizzato",null,{"$f":"VLOOKUP($F105,TS4L3_PCI,13,FALSE)","v":""},{"$f":"VLOOKUP($F105,TS4L3_PCI,7,FALSE)","v":""},null,{"$f":"O105+P105","v":0},null,null,null,{"$f":"VLOOKUP($F105,TS4L3_PCI,10,FALSE)","v":0},{"$f":"VLOOKUP($F105,TS4L3_PCI,11,FALSE)","v":0},{"$f":"VLOOKUP($F105,TS4L3_PCI,12,FALSE)","v":""}]
[]
[null,null,null,null,null,"PCI Slot 7 Processor 2 x8 PCIe Gen4 for HL/FH",{"$f":"IF($S$88=\"SW\",\"GPU Slot\",\"\")","v":""}]
[null,null,null,null,null,"Slot non Utilizzato",null,{"$f":"VLOOKUP($F108,TS4L3_PCI,13,FALSE)","v":""},{"$f":"VLOOKUP($F108,TS4L3_PCI,7,FALSE)","v":""},null,{"$f":"O108+P108","v":0},null,null,null,{"$f":"VLOOKUP($F108,TS4L3_PCI,10,FALSE)","v":0},{"$f":"VLOOKUP($F108,TS4L3_PCI,11,FALSE)","v":0},{"$f":"VLOOKUP($F108,TS4L3_PCI,12,FALSE)","v":""}]
[]
[null,null,null,null,null,"PCI Slot 8 Processor 2 x8 PCIe Gen4 for HL/FH",{"$f":"IF($S$88=\"SW\",\"GPU Slot\",IF($S$88=\"DW\",\"GPU Slot\",\"\"))","v":""}]
[null,null,null,null,null,"Slot non Utilizzato",null,{"$f":"VLOOKUP($F111,TS4L3_PCI,13,FALSE)","v":""},{"$f":"VLOOKUP($F111,TS4L3_PCI,7,FALSE)","v":""},null,{"$f":"O111+P111","v":0},null,null,null,{"$f":"VLOOKUP($F111,TS4L3_PCI,10,FALSE)","v":0},{"$f":"VLOOKUP($F111,TS4L3_PCI,11,FALSE)","v":0},{"$f":"VLOOKUP($F111,TS4L3_PCI,12,FALSE)","v":""}]
[]
[null,null,null,null,null,"Garanzia"]
[null,null,null,null,null,"Manutenzione in garanzia (36 mesi)",null,{"$f":"VLOOKUP($F114,TS4L4_WARR,13,FALSE)","v":""},{"$f":"VLOOKUP($F114,TS4L4_WARR,7,FALSE)","v":""},null,{"$f":"O114","v":0},null,null,null,{"$f":"VLOOKUP($F114,TS4L4_WARR,10,FALSE)","v":0},{"$f":"VLOOKUP($F114,TS4L4_WARR,11,FALSE)","v":0},{"$f":"VLOOKUP($F114,TS4L4_WARR,12,FALSE)","v":""}]
[]
[null,null,null,null,null,"Hard Disk Retention",null,null,{"$f":"IF(AND($F$117=\"Hard Disk Retention 60 mesi\",$I$114=\"\"),\"Selezionare Estensione di Garanzia 24 Mesi\",IF(AND(F114=\"Estensione della Garanzia Per ulteriori 24 Mesi\",F117=\"Hard Disk Retention 36 mesi\"),\"Selezionare Hard Disk Retention 60 Mesi\",\"\"))","v":""}]
[null,null,null,null,null,"No Hard Disk Retention",null,{"$f":"VLOOKUP(F117,TS4L4_HDDRET,13,FALSE)","v":""},{"$f":"IF(F117=\"\",\"\",IF(F117=\"No Hard Disk Retention\",\"\",VLOOKUP(F117,TS4L4_HDDRET,7,FALSE)))","v":""},null,{"$f":"O117","v":0},null,null,null,{"$f":"IF(I116<>\"\",\"\",VLOOKUP(F117,TS4L4_HDDRET,10,FALSE))","v":0},{"$f":"IFERROR(U117,VLOOKUP(F117,TS4L4_HDDRET,11,FALSE))","v":0},{"$f":"IF(I116<>\"\",\"\",VLOOKUP(F117,TS4L4_HDDRET,12,FALSE))","v":""}]
[]
[null,null,null,null,null,null,null,"Configurazione",{"$f":"SUM(O11:O117)*I8","v":0},null,null,null,null,null,{"$f":"IF(AND($I$117=1,$I$114=\"\"),\"Selezionare Estensione di Garanzia 24 Mesi\",\"\")","v":""}]
[null,null,null,null,null,null,null,0.2,{"$f":"SUM(P11:P117)*I8","v":0}]
[null,null,null,null,null,null,null,"Totale",{"$f":"SUM(I119:I120)","v":0}]
[]
[null,null,null,null,null,"NOTE"]

{"sheet":"Altre_Opzioni","index":4,"n_rows":77,"n_cols":14,"rows_kept":77,"cut":false,"hidden":false,"merged":[[71,5,72,5],[75,5,76,5],[44,5,45,5],[28,5,30,5],[1,7,1,9],[4,5,5,5],[7,5,8,5],[11,5,12,5],[67,5,68,5]]}
[]
[null,null,null,null,"Opzioni",null,null,"Totale altre opzioni"]
[]
[]
[null,null,null,null,"Opzione Rack APC con PDU Monofase"]
[null,null,null,null,"Armadio Rack 42U 600x1200, 2 x PDU Monofase 2G, ZeroU, 32A, 230V, (36) C13 & (6) C19",null,{"$f":"VLOOKUP($E6,TS4L4_ALL,13,FALSE)","v":{"$error":"#NAME?"}},null,null,null,null,{"$f":"VLOOKUP($E6,TS4L4_ALL,10,FALSE)*H6","v":{"$error":"#NAME?"}},{"$f":"VLOOKUP($E6,TS4L4_ALL,11,FALSE)*H6","v":{"$error":"#NAME?"}},{"$f":"VLOOKUP($E6,TS4L4_ALL,12,FALSE)","v":{"$error":"#NAME?"}}]
[]
[null,null,null,null,"Opzione Rack APC con PDU Trifase"]
[null,null,null,null,"Armadio Rack 42U 600x1200, 2 x PDU Trifase 2G, ZeroU, 22.0kW(32A) 17.3kW(24A), 230V, (30) C13 & (12) C19",null,{"$f":"VLOOKUP($E9,TS4L4_ALL,13,FALSE)","v":{"$error":"#NAME?"}},null,null,null,null,{"$f":"VLOOKUP($E9,TS4L4_ALL,10,FALSE)*H9","v":{"$error":"#NAME?"}},{"$f":"VLOOKUP($E9,TS4L4_ALL,11,FALSE)*H9","v":{"$error":"#NAME?"}},{"$f":"VLOOKUP($E9,TS4L4_ALL,12,FALSE)","v":{"$error":"#NAME?"}}]
[null,null,null,null,null,null,null,{"$f":"SUM(L13:L77)","v":0}]
[]
[null,null,null,null,"OpzRack"]
[null,null,null,null,{"$f":"ConfigurationTS4L3!A112","v":"Armadio Rack 42U"},null,{"$f":"VLOOKUP($E13,TS4L3_RACK,13,FALSE)","v":"TS4L3-RACK"},0,null,{"$f":"L13","v":0},null,{"$f":"VLOOKUP($E13,TS4L3_RACK,10,FALSE)*H13","v":0},{"$f":"VLOOKUP($E13,TS4L3_RACK,11,FALSE)","v":0},{"$f":"VLOOKUP($E13,TS4L3_RACK,12,FALSE)","v":"L3N25"}]
[]
[]
[null,null,null,null,"Prodotti VMware"]
[null,null,null,null,"VMware vSphere 7 Standard Acceleration Kit OEM for 6 CPU, 3YR License and Maintenance",null,{"$f":"VLOOKUP($E17,TS4L4_ALL,13,FALSE)","v":{"$error":"#NAME?"}},null,null,null,null,null,{"$f":"VLOOKUP($E17,TS4L4_ALL,11,FALSE)*H17","v":{"$error":"#NAME?"}},{"$f":"VLOOKUP($E17,TS4L4_ALL,12,FALSE)","v":{"$error":"#NAME?"}}]
[null,null,null,null,"VMware vSphere 7 Standard OEM, 1 CPU (max 32 cores/CPU socket), 3YR License and Maintenance",null,{"$f":"VLOOKUP($E18,TS4L4_ALL,13,FALSE)","v":{"$error":"#NAME?"}},null,null,null,null,null,{"$f":"VLOOKUP($E18,TS4L4_ALL,11,FALSE)*H18","v":{"$error":"#NAME?"}},{"$f":"VLOOKUP($E18,TS4L4_ALL,12,FALSE)","v":{"$error":"#NAME?"}}]
[null,null,null,null,"VMware vSphere 7 Enterprise Plus Acceleration Kit OEM for 6 CPU, 3YR License and Maintenance",null,{"$f":"VLOOKUP($E19,TS4L4_ALL,13,FALSE)","v":{"$error":"#NAME?"}},null,null,null,null,null,{"$f":"VLOOKUP($E19,TS4L4_ALL,11,FALSE)*H19","v":{"$error":"#NAME?"}},{"$f":"VLOOKUP($E19,TS4L4_ALL,12,FALSE)","v":{"$error":"#NAME?"}}]
[null,null,null,null,"VMware vSphere 7 Enterprise Plus OEM, 1 CPU (max 32 cores/CPU socket), 3YR License and Maintenance",null,{"$f":"VLOOKUP($E20,TS4L4_ALL,13,FALSE)","v":{"$error":"#NAME?"}},null,null,null,null,null,{"$f":"VLOOKUP($E20,TS4L4_ALL,11,FALSE)*H20","v":{"$error":"#NAME?"}},{"$f":"VLOOKUP($E20,TS4L4_ALL,12,FALSE)","v":{"$error":"#NAME?"}}]
[null,null,null,null,"VMware vCenter 7 Standard OEM ,Per Instance,3YR License and Maintenance",null,{"$f":"VLOOKUP($E21,TS4L4_ALL,13,FALSE)","v":{"$error":"#NAME?"}},null,null,null,null,null,{"$f":"VLOOKUP($E21,TS4L4_ALL,11,FALSE)*H21","v":{"$error":"#NAME?"}},{"$f":"VLOOKUP($E21,TS4L4_ALL,12,FALSE)","v":{"$error":"#NAME?"}}]
[null,null,null,null,"VMware vSAN 7 Enterprise OEM, 1 CPU (max 32 cores/CPU socket), 3YR License and Maintenance",null,{"$f":"VLOOKUP($E22,TS4L4_ALL,13,FALSE)","v":{"$error":"#NAME?"}},null,null,null,null,null,{"$f":"VLOOKUP($E22,TS4L4_ALL,11,FALSE)*H22","v":{"$error":"#NAME?"}},{"$f":"VLOOKUP($E22,TS4L4_ALL,12,FALSE)","v":{"$error":"#NAME?"}}]
[null,null,null,null,"VMware Horizon 8 Advanced OEM,10 Pack,CCU, 3YR License and Maintenance",null,{"$f":"VLOOKUP($E23,TS4L4_ALL,13,FALSE)","v":{"$error":"#NAME?"}},null,null,null,null,null,{"$f":"VLOOKUP($E23,TS4L4_ALL,11,FALSE)*H23","v":{"$error":"#NAME?"}},{"$f":"VLOOKUP($E23,TS4L4_ALL,12,FALSE)","v":{"$error":"#NAME?"}}]
[null,null,null,null,"VMware Horizon 8 Enterprise OEM,10 Pack,CCU, 3YR License and Maintenance",null,{"$f":"VLOOKUP($E24,TS4L4_ALL,13,FALSE)","v":{"$error":"#NAME?"}},null,null,null,null,null,{"$f":"VLOOKUP($E24,TS4L4_ALL,11,FALSE)*H24","v":{"$error":"#NAME?"}},{"$f":"VLOOKUP($E24,TS4L4_ALL,12,FALSE)","v":{"$error":"#NAME?"}}]
[null,null,null,null,"VMware Horizon Advanced OEM, 10 Pack, Named User, 3YR License and Maintenance",null,{"$f":"VLOOKUP($E25,TS4L4_ALL,13,FALSE)","v":{"$error":"#NAME?"}},null,null,null,null,null,{"$f":"VLOOKUP($E25,TS4L4_ALL,11,FALSE)*H25","v":{"$error":"#NAME?"}},{"$f":"VLOOKUP($E25,TS4L4_ALL,12,FALSE)","v":{"$error":"#NAME?"}}]
[null,null,null,null,"VMware Horizon 8 Enterprise OEM,10 Pack, Named User, 3YR License and Maintenance",null,{"$f":"VLOOKUP($E26,TS4L4_ALL,13,FALSE)","v":{"$error":"#NAME?"}},null,null,null,null,null,{"$f":"VLOOKUP($E26,TS4L4_ALL,11,FALSE)*H26","v":{"$error":"#NAME?"}},{"$f":"VLOOKUP($E26,TS4L4_ALL,12,FALSE)","v":{"$error":"#NAME?"}}]
[]
[]
[null,null,null,null,"Enclosure Dischi SAS 3.5\" (No disk)"]
[null,null,null,null,"Enclosure SAS 12 Slot 3.5\", 3YR ProSupport and 4hr Mission Critical",null,{"$f":"VLOOKUP($E30,TS4L4_ALL,13,FALSE)","v":{"$error":"#NAME?"}},null,null,null,null,null,{"$f":"VLOOKUP($E30,TS4L4_ALL,11,FALSE)*H30","v":{"$error":"#NAME?"}},{"$f":"VLOOKUP($E30,TS4L4_ALL,12,FALSE)","v":{"$error":"#NAME?"}}]
[null,null,null,null,"Enclosure SAS 12 Slot 3.5\", 5YR ProSupport and 4hr Mission Critical",null,{"$f":"VLOOKUP($E31,ConfigurationTS4L3!#REF!,13,FALSE)","v":{"$error":"#REF!"}},null,null,null,null,null,{"$f":"VLOOKUP($E31,TS4L4_ALL,11,FALSE)*H31","v":{"$error":"#NAME?"}},{"$f":"VLOOKUP($E31,TS4L4_ALL,12,FALSE)","v":{"$error":"#NAME?"}}]
[null,null,null,null,"Dischi per Enclosure 3.5\""]
[null,null,null,null,"HDD 16TB SAS 12Gbps 7k 3.5in Hot-Plug per Enclosure 3.5\"",null,{"$f":"VLOOKUP($E33,ConfigurationTS4L3!#REF!,13,FALSE)","v":{"$error":"#REF!"}},null,null,null,null,null,{"$f":"VLOOKUP($E33,TS4L4_ALL,11,FALSE)*H33","v":{"$error":"#NAME?"}},{"$f":"VLOOKUP($E33,TS4L4_ALL,12,FALSE)","v":{"$error":"#NAME?"}}]
[null,null,null,null,"HDD 12TB SAS 12Gbps 7k 3.5in Hot-Plug per Enclosure 3.5\"",null,{"$f":"VLOOKUP($E34,ConfigurationTS4L3!#REF!,13,FALSE)","v":{"$error":"#REF!"}},null,null,null,null,null,{"$f":"VLOOKUP($E34,TS4L4_ALL,11,FALSE)*H34","v":{"$error":"#NAME?"}},{"$f":"VLOOKUP($E34,TS4L4_ALL,12,FALSE)","v":{"$error":"#NAME?"}}]
[null,null,null,null,"HDD 8TB SAS 12Gbps 7k 3.5in Hot-Plug per Enclosure 3.5\"",null,{"$f":"VLOOKUP($E35,ConfigurationTS4L3!#REF!,13,FALSE)","v":{"$error":"#REF!"}},null,null,null,null,null,{"$f":"VLOOKUP($E35,TS4L4_ALL,11,FALSE)*H35","v":{"$error":"#NAME?"}},{"$f":"VLOOKUP($E35,TS4L4_ALL,12,FALSE)","v":{"$error":"#NAME?"}}]
[]
[null,null,null,null,"Enclosure Dischi SAS 2.5\" (No disk)"]
[null,null,null,null,"Enclosure SAS 12 Slot 2.5\", 3YR ProSupport and 4hr Mission Critical",null,{"$f":"VLOOKUP($E38,TS4L4_ALL,13,FALSE)","v":{"$error":"#NAME?"}},null,null,null,null,null,{"$f":"VLOOKUP($E38,TS4L4_ALL,11,FALSE)*H38","v":{"$error":"#NAME?"}},{"$f":"VLOOKUP($E38,TS4L4_ALL,12,FALSE)","v":{"$error":"#NAME?"}}]
[null,null,null,null,"Enclosure SAS 12 Slot 2.5\", 5YR ProSupport and 4hr Mission Critical",null,{"$f":"VLOOKUP($E39,ConfigurationTS4L3!#REF!,13,FALSE)","v":{"$error":"#REF!"}},null,null,null,null,null,{"$f":"VLOOKUP($E39,TS4L4_ALL,11,FALSE)*H39","v":{"$error":"#NAME?"}},{"$f":"VLOOKUP($E39,TS4L4_ALL,12,FALSE)","v":{"$error":"#NAME?"}}]
[null,null,null,null,"Dischi per Enclosure 2.5\""]
[null,null,null,null,"HDD 2400GB 10K SAS 12Gbps 2.5in Hot-plug per Enclosure 2.5\"",null,{"$f":"VLOOKUP($E41,ConfigurationTS4L3!#REF!,13,FALSE)","v":{"$error":"#REF!"}},null,null,null,null,null,{"$f":"VLOOKUP($E41,TS4L4_ALL,11,FALSE)*H41","v":{"$error":"#NAME?"}},{"$f":"VLOOKUP($E41,TS4L4_ALL,12,FALSE)","v":{"$error":"#NAME?"}}]
[null,null,null,null,"SSD 960GB SAS RI 12Gbps 2.5in Hot-plug, 1 DWPD per Enclosure 2.5\"",null,{"$f":"VLOOKUP($E42,TS4L4_ALL,13,FALSE)","v":{"$error":"#NAME?"}},null,null,null,null,null,{"$f":"VLOOKUP($E42,TS4L4_ALL,11,FALSE)*H42","v":{"$error":"#NAME?"}},{"$f":"VLOOKUP($E42,TS4L4_ALL,12,FALSE)","v":{"$error":"#NAME?"}}]
[]
[]
[null,null,null,null,"NVIDIA Virtual GPU Software Packaging"]
[null,null,null,null,"NVIDIA vApps Subscription License 1 Year, 1 CCU",null,{"$f":"VLOOKUP($E46,TS4L4_ALL,13,FALSE)","v":{"$error":"#NAME?"}},null,null,null,null,null,{"$f":"VLOOKUP($E46,TS4L4_ALL,11,FALSE)*H46","v":{"$error":"#NAME?"}},{"$f":"VLOOKUP($E46,TS4L4_ALL,12,FALSE)","v":{"$error":"#NAME?"}}]
[null,null,null,null,"NVIDIA vApps Subscription License 3 Years, 1 CCU",null,{"$f":"VLOOKUP($E47,TS4L4_ALL,13,FALSE)","v":{"$error":"#NAME?"}},null,null,null,null,null,{"$f":"VLOOKUP($E47,TS4L4_ALL,11,FALSE)*H47","v":{"$error":"#NAME?"}},{"$f":"VLOOKUP($E47,TS4L4_ALL,12,FALSE)","v":{"$error":"#NAME?"}}]
[null,null,null,null,"NVIDIA vApps Subscription License 5 Years, 1 CCU",null,{"$f":"VLOOKUP($E48,TS4L4_ALL,13,FALSE)","v":{"$error":"#NAME?"}},null,null,null,null,null,{"$f":"VLOOKUP($E48,TS4L4_ALL,11,FALSE)*H48","v":{"$error":"#NAME?"}},{"$f":"VLOOKUP($E48,TS4L4_ALL,12,FALSE)","v":{"$error":"#NAME?"}}]
[null,null,null,null,"NVIDIA vPC Subscription License 1 Year, 1 CCU",null,{"$f":"VLOOKUP($E49,TS4L4_ALL,13,FALSE)","v":{"$error":"#NAME?"}},null,null,null,null,null,{"$f":"VLOOKUP($E49,TS4L4_ALL,11,FALSE)*H49","v":{"$error":"#NAME?"}},{"$f":"VLOOKUP($E49,TS4L4_ALL,12,FALSE)","v":{"$error":"#NAME?"}}]
[null,null,null,null,"NVIDIA vPC Subscription License 3 Years, 1 CCU",null,{"$f":"VLOOKUP($E50,TS4L4_ALL,13,FALSE)","v":{"$error":"#NAME?"}},null,null,null,null,null,{"$f":"VLOOKUP($E50,TS4L4_ALL,11,FALSE)*H50","v":{"$error":"#NAME?"}},{"$f":"VLOOKUP($E50,TS4L4_ALL,12,FALSE)","v":{"$error":"#NAME?"}}]
[null,null,null,null,"NVIDIA vPC Subscription License 5 Years, 1 CCU",null,{"$f":"VLOOKUP($E51,TS4L4_ALL,13,FALSE)","v":{"$error":"#NAME?"}},null,null,null,null,null,{"$f":"VLOOKUP($E51,TS4L4_ALL,11,FALSE)*H51","v":{"$error":"#NAME?"}},{"$f":"VLOOKUP($E51,TS4L4_ALL,12,FALSE)","v":{"$error":"#NAME?"}}]
[null,null,null,null,"NVIDIA RTX vWS Subscription License 1 Year, 1 CCU",null,{"$f":"VLOOKUP($E52,TS4L4_ALL,13,FALSE)","v":{"$error":"#NAME?"}},null,null,null,null,null,{"$f":"VLOOKUP($E52,TS4L4_ALL,11,FALSE)*H52","v":{"$error":"#NAME?"}},{"$f":"VLOOKUP($E52,TS4L4_ALL,12,FALSE)","v":{"$error":"#NAME?"}}]
[null,null,null,null,"NVIDIA RTX vWS Subscription License 3 Years, 1 CCU",null,{"$f":"VLOOKUP($E53,TS4L4_ALL,13,FALSE)","v":{"$error":"#NAME?"}},null,null,null,null,null,{"$f":"VLOOKUP($E53,TS4L4_ALL,11,FALSE)*H53","v":{"$error":"#NAME?"}},{"$f":"VLOOKUP($E53,TS4L4_ALL,12,FALSE)","v":{"$error":"#NAME?"}}]
[null,null,null,null,"NVIDIA RTX vWS Subscription License 5 Years, 1 CCU",null,{"$f":"VLOOKUP($E54,TS4L4_ALL,13,FALSE)","v":{"$error":"#NAME?"}},null,null,null,null,null,{"$f":"VLOOKUP($E54,TS4L4_ALL,11,FALSE)*H54","v":{"$error":"#NAME?"}},{"$f":"VLOOKUP($E54,TS4L4_ALL,12,FALSE)","v":{"$error":"#NAME?"}}]
[null,null,null,null,"NVIDIA Virtual Compute Server Subscription, 1 GPU (Max 8 CC VMs), 1 Year",null,{"$f":"VLOOKUP($E55,TS4L4_ALL,13,FALSE)","v":{"$error":"#NAME?"}},null,null,null,null,null,{"$f":"VLOOKUP($E55,TS4L4_ALL,11,FALSE)*H55","v":{"$error":"#NAME?"}},{"$f":"VLOOKUP($E55,TS4L4_ALL,12,FALSE)","v":{"$error":"#NAME?"}}]
[null,null,null,null,"NVIDIA Virtual Compute Server Subscription, 1 GPU (Max 8 CC VMs), 3 Years",null,{"$f":"VLOOKUP($E56,TS4L4_ALL,13,FALSE)","v":{"$error":"#NAME?"}},null,null,null,null,null,{"$f":"VLOOKUP($E56,TS4L4_ALL,11,FALSE)*H56","v":{"$error":"#NAME?"}},{"$f":"VLOOKUP($E56,TS4L4_ALL,12,FALSE)","v":{"$error":"#NAME?"}}]
[null,null,null,null,"NVIDIA Virtual Compute Server Subscription, 1 GPU (Max 8 CC VMs), 5 Years",null,{"$f":"VLOOKUP($E57,TS4L4_ALL,13,FALSE)","v":{"$error":"#NAME?"}},null,null,null,null,null,{"$f":"VLOOKUP($E57,TS4L4_ALL,11,FALSE)*H57","v":{"$error":"#NAME?"}},{"$f":"VLOOKUP($E57,TS4L4_ALL,12,FALSE)","v":{"$error":"#NAME?"}}]
[null,null,null,null,"NVIDIA vApps Bundle Perpetual License Plus 4yr vApps SUMS, 1CCU",null,{"$f":"VLOOKUP($E58,TS4L4_ALL,13,FALSE)","v":{"$error":"#NAME?"}},null,null,null,null,null,{"$f":"VLOOKUP($E58,TS4L4_ALL,11,FALSE)*H58","v":{"$error":"#NAME?"}},{"$f":"VLOOKUP($E58,TS4L4_ALL,12,FALSE)","v":{"$error":"#NAME?"}}]
[null,null,null,null,"NVIDIA vApps Bundle Perpetual License Plus 5yr vApps SUMS, 1CCU",null,{"$f":"VLOOKUP($E59,TS4L4_ALL,13,FALSE)","v":{"$error":"#NAME?"}},null,null,null,null,null,{"$f":"VLOOKUP($E59,TS4L4_ALL,11,FALSE)*H59","v":{"$error":"#NAME?"}},{"$f":"VLOOKUP($E59,TS4L4_ALL,12,FALSE)","v":{"$error":"#NAME?"}}]
[null,null,null,null,"NVIDIA vPC Bundle Perpetual License Plus 4yr vPC SUMS, 1CCU",null,{"$f":"VLOOKUP($E60,TS4L4_ALL,13,FALSE)","v":{"$error":"#NAME?"}},null,null,null,null,null,{"$f":"VLOOKUP($E60,TS4L4_ALL,11,FALSE)*H60","v":{"$error":"#NAME?"}},{"$f":"VLOOKUP($E60,TS4L4_ALL,12,FALSE)","v":{"$error":"#NAME?"}}]
[null,null,null,null,"NVIDIA vPC Bundle Perpetual License Plus 5yr vPC SUMS, 1CCU",null,{"$f":"VLOOKUP($E61,TS4L4_ALL,13,FALSE)","v":{"$error":"#NAME?"}},null,null,null,null,null,{"$f":"VLOOKUP($E61,TS4L4_ALL,11,FALSE)*H61","v":{"$error":"#NAME?"}},{"$f":"VLOOKUP($E61,TS4L4_ALL,12,FALSE)","v":{"$error":"#NAME?"}}]
[null,null,null,null,"NVIDIA RTX vWS Bundle Perpetual License Plus 4yr RTX vWS SUMS, 1CCU",null,{"$f":"VLOOKUP($E62,TS4L4_ALL,13,FALSE)","v":{"$error":"#NAME?"}},null,null,null,null,null,{"$f":"VLOOKUP($E62,TS4L4_ALL,11,FALSE)*H62","v":{"$error":"#NAME?"}},{"$f":"VLOOKUP($E62,TS4L4_ALL,12,FALSE)","v":{"$error":"#NAME?"}}]
[null,null,null,null,"NVIDIA RTX vWS Bundle Perpetual License Plus 5yr RTX vWS SUMS, 1CCU",null,{"$f":"VLOOKUP($E63,TS4L4_ALL,13,FALSE)","v":{"$error":"#NAME?"}},null,null,null,null,null,{"$f":"VLOOKUP($E63,TS4L4_ALL,11,FALSE)*H63","v":{"$error":"#NAME?"}},{"$f":"VLOOKUP($E63,TS4L4_ALL,12,FALSE)","v":{"$error":"#NAME?"}}]
[null,null,null,null,"NVIDIA vPC to NVIDIA RTX vWS Upgrade 4 year SUMS Bundle",null,{"$f":"VLOOKUP($E64,TS4L4_ALL,13,FALSE)","v":{"$error":"#NAME?"}},null,null,null,null,null,{"$f":"VLOOKUP($E64,TS4L4_ALL,11,FALSE)*H64","v":{"$error":"#NAME?"}},{"$f":"VLOOKUP($E64,TS4L4_ALL,12,FALSE)","v":{"$error":"#NAME?"}}]
[null,null,null,null,"NVIDIA vPC to NVIDIA RTX vWS Upgrade 5 year SUMS Bundle",null,{"$f":"VLOOKUP($E65,TS4L4_ALL,13,FALSE)","v":{"$error":"#NAME?"}},null,null,null,null,null,{"$f":"VLOOKUP($E65,TS4L4_ALL,11,FALSE)*H65","v":{"$error":"#NAME?"}},{"$f":"VLOOKUP($E65,TS4L4_ALL,12,FALSE)","v":{"$error":"#NAME?"}}]
[]
[]
[null,null,null,null,"OpzUps (3000VA)"]
[null,null,null,null,{"$f":"ConfigurationTS4L3!A116","v":"UPS PowerMe RPMM/9K - 3000VA"},null,{"$f":"VLOOKUP($E69,TS4L3_UPS,13,FALSE)","v":"TS4L3-UPS"},0,null,{"$f":"L69","v":0},null,{"$f":"VLOOKUP($E69,TS4L3_UPS,10,FALSE)*H69","v":0},{"$f":"VLOOKUP($E69,TS4L3_UPS,11,FALSE)*I69","v":0},{"$f":"VLOOKUP($E69,TS4L3_UPS,12,FALSE)","v":"L3N15"}]
[]
[]
[null,null,null,null,"OpzGUI"]
[null,null,null,null,{"$f":"ConfigurationTS4L3!A120","v":"Unità KVM - monitor 17\", cavo combi PS/2&USB"},null,{"$f":"VLOOKUP($E73,TS4L3_GUI,13,FALSE)","v":"TS4L3-GUI"},0,null,{"$f":"L73","v":0},null,{"$f":"VLOOKUP($E73,TS4L3_GUI,10,FALSE)*H73","v":0},{"$f":"VLOOKUP($E73,TS4L3_GUI,11,FALSE)*H73","v":0},{"$f":"VLOOKUP($E73,TS4L3_GUI,12,FALSE)","v":"L3N16"}]
[]
[]
[null,null,null,null,"OpzKVM"]
[null,null,null,null,{"$f":"ConfigurationTS4L3!A124","v":"KVM Switch IP per GUI 16P"},null,{"$f":"VLOOKUP($E77,TS4L3_KVM,13,FALSE)","v":"TS4L3-KVM"},0,null,{"$f":"L77","v":0},null,{"$f":"VLOOKUP($E77,TS4L3_KVM,10,FALSE)*H77","v":0},{"$f":"VLOOKUP($E77,TS4L3_KVM,11,FALSE)*H77","v":0},{"$f":"VLOOKUP($E77,TS4L3_KVM,12,FALSE)","v":"L3N17"}]

{"sheet":"Riepilogo_Ordine","index":5,"n_rows":101,"n_cols":25,"rows_kept":101,"cut":false,"hidden":false,"merged":[[97,8,97,9],[98,8,98,9],[99,5,99,6],[99,8,99,9],[10,5,10,6],[10,8,10,10],[11,5,11,10],[44,5,44,10],[45,5,45,10],[96,5,96,6],[96,8,96,9],[8,5,8,6],[8,7,8,8],[8,9,8,10],[9,5,9,6],[9,7,9,8],[9,9,9,10],[6,5,6,6],[6,7,6,8],[6,9,6,10],[7,5,7,6],[7,7,7,8],[7,9,7,10],[1,5,1,7],[1,8,3,10],[2,5,2,7],[3,5,3,7],[4,5,4,7],[4,8,4,9],[4,10,5,10],[5,5,5,7],[5,8,5,9]]}
[]
[null,null,null,null,null,"Convenzione \nTecnologie Server 4 - Lotto 3",null,null,{"$f":"IF(P8>0,\"Compilare i Dati Necessari (*) all'Ordine o controllare le Configurazioni per Stampare in PDF\",\"Dati Completi\")","v":"Compilare i Dati Necessari (*) all'Ordine o controllare le Configurazioni per Stampare in PDF"},null,null,null,null,null,null,null,null,null,null,null,null,null,null,null,"SI"]
[null,null,null,null,null,"Riepilogo Ordine Consip N° (*)",null,null,null,null,null,null,null,null,null,null,null,0,0,1,null,{"$f":"SUM(R3:T3)","v":1},null,null,"SI"]
[null,null,null,null,null,null,null,null,null,null,null,null,null,null,null,null,null,null,null,null,null,null,null,null,"SI"]
[null,null,null,null,null,"Ente Ordinante (*)",null,null,"Data Ordine  (*)",null,null,null,null,null,null,"Ordine","Ente","data","Ref Cons","mail","tel","Ref Inst","mail","Tel","SI"]
[null,null,null,null,null,null,null,null,null,null,null,null,null,null,null,{"$f":"IF(F4>0,0,1)","v":1},{"$f":"IF(F6>0,0,1)","v":1},{"$f":"IF(I6>0,0,1)","v":1},{"$f":"IF(F8>0,0,1)","v":1},{"$f":"IF(H8>0,0,1)","v":1},{"$f":"IF(J8>0,0,1)","v":1},{"$f":"IF(F10>0,0,1)","v":1},{"$f":"IF(H10>0,0,1)","v":1},{"$f":"IF(J10>0,0,1)","v":1},"SI"]
[null,null,null,null,null,"Referente Consegna  (*)",null,"Mail  (*)",null,"Tel  (*)",null,null,null,null,null,null,null,null,null,null,null,null,null,0.2,"SI"]
[null,null,null,null,null,null,null,null,null,null,null,null,null,null,null,{"$f":"SUM(P6:X6)+SUM(R10:T10)+X8","v":9},null,{"$f":"IF(F11<>\"\",1,0)","v":0},{"$f":"IF(H11<>\"\",1,0)","v":0},{"$f":"IF(I11<>\"\",1,0)","v":0},null,{"$f":"SUM(R8:T8)","v":0},null,0,"SI"]
[null,null,null,null,null,"Referente Installazione  (*)",null,"Mail  (*)",null,"Tel  (*)",null,null,null,null,null,null,null,null,null,null,null,null,null,null,"SI"]
[null,null,null,null,null,null,null,null,null,null,null,null,null,null,null,null,null,{"$f":"IF(Lotto3_SR650_1!H4<>\"\",1,0)","v":0},{"$f":"IF(Lotto3_SR650_2!H4<>\"\",1,0)","v":0},{"$f":"IF(SR650_Iper_Convergenza!H4<>\"\",1,0)","v":0},null,null,null,null,"SI"]
[null,null,null,null,null,{"$f":"IF(R10>0,\"Errore nella Configurazione 1\",\"\")","v":""},null,{"$f":"IF(S10>0,\"Errore nella Configurazione 2\",\"\")","v":""},{"$f":"IF(T10>0,\"Errore nella Configurazione Iper Convergenza\",\"\")","v":""},null,null,null,null,null,null,null,null,null,null,null,null,null,null,null,"SI"]
[null,null,null,null,null,"Articoli in convenzione",null,null,null,null,null,null,null,null,null,null,null,"Config 1","Config 2","Config 3","Totale",null,null,null,"SI"]
[null,null,null,null,null,"Codice Produttore","Codice Convenzione","Descrizione ","Qtà","Costo unitario","Costo Totale",null,null,null,null,"N°","Codice Convenzione",{"$f":"IF(R10>0,0,Lotto3_SR650_1!I8)","v":0},{"$f":"IF(S10>0,0,Lotto3_SR650_2!I8)","v":0},{"$f":"IF(T10>0,0,SR650_Iper_Convergenza!I8)","v":0},null,null,null,null,"SI"]
[null,null,null,null,null,{"$f":"IF(I14=\"\",\"\",VLOOKUP(P14,Tabella_Prezzi,10,FALSE))","v":""},{"$f":"IF(I14=\"\",\"\",VLOOKUP(P14,Tabella_Prezzi,6,FALSE))","v":""},{"$f":"IF(I14=\"\",\"\",VLOOKUP(P14,Tabella_Prezzi,8,FALSE))","v":""},{"$f":"IF(U14>0,U14,\"\")","v":""},{"$f":"IF(I14=\"\",\"\",VLOOKUP(P14,Tabella_Prezzi,4,FALSE))","v":""},{"$f":"IF(F14=\"\",\"\",J14*I14)","v":""},null,null,null,null,"L3N01","TS4L4-SRV",{"$f":"COUNTIF(TS4L3_1,P14)*$R$13","v":0},{"$f":"COUNTIF(TS4L3_2,P14)*$S$13","v":0},{"$f":"COUNTIF(TS4L3_3,P14)*$T$13","v":0},{"$f":"SUM(R14:T14)","v":0},null,null,null,{"$f":"IF(I14<>\"\",\"SI\",\"NO\")","v":"NO"}]
[null,null,null,null,null,{"$f":"IF(I15=\"\",\"\",VLOOKUP(P15,Tabella_Prezzi,10,FALSE))","v":""},{"$f":"IF(I15=\"\",\"\",VLOOKUP(P15,Tabella_Prezzi,6,FALSE))","v":""},{"$f":"IF(I15=\"\",\"\",VLOOKUP(P15,Tabella_Prezzi,8,FALSE))","v":""},{"$f":"IF(U15>0,U15,\"\")","v":""},{"$f":"IF(I15=\"\",\"\",VLOOKUP(P15,Tabella_Prezzi,4,FALSE))","v":""},{"$f":"IF(F15=\"\",\"\",J15*I15)","v":""},null,null,null,null,"L3N01-NVMe","TS4L4-SRV-NVMe",{"$f":"COUNTIF(TS4L3_1,P15)*$R$13","v":0},{"$f":"COUNTIF(TS4L3_2,P15)*$S$13","v":0},{"$f":"COUNTIF(TS4L3_3,P15)*$T$13","v":0},0,null,null,null,{"$f":"IF(I15<>\"\",\"SI\",\"NO\")","v":"NO"}]
[null,null,null,null,null,{"$f":"IF(I16=\"\",\"\",VLOOKUP(P16,Tabella_Prezzi,10,FALSE))","v":""},{"$f":"IF(I16=\"\",\"\",VLOOKUP(P16,Tabella_Prezzi,6,FALSE))","v":""},{"$f":"IF(I16=\"\",\"\",VLOOKUP(P16,Tabella_Prezzi,8,FALSE))","v":""},{"$f":"IF(U16>0,U16,\"\")","v":""},{"$f":"IF(I16=\"\",\"\",VLOOKUP(P16,Tabella_Prezzi,4,FALSE))","v":""},{"$f":"IF(F16=\"\",\"\",J16*I16)","v":""},null,null,null,null,"L3N01-vSAN","TS4L4-SRV-vSAN",{"$f":"COUNTIF(TS4L3_1,P16)*$R$13","v":0},{"$f":"COUNTIF(TS4L3_2,P16)*$S$13","v":0},{"$f":"COUNTIF(TS4L3_3,P16)*$T$13","v":0},0,null,null,null,{"$f":"IF(I16<>\"\",\"SI\",\"NO\")","v":"NO"}]
[null,null,null,null,null,{"$f":"IF(I17=\"\",\"\",VLOOKUP(P17,Tabella_Prezzi,10,FALSE))","v":""},{"$f":"IF(I17=\"\",\"\",VLOOKUP(P17,Tabella_Prezzi,6,FALSE))","v":""},{"$f":"IF(I17=\"\",\"\",VLOOKUP(P17,Tabella_Prezzi,8,FALSE))","v":""},{"$f":"IF(U17>0,U17,\"\")","v":""},{"$f":"IF(I17=\"\",\"\",VLOOKUP(P17,Tabella_Prezzi,4,FALSE))","v":""},{"$f":"IF(F17=\"\",\"\",J17*I17)","v":""},null,null,null,null,"L3N02","TS4L4-CPU",{"$f":"COUNTIF(TS4L3_1,P17)*$R$13","v":0},{"$f":"COUNTIF(TS4L3_2,P17)*$S$13","v":0},{"$f":"COUNTIF(TS4L3_3,P17)*$T$13","v":0},0,null,null,null,{"$f":"IF(I17<>\"\",\"SI\",\"NO\")","v":"NO"}]
[null,null,null,null,null,"","","",{"$f":"IF(U18>0,U18,\"\")","v":""},"",{"$f":"IF(F18=\"\",\"\",J18*I18)","v":""},null,null,null,null,"L3N03","TS4L3-RAM32",{"$f":"COUNTIF(TS4L3_1,P18)*Lotto3_SR650_1!I26*$R$13","v":0},{"$f":"COUNTIF(TS4L3_2,P18)*Lotto3_SR650_2!I26*$S$13","v":0},{"$f":"COUNTIF(TS4L3_3,P18)*SR650_Iper_Convergenza!I26*$T$13","v":0},0,null,null,null,{"$f":"IF(I18<>\"\",\"SI\",\"NO\")","v":"NO"}]
[null,null,null,null,null,"","","","","","",null,null,null,null,"L3N04","TS4L3-RAM64",{"$f":"COUNTIF(TS4L3_1,P19)*Lotto3_SR650_1!I26*$R$13","v":0},{"$f":"COUNTIF(TS4L3_2,P19)*Lotto3_SR650_2!I26*$S$13","v":0},{"$f":"COUNTIF(TS4L3_3,P19)*SR650_Iper_Convergenza!I26*$T$13","v":0},0,null,null,null,"NO"]
[null,null,null,null,null,"","","","","","",null,null,null,null,"L3N05","TS4L3-LAN1",{"$f":"COUNTIF(TS4L3_1,P20)*$R$13","v":0},{"$f":"COUNTIF(TS4L3_2,P20)*$S$13","v":0},{"$f":"COUNTIF(TS4L3_3,P20)*$T$13","v":0},0,null,null,null,"NO"]
[null,null,null,null,null,"","","","","","",null,null,null,null,"L3N06","TS4L3-LAN10",0,0,0,0,null,null,null,"NO"]
[null,null,null,null,null,"","","","","","",null,null,null,null,"L3N07","TS4L3-LAN25",0,0,0,0,null,null,null,"NO"]
[null,null,null,null,null,"","","","","","",null,null,null,null,"L3N08","TS4L3-CNA10",0,0,0,0,null,null,null,"NO"]
[null,null,null,null,null,"","","","","","",null,null,null,null,"L3N09","TS4L3-BaseT",0,0,0,0,null,null,null,"NO"]
[null,null,null,null,null,"","","","","","",null,null,null,null,"L3N10","TS4L3- FibreChannel",0,0,0,0,null,null,null,"NO"]
[null,null,null,null,null,"","","","","","",null,null,null,null,"L3N11","TS4L3-HDD8TB",{"$f":"COUNTIF(TS4L3_1,P26)*V26*$R$13","v":0},{"$f":"COUNTIF(TS4L3_2,P26)*W26*$S$13","v":0},{"$f":"COUNTIF(TS4L3_3,P26)*X26*$T$13","v":0},0,{"$f":"Lotto3_SR650_1!I45","v":0},{"$f":"Lotto3_SR650_2!I45","v":1},{"$f":"SR650_Iper_Convergenza!I45","v":0},"NO"]
[null,null,null,null,null,"","","","","","",null,null,null,null,"L3N12","TS4L3-HDD2TB",0,0,0,0,{"$f":"Lotto3_SR650_1!I47","v":0},{"$f":"Lotto3_SR650_2!I47","v":2},{"$f":"SR650_Iper_Convergenza!I47","v":0},"NO"]
[null,null,null,null,null,"","","","","","",null,null,null,null,"L3N13","TS4L3-HDD1TB",0,0,0,0,{"$f":"Lotto3_SR650_1!I49","v":0},{"$f":"Lotto3_SR650_2!I49","v":3},{"$f":"SR650_Iper_Convergenza!I49","v":0},"NO"]
[null,null,null,null,null,"","","","","","",null,null,null,null,"L3N14","TS4L3-HDD12TB",0,0,0,0,{"$f":"Lotto3_SR650_1!I51","v":0},{"$f":"Lotto3_SR650_2!I51","v":0},{"$f":"SR650_Iper_Convergenza!I51","v":8},"NO"]
[null,null,null,null,null,{"$f":"IF(I30=\"\",\"\",VLOOKUP(P30,Tabella_Prezzi,10,FALSE))","v":""},{"$f":"IF(I30=\"\",\"\",VLOOKUP(P30,Tabella_Prezzi,6,FALSE))","v":""},{"$f":"IF(I30=\"\",\"\",VLOOKUP(P30,Tabella_Prezzi,8,FALSE))","v":""},{"$f":"IF(U30>0,U30,\"\")","v":""},{"$f":"IF(I30=\"\",\"\",VLOOKUP(P30,Tabella_Prezzi,4,FALSE))","v":""},{"$f":"IF(F30=\"\",\"\",J30*I30)","v":""},null,null,null,null,"L3N26","TS4L3-SSD-RI3,8TB",0,0,0,0,{"$f":"Lotto3_SR650_1!I53","v":0},{"$f":"Lotto3_SR650_2!I53","v":0},{"$f":"SR650_Iper_Convergenza!I53","v":4},{"$f":"IF(I30<>\"\",\"SI\",\"NO\")","v":"NO"}]
[null,null,null,null,null,{"$f":"IF(I31=\"\",\"\",VLOOKUP(P31,Tabella_Prezzi,10,FALSE))","v":""},{"$f":"IF(I31=\"\",\"\",VLOOKUP(P31,Tabella_Prezzi,6,FALSE))","v":""},{"$f":"IF(I31=\"\",\"\",VLOOKUP(P31,Tabella_Prezzi,8,FALSE))","v":""},{"$f":"IF(U31>0,U31,\"\")","v":""},{"$f":"IF(I31=\"\",\"\",VLOOKUP(P31,Tabella_Prezzi,4,FALSE))","v":""},{"$f":"IF(F31=\"\",\"\",J31*I31)","v":""},null,null,null,null,"L3N27","TS4L3-SSD-RI1,6TB",0,0,0,0,{"$f":"Lotto3_SR650_1!I55","v":0},{"$f":"Lotto3_SR650_2!I55","v":0},{"$f":"SR650_Iper_Convergenza!I55","v":0},{"$f":"IF(I31<>\"\",\"SI\",\"NO\")","v":"NO"}]
[null,null,null,null,null,"","","","","","",null,null,null,null,"L3N15","TS4L3-UPS",null,null,null,{"$f":"Altre_Opzioni!H69","v":0},null,null,null,"NO"]
[null,null,null,null,null,"","","","","","",null,null,null,null,"L3N16","TS4L3-GUI",null,null,null,{"$f":"Altre_Opzioni!H73","v":0},null,null,null,"NO"]
[null,null,null,null,null,"","","","","","",null,null,null,null,"L3N17","TS4L3-KVM",null,null,null,{"$f":"Altre_Opzioni!H77","v":0},null,null,null,"NO"]
[null,null,null,null,null,"","","","","","",null,null,null,null,"L3N18","TS4L3-WINSRVSTD",{"$f":"COUNTIF(TS4L3_1,P35)*V35*$R$13","v":0},{"$f":"COUNTIF(TS4L3_2,P35)*W35*$S$13","v":0},{"$f":"COUNTIF(TS4L3_3,P35)*X35*$T$13","v":0},0,{"$f":"Lotto3_SR650_1!I29","v":0},null,null,"NO"]
[null,null,null,null,null,"","","","","","",null,null,null,null,"L3N19","TS4L3-WINDEVCAL",{"$f":"COUNTIF(TS4L3_1,P36)*V36*$R$13","v":0},{"$f":"COUNTIF(TS4L3_2,P36)*W36*$S$13","v":0},{"$f":"COUNTIF(TS4L3_3,P36)*X36*$T$13","v":0},0,{"$f":"Lotto3_SR650_1!I33","v":0},null,null,"NO"]
[null,null,null,null,null,"","","","","","",null,null,null,null,"L3N20","TS4L3-WINUSRCAL",{"$f":"COUNTIF(TS4L3_1,P37)*V37*$R$13","v":0},{"$f":"COUNTIF(TS4L3_2,P37)*W37*$S$13","v":0},{"$f":"COUNTIF(TS4L3_3,P37)*X37*$T$13","v":0},0,{"$f":"Lotto3_SR650_1!I34","v":0},null,null,"NO"]
[null,null,null,null,null,"","","","","","",null,null,null,null,"L3N21","TS4L3-WINSRV2C",{"$f":"COUNTIF(TS4L3_1,P38)*V38*$R$13","v":0},{"$f":"COUNTIF(TS4L3_2,P38)*W38*$S$13","v":0},{"$f":"COUNTIF(TS4L3_3,P38)*X38*$T$13","v":0},0,{"$f":"Lotto3_SR650_1!I30","v":0},null,null,"NO"]
[null,null,null,null,null,"","","","","","",null,null,null,null,"L3N22","TS4L3-LINUX",{"$f":"COUNTIF(TS4L3_1,P39)*$R$13","v":0},{"$f":"COUNTIF(TS4L3_2,P39)*$S$13","v":0},{"$f":"COUNTIF(TS4L3_3,P39)*$T$13","v":0},0,{"$f":"Lotto3_SR650_1!I29","v":0},null,null,"NO"]
[null,null,null,null,null,"","","","","","",null,null,null,null,"L3N23","TS4L3-HDRTN36",{"$f":"COUNTIF(TS4L3_1,P40)*$R$13","v":0},{"$f":"COUNTIF(TS4L3_2,P40)*$S$13","v":0},{"$f":"COUNTIF(TS4L3_3,P40)*$T$13","v":0},0,null,null,null,"NO"]
[null,null,null,null,null,"","","","","","",null,null,null,null,"L3N23E","TS4L3-HDRTN60",{"$f":"COUNTIF(TS4L3_1,P41)*$R$13","v":0},{"$f":"COUNTIF(TS4L3_2,P41)*$S$13","v":0},{"$f":"COUNTIF(TS4L3_3,P41)*$T$13","v":0},0,null,null,null,"NO"]
[null,null,null,null,null,"","","","","","",null,null,null,null,"L3N24","TS4L3-OpzEst24",null,null,null,0,null,null,null,"NO"]
[null,null,null,null,null,"","","","","","",null,null,null,null,"L3N25","TS4L3-RACK",null,null,null,0,null,null,null,"NO"]
[null,null,null,null,null,null,null,null,null,null,null,null,null,null,null,null,null,null,null,null,null,null,null,null,"SI"]
[null,null,null,null,null,{"$f":"IF(G99<0,\"Superata Quota 20%\",\"\")","v":""},null,null,null,null,null,null,null,null,null,null,null,null,null,null,null,null,null,null,{"$f":"IF($K$98>0,\"SI\",\"NO\")","v":"NO"}]
[null,null,null,null,null,"Opzioni 20 %",null,null,null,null,null,null,null,null,null,null,null,"Config 1","Config 2","Config 3","Totale",null,null,null,{"$f":"IF($K$98>0,\"SI\",\"NO\")","v":"NO"}]
[null,null,null,null,null,"Codice Produttore","Codice Convenzione","Descrizione ","Qtà","Costo unitario","Costo Totale",null,null,null,null,"N°","Codice Convenzione",0,0,0,{"$f":"SUM(R47:T47)","v":0},"Quantità 1","Quantità 2","Quantità 3",{"$f":"IF($K$98>0,\"SI\",\"NO\")","v":"NO"}]
[null,null,null,null,null,{"$f":"IF(I48=\"\",\"\",VLOOKUP(P48,Tabella_Prezzi,10,FALSE))","v":""},{"$f":"IF(I48=\"\",\"\",VLOOKUP(P48,Tabella_Prezzi,6,FALSE))","v":""},{"$f":"IF(I48=\"\",\"\",VLOOKUP(P48,Tabella_Prezzi,8,FALSE))","v":""},{"$f":"IF(U48>0,U48,\"\")","v":""},{"$f":"IF(I48=\"\",\"\",VLOOKUP(P48,Tabella_Prezzi,4,FALSE))","v":""},{"$f":"IF(F48=\"\",\"\",J48*I48)","v":""},null,null,null,null,"L3N50","TS4L3-DiskController",{"$f":"COUNTIF(TS4L3_1,P48)*$R$13","v":0},{"$f":"COUNTIF(TS4L3_2,P48)*$S$13","v":0},{"$f":"COUNTIF(TS4L3_3,P48)*$T$13","v":0},{"$f":"SUM(R48:T48)","v":0},null,null,null,{"$f":"IF($I48<>\"\",\"SI\",\"NO\")","v":"NO"}]
[null,null,null,null,null,"","","",{"$f":"IF(U49>0,U49,\"\")","v":""},"",{"$f":"IF(F49=\"\",\"\",J49*I49)","v":""},null,null,null,null,"L3N51","TS4L3-PSU",{"$f":"COUNTIF(TS4L3_1,P49)*$R$13","v":0},{"$f":"COUNTIF(TS4L3_2,P49)*$S$13","v":0},{"$f":"COUNTIF(TS4L3_3,P49)*$T$13","v":0},0,null,null,null,{"$f":"IF($I49<>\"\",\"SI\",\"NO\")","v":"NO"}]
[null,null,null,null,null,"",{"$f":"IF(I50=\"\",\"\",VLOOKUP(P50,Tabella_Prezzi,6,FALSE))","v":""},"",{"$f":"IF(U50>0,U50,\"\")","v":""},"",{"$f":"IF(F50=\"\",\"\",J50*I50)","v":""},null,null,null,null,"L3N52","TS4L3-VROC",{"$f":"COUNTIF(TS4L3_1,P50)*$R$13","v":0},{"$f":"COUNTIF(TS4L3_2,P50)*$S$13","v":0},{"$f":"COUNTIF(TS4L3_3,P50)*$T$13","v":0},0,null,null,null,"NO"]
[null,null,null,null,null,"","","","","","",null,null,null,null,"L3N53","TS4L3-RAID",{"$f":"COUNTIF(TS4L3_1,P51)*$R$13","v":0},{"$f":"COUNTIF(TS4L3_2,P51)*$S$13","v":0},{"$f":"COUNTIF(TS4L3_3,P51)*$T$13","v":0},0,null,null,null,"NO"]
[null,null,null,null,null,"","","","","","",null,null,null,null,"L3N54","TS4L3-SSDSAS3.2TBMU",{"$f":"COUNTIF(TS4L3_1,P52)*V52*$R$13","v":0},{"$f":"COUNTIF(TS4L3_2,P52)*W52*$S$13","v":0},{"$f":"COUNTIF(TS4L3_3,P52)*X52*$T$13","v":0},{"$f":"SUM(R52:T52)","v":0},{"$f":"Lotto3_SR650_1!I57","v":0},0,0,{"$f":"IF($I52<>\"\",\"SI\",\"NO\")","v":"NO"}]
[null,null,null,null,null,"","","","","","",null,null,null,null,"L3N55","TS4L3-SSDSAS6.4TBMU",0,0,0,{"$f":"SUM(R53:T53)","v":0},{"$f":"Lotto3_SR650_1!I59","v":0},0,0,"NO"]
[null,null,null,null,null,"","","","","","",null,null,null,null,"L3N56","TS4L3-SSDSAS7.68TBRI",0,0,0,0,{"$f":"Lotto3_SR650_1!I61","v":0},0,0,"NO"]
[null,null,null,null,null,"","","","","","",null,null,null,null,"L3N57","TS4L3-SSDSAS15.36TBRI",0,0,0,0,{"$f":"Lotto3_SR650_1!I63","v":0},0,0,"NO"]
[null,null,null,null,null,"","","","","","",null,null,null,null,"L3N58","TS4L3-SSDSATA3.84TBRI",0,0,0,{"$f":"SUM(R56:T56)","v":0},{"$f":"Lotto3_SR650_1!I65","v":0},null,null,{"$f":"IF($I56<>\"\",\"SI\",\"NO\")","v":"NO"}]
[null,null,null,null,null,"","","","","","",null,null,null,null,"L3N59","TS4L3-SSDSATA7.68TBRI",0,0,0,{"$f":"SUM(R57:T57)","v":0},{"$f":"Lotto3_SR650_1!I67","v":0},0,0,"NO"]
[null,null,null,null,null,"","","","","","",null,null,null,null,"L3N60","TS4L3-HDD_SAS20TB_HW",0,0,0,0,{"$f":"Lotto3_SR650_1!I69","v":0},0,0,"NO"]
[null,null,null,null,null,"","","","","","",null,null,null,null,"L3N61","TS4L3-HDD_SATA16TB_HW",0,0,0,0,{"$f":"Lotto3_SR650_1!I71","v":0},0,0,"NO"]
[null,null,null,null,null,"","","","","","",null,null,null,null,"L3N62","TS4L3-HDD_SAS16TB_HW",0,0,0,0,{"$f":"Lotto3_SR650_1!I73","v":0},0,0,{"$f":"IF($I60<>\"\",\"SI\",\"NO\")","v":"NO"}]
[null,null,null,null,null,"","","","","","",null,null,null,null,"L3N63","TS4L3-SSD_SAS800GB_WI",0,0,0,0,{"$f":"Lotto3_SR650_1!I75","v":0},0,0,"NO"]
[null,null,null,null,null,"","","","","","",null,null,null,null,"L3N64","TS4L3-SSD_SAS1.6TB_WI",0,0,0,0,{"$f":"Lotto3_SR650_1!I77","v":0},0,0,"NO"]
[null,null,null,null,null,"","","","","","",null,null,null,null,"L3N65","TS4L3-SSD_SAS3.2TB_WI",0,0,0,0,{"$f":"Lotto3_SR650_1!I79","v":0},0,0,"NO"]
[null,null,null,null,null,"","","","","","",null,null,null,null,"L3N66","TS4L3-NUTANIX-A",{"$f":"COUNTIF(TS4L3_1,P64)*$R$13","v":0},{"$f":"COUNTIF(TS4L3_2,P64)*$S$13","v":0},{"$f":"COUNTIF(TS4L3_3,P64)*$T$13","v":0},{"$f":"SUM(R64:T64)","v":0},null,null,null,{"$f":"IF($I64<>\"\",\"SI\",\"NO\")","v":"NO"}]
[null,null,null,null,null,"","","","","","",null,null,null,null,"L3N67","TS4L3-NUTANIX-B",0,0,0,{"$f":"SUM(R65:T65)","v":0},null,null,null,"NO"]
[null,null,null,null,null,"","","","","","",null,null,null,null,"L3N68","TS4L3-NUTANIX-C",0,0,0,0,null,null,null,"NO"]
[null,null,null,null,null,"","","","","","",null,null,null,null,"L3N69","TS4L3-vSAN-A",0,0,0,0,null,null,null,"NO"]
[null,null,null,null,null,"","","","","","",null,null,null,null,"L3N70","TS4L3-vSAN-B",0,0,0,{"$f":"SUM(R68:T68)","v":0},null,null,null,{"$f":"IF($I68<>\"\",\"SI\",\"NO\")","v":"NO"}]
[null,null,null,null,null,"","","","","","",null,null,null,null,"L3N71","TS4L3-vSAN-C",0,0,0,{"$f":"SUM(R69:T69)","v":0},null,null,null,"NO"]
[null,null,null,null,null,"","","","","","",null,null,null,null,"L3N72","TS4L3-PCI-BaseT-57454",0,0,0,0,null,null,null,"NO"]
[null,null,null,null,null,"","","","","","",null,null,null,null,"L3N73","TS4L3-PCI-10/25GB-57454",0,0,0,0,null,null,null,"NO"]
[null,null,null,null,null,"","","","","","",null,null,null,null,"L3N74","TS4L3-CX6-10/25GB-2Port",0,0,0,{"$f":"SUM(R72:T72)","v":0},null,null,null,{"$f":"IF($I72<>\"\",\"SI\",\"NO\")","v":"NO"}]
[null,null,null,null,null,"","","","","","",null,null,null,null,"L3N75","TS4L3-CX6-100GB-2Port",0,0,0,{"$f":"SUM(R73:T73)","v":0},null,null,null,"NO"]
[null,null,null,null,null,"","","","","","",null,null,null,null,"L3N76","TS4L3-CX4-10/25GB-2Port",0,0,0,0,null,null,null,"NO"]
[null,null,null,null,null,"","","","","","",null,null,null,null,"L3N77","TS4L3-SFP28-10/25GB",0,0,0,0,null,null,null,"NO"]
[null,null,null,null,null,"","","","","","",null,null,null,null,"L3N78","TS4L3-SFP28.85C-10/25GB",0,0,0,0,null,null,null,"NO"]
[null,null,null,null,null,"","","","","","",null,null,null,null,"L3N79","TS4L3-SFP28-25GB",0,0,0,0,null,null,null,"NO"]
[null,null,null,null,null,"","","","","","",null,null,null,null,"L3N80","TS4L3-SFP+SR",0,0,0,0,null,null,null,{"$f":"IF($I78<>\"\",\"SI\",\"NO\")","v":"NO"}]
[null,null,null,null,null,"","","","","","",null,null,null,null,"L3N81","TS4L3-QSFP28-100GBBase",0,0,0,0,null,null,null,"NO"]
[null,null,null,null,null,"","","","","","",null,null,null,null,"L3N82","TS4L3-QSFP28-100GB",0,0,0,0,null,null,null,"NO"]
[null,null,null,null,null,"","","","","","",null,null,null,null,"L3N83","TS4L3-FC-32GB-2Port",0,0,0,0,null,null,null,"NO"]
[null,null,null,null,null,"","","","","","",null,null,null,null,"L3N84","TS4L3-FC-64GB-2Port",0,0,0,0,null,null,null,{"$f":"IF($I82<>\"\",\"SI\",\"NO\")","v":"NO"}]
[null,null,null,null,null,"","","","","","",null,null,null,null,"L3N85","TS4L3-MMF.Cable-5Mt-OM3",0,0,0,0,null,null,null,"NO"]
[null,null,null,null,null,"","","","","","",null,null,null,null,"L3N86","TS4L3-MMF.Cable-5Mt-OM4",0,0,0,0,null,null,null,"NO"]
[null,null,null,null,null,"","","","","","",null,null,null,null,"L3N87","TS4L3-MMF.Cable-15Mt-OM3",0,0,0,0,null,null,null,"NO"]
[null,null,null,null,null,"","","","","","",null,null,null,null,"L3N88","TS4L3-MMF.Cable-25Mt-OM3",0,0,0,0,null,null,null,"NO"]
[null,null,null,null,null,"","","","","","",null,null,null,null,"L3N89","TS4L3-MMF.Cable-15Mt-OM4",0,0,0,0,null,null,null,"NO"]
[null,null,null,null,null,"","","","","","",null,null,null,null,"L3N90","TS4L3-MMF.Cable-25Mt-OM4",0,0,0,0,null,null,null,"NO"]
[null,null,null,null,null,"","","","","","",null,null,null,null,"L3N91","TS4L3-MMF.Cable-3Mt-OM3",0,0,0,0,null,null,null,{"$f":"IF($I89<>\"\",\"SI\",\"NO\")","v":"NO"}]
[null,null,null,null,null,"","","","","","",null,null,null,null,"L3N92","TS4L3-MMF.Cable-3Mt-OM4",0,0,0,0,null,null,null,"NO"]
[null,null,null,null,null,"","","","","","",null,null,null,null,"L3N93","TS4L3-CPU5315",0,0,0,0,null,null,null,"NO"]
[null,null,null,null,null,"","","","","","",null,null,null,null,"L3N94","TS4L3-CPU6326",null,null,null,null,null,null,null,"NO"]
[null,null,null,null,null,null,null,null,null,null,null,null,null,null,null,null,null,null,null,null,null,null,null,null,"SI"]
[null,null,null,null,null,null,null,null,null,null,null,null,null,null,null,null,null,null,null,null,null,null,null,null,"SI"]
[null,null,null,null,null,null,null,null,null,null,null,null,null,null,null,null,null,null,null,null,null,null,null,null,"SI"]
[null,null,null,null,null,null,null,null,null,null,null,null,null,null,null,null,null,null,null,null,null,null,null,null,"SI"]
[null,null,null,null,null,null,null,null,"Totale Convenzione",null,{"$f":"SUM(K14:K43)","v":0},null,null,null,null,null,null,null,null,null,null,null,null,null,"SI"]
[null,null,null,null,null,"Quota Massima 20%",{"$f":"K100*20%","v":0},null,"Totale 20%",null,{"$f":"SUM(K48:K93)","v":0},null,null,null,null,null,null,null,null,null,null,null,null,null,"SI"]
[null,null,null,null,null,"Quota Residua 20%",{"$f":"G98-K98","v":0},null,"Totale Iva Esclusa",null,{"$f":"K97+K98","v":0},null,null,null,null,null,null,null,null,null,null,null,null,null,"SI"]
[null,null,null,null,null,null,null,null,"Totale Ordine",null,{"$f":"K99+(K99*22%)","v":0},null,null,null,null,null,null,null,null,null,null,null,null,null,"SI"]
[null,null,null,null,null,null,null,null,null,null,null,null,null,null,null,null,null,null,null,null,null,null,null,null,"SI"]

{"sheet":"ConfigurationTS4L3","index":6,"n_rows":162,"n_cols":16384,"rows_kept":162,"cut":false,"hidden":true,"merged":[[18,0,18,12]]}
[]
[null,"Module Name","Option ID","Option Name","Option List Price","SKUs","Qty","SKU Customer Kit","Attributo","Valore inserito",null,"N°","Codice Convenzione"]
["Lenovo ThinkSystem SR650 V2 Server","Chassis with Up to 16 x 2.5 Hard Drives for 1CPU Configuration","Chassis with Up to 16 x 2.5 Hard Drives for 2CPU Configuration",{"$f":"VLOOKUP(L3,Tabella_prezzi!$A$2:$L$65,8,FALSE)","v":"Lenovo ThinkSystem SR650 V2 Server"},null,null,null,{"$f":"VLOOKUP(L3,Tabella_prezzi!$A$2:$L$65,9,FALSE)","v":"Lenovo ThinkSystem SR650 V2 Server"},"TS4L4-Opz1CPU",{"$f":"VLOOKUP(L3,Tabella_prezzi!$A$2:$L$65,4,FALSE)","v":2050.54},"TS4L4-Opz2CPU","L3N01",{"$f":"VLOOKUP(L3,Tabella_prezzi!$A$2:$L$65,6,FALSE)","v":"TS4L3-SRV"}]
["Lenovo ThinkSystem SR650 V2 Server (nutanix)","Chassis with Up to 16 x 2.5 Hard Drives for 2CPU Configuration","Chassis with Up to 16 x 2.5 Hard Drives for 2CPU Configuration",{"$f":"VLOOKUP(L4,Tabella_prezzi!$A$2:$L$65,8,FALSE)","v":0},null,null,1,{"$f":"VLOOKUP(L4,Tabella_prezzi!$A$2:$L$65,9,FALSE)","v":"Lenovo ThinkSystem SR650 V2 Server"},"TS4L4-Opz2CPU",{"$f":"VLOOKUP(L3,Tabella_prezzi!$A$2:$L$65,4,FALSE)","v":2050.54},"TS4L4-Opz2CPU","L3N200",{"$f":"VLOOKUP(L4,Tabella_prezzi!$A$2:$L$65,6,FALSE)","v":"TS4L3-SRV"}]
[{"$f":"Tabella_prezzi!H56","v":"Conversion Kit a sistemi HX (Hybrid)"},{"$f":"VLOOKUP(L5,Tabella_prezzi!$A$2:$L$65,8,FALSE)","v":"Lenovo ThinkSystem SR650 V2 Server"},"Kit Conversione Nutanix Chassis with Up to 16 x 2.5 Hard Drives for 2CPU Configuration",{"$f":"VLOOKUP(L5,Tabella_prezzi!$A$2:$L$65,8,FALSE)","v":"Lenovo ThinkSystem SR650 V2 Server"},null,null,1,{"$f":"VLOOKUP(L5,Tabella_prezzi!$A$2:$L$65,9,FALSE)","v":"Lenovo ThinkSystem SR650 V2 Server"},"TS4L3-KIT-NUTANIX",{"$f":"VLOOKUP(L5,Tabella_prezzi!$A$2:$L$65,4,FALSE)","v":2050.54},"TS4L3-KIT-NUTANIX","L3N01",{"$f":"VLOOKUP(L5,Tabella_prezzi!$A$2:$L$65,6,FALSE)","v":"TS4L3-SRV"}]
[{"$f":"Tabella_prezzi!#REF!","v":{"$error":"#REF!"}},{"$f":"VLOOKUP(L6,Tabella_prezzi!$A$2:$L$65,8,FALSE)","v":"Lenovo ThinkSystem SR650 V2 Server"},"Chassis fino a 12 x 3.5 Hard Drives",{"$f":"VLOOKUP(L6,Tabella_prezzi!$A$2:$L$65,8,FALSE)","v":"Lenovo ThinkSystem SR650 V2 Server"},null,null,1,{"$f":"VLOOKUP(L6,Tabella_prezzi!$A$2:$L$65,9,FALSE)","v":"Lenovo ThinkSystem SR650 V2 Server"},"TS4L3-Opz1CPU",{"$f":"VLOOKUP(L6,Tabella_prezzi!$A$2:$L$65,4,FALSE)","v":2050.54},"TS4L3-Opz2CPU","L3N01",{"$f":"VLOOKUP(L6,Tabella_prezzi!$A$2:$L$65,6,FALSE)","v":"TS4L3-SRV"}]
[{"$f":"Tabella_prezzi!H57","v":"Conversion Kit sistemi HX (All-Flash Medium-Large)"},{"$f":"VLOOKUP(L7,Tabella_prezzi!$A$2:$L$65,8,FALSE)","v":"Lenovo ThinkSystem SR650 V2 Server"},"Kit Conversione Nutanix Chassis with Up to 16 x 2.5 Hard Drives for 2CPU Configuration",{"$f":"VLOOKUP(L7,Tabella_prezzi!$A$2:$L$65,8,FALSE)","v":"Lenovo ThinkSystem SR650 V2 Server"},null,null,1,{"$f":"VLOOKUP(L7,Tabella_prezzi!$A$2:$L$65,9,FALSE)","v":"Lenovo ThinkSystem SR650 V2 Server"},"TS4L3-KIT-NUTANIX",{"$f":"VLOOKUP(L7,Tabella_prezzi!$A$2:$L$65,4,FALSE)","v":2050.54},"TS4L3-KIT-NUTANIX","L3N01",{"$f":"VLOOKUP(L7,Tabella_prezzi!$A$2:$L$65,6,FALSE)","v":"TS4L3-SRV"}]
[{"$f":"Tabella_prezzi!H58","v":"Conversion Kit a sistemi VX (Hybrid Storage)"},{"$f":"VLOOKUP(L8,Tabella_prezzi!$A$2:$L$65,8,FALSE)","v":"Lenovo ThinkSystem SR650 V2 Server"},"Chassis fino a 12 x 3.5 Hard Drives",{"$f":"VLOOKUP(L8,Tabella_prezzi!$A$2:$L$65,8,FALSE)","v":"Lenovo ThinkSystem SR650 V2 Server"},null,null,1,{"$f":"VLOOKUP(L8,Tabella_prezzi!$A$2:$L$65,9,FALSE)","v":"Lenovo ThinkSystem SR650 V2 Server"},"TS4L3-Opz1CPU",{"$f":"VLOOKUP(L8,Tabella_prezzi!$A$2:$L$65,4,FALSE)","v":2050.54},"TS4L3-Opz2CPU","L3N01",{"$f":"VLOOKUP(L8,Tabella_prezzi!$A$2:$L$65,6,FALSE)","v":"TS4L3-SRV"}]
[{"$f":"Tabella_prezzi!#REF!","v":{"$error":"#REF!"}},{"$f":"VLOOKUP(L9,Tabella_prezzi!$A$2:$L$65,8,FALSE)","v":"Lenovo ThinkSystem SR650 V2 Server"},"Kit Conversione Nutanix Chassis with Up to 16 x 2.5 Hard Drives for 2CPU Configuration",{"$f":"VLOOKUP(L9,Tabella_prezzi!$A$2:$L$65,8,FALSE)","v":"Lenovo ThinkSystem SR650 V2 Server"},null,null,1,{"$f":"VLOOKUP(L9,Tabella_prezzi!$A$2:$L$65,9,FALSE)","v":"Lenovo ThinkSystem SR650 V2 Server"},"TS4L3-KIT-NUTANIX",{"$f":"VLOOKUP(L9,Tabella_prezzi!$A$2:$L$65,4,FALSE)","v":2050.54},"TS4L3-KIT-NUTANIX","L3N01",{"$f":"VLOOKUP(L9,Tabella_prezzi!$A$2:$L$65,6,FALSE)","v":"TS4L3-SRV"}]
[{"$f":"Tabella_prezzi!H59","v":"Conversion Kit a sistemi VX (All-Flash Medium-Large)"},{"$f":"VLOOKUP(L10,Tabella_prezzi!$A$2:$L$65,8,FALSE)","v":"Lenovo ThinkSystem SR650 V2 Server"},"Kit Conversione Nutanix Chassis with Up to 16 x 2.5 Hard Drives for 2CPU Configuration",{"$f":"VLOOKUP(L10,Tabella_prezzi!$A$2:$L$65,8,FALSE)","v":"Lenovo ThinkSystem SR650 V2 Server"},null,null,1,{"$f":"VLOOKUP(L10,Tabella_prezzi!$A$2:$L$65,9,FALSE)","v":"Lenovo ThinkSystem SR650 V2 Server"},"TS4L3-KIT-NUTANIX",{"$f":"VLOOKUP(L10,Tabella_prezzi!$A$2:$L$65,4,FALSE)","v":2050.54},"TS4L3-KIT-NUTANIX","L3N01",{"$f":"VLOOKUP(L10,Tabella_prezzi!$A$2:$L$65,6,FALSE)","v":"TS4L3-SRV"}]
[]
[]
["TS4L3_Chassis"]
["Lenovo ThinkSystem SR650 V2 Server","Chassis fino a 12 x 3.5 Hard Drives","Chassis fino a 12 x 3.5 Hard Drives",{"$f":"VLOOKUP(L14,Tabella_prezzi!$A$2:$L$65,8,FALSE)","v":"Lenovo ThinkSystem SR650 V2 Server"},null,null,null,{"$f":"VLOOKUP(L14,Tabella_prezzi!$A$2:$L$65,9,FALSE)","v":"Lenovo ThinkSystem SR650 V2 Server"},{"$f":"VLOOKUP(L14,Tabella_prezzi!$A$2:$L$65,6,FALSE)","v":"TS4L3-SRV"},{"$f":"VLOOKUP(L14,Tabella_prezzi!$A$2:$L$65,4,FALSE)","v":2050.54},"TS4L3-Opz2CPU","L3N01",{"$f":"VLOOKUP(L14,Tabella_prezzi!$A$2:$L$65,6,FALSE)","v":"TS4L3-SRV"}]
[{"$f":"Tabella_prezzi!H56","v":"Conversion Kit a sistemi HX (Hybrid)"},{"$f":"VLOOKUP(L15,Tabella_prezzi!$A$2:$L$65,8,FALSE)","v":"Conversion Kit a sistemi HX (Hybrid)"},"Kit Conversione Nutanix Chassis with Up to 12 x 3.5 Hard Drives for 2CPU Configuration",{"$f":"VLOOKUP(L15,Tabella_prezzi!$A$2:$L$65,8,FALSE)","v":"Conversion Kit a sistemi HX (Hybrid)"},null,null,1,{"$f":"VLOOKUP(L15,Tabella_prezzi!$A$2:$L$65,9,FALSE)","v":"Conversion Kit da SR650 V2 a sistemi HX (Hybrid)"},{"$f":"VLOOKUP(L15,Tabella_prezzi!$A$2:$L$65,6,FALSE)","v":"TS4L3-NUTANIX-A"},{"$f":"VLOOKUP(L15,Tabella_prezzi!$A$2:$L$65,4,FALSE)","v":4200},"TS4L3-KIT-NUTANIX-A","L3N66",{"$f":"VLOOKUP(L15,Tabella_prezzi!$A$2:$L$65,6,FALSE)","v":"TS4L3-NUTANIX-A"}]
[{"$f":"Tabella_prezzi!H57","v":"Conversion Kit sistemi HX (All-Flash Medium-Large)"},{"$f":"VLOOKUP(L16,Tabella_prezzi!$A$2:$L$65,8,FALSE)","v":"Conversion Kit sistemi HX (All-Flash Medium-Large)"},"Kit Conversione Nutanix Chassis with Up to 12 x 2.5 Hard Drives for 2CPU Configuration",{"$f":"VLOOKUP(L16,Tabella_prezzi!$A$2:$L$65,8,FALSE)","v":"Conversion Kit sistemi HX (All-Flash Medium-Large)"},null,null,1,{"$f":"VLOOKUP(L16,Tabella_prezzi!$A$2:$L$65,9,FALSE)","v":"Conversion Kit sistemi HX (All-Flash Medium-Large)"},{"$f":"VLOOKUP(L16,Tabella_prezzi!$A$2:$L$65,6,FALSE)","v":"TS4L3-NUTANIX-B"},{"$f":"VLOOKUP(L16,Tabella_prezzi!$A$2:$L$65,4,FALSE)","v":7546},"TS4L3-KIT-NUTANIX-B","L3N68",{"$f":"VLOOKUP(L16,Tabella_prezzi!$A$2:$L$65,6,FALSE)","v":"TS4L3-NUTANIX-B"}]
[{"$f":"Tabella_prezzi!H58","v":"Conversion Kit a sistemi VX (Hybrid Storage)"},{"$f":"VLOOKUP(L17,Tabella_prezzi!$A$2:$L$65,8,FALSE)","v":"Conversion Kit a sistemi VX (Hybrid Storage)"},"Kit Conversione vSAN Chassis with Up to 12 x 3.5 Hard Drives for 2CPU Configuration",{"$f":"VLOOKUP(L17,Tabella_prezzi!$A$2:$L$65,8,FALSE)","v":"Conversion Kit a sistemi VX (Hybrid Storage)"},null,null,1,{"$f":"VLOOKUP(L17,Tabella_prezzi!$A$2:$L$65,9,FALSE)","v":"Conversion Kit da SR650 V2 a sistemi VX (Hybrid Storage)"},{"$f":"VLOOKUP(L17,Tabella_prezzi!$A$2:$L$65,6,FALSE)","v":"TS4L3-vSAN-A"},{"$f":"VLOOKUP(L17,Tabella_prezzi!$A$2:$L$65,4,FALSE)","v":3200},"TS4L3--KIT-VSAN-A","L3N69",{"$f":"VLOOKUP(L17,Tabella_prezzi!$A$2:$L$65,6,FALSE)","v":"TS4L3-vSAN-A"}]
[{"$f":"Tabella_prezzi!H59","v":"Conversion Kit a sistemi VX (All-Flash Medium-Large)"},{"$f":"VLOOKUP(L18,Tabella_prezzi!$A$2:$L$65,8,FALSE)","v":"Conversion Kit a sistemi VX (All-Flash Medium-Large)"},"Kit Conversione vSAN Chassis with Up to 12 x 2.5 Hard Drives for 2CPU Configuration",{"$f":"VLOOKUP(L18,Tabella_prezzi!$A$2:$L$65,8,FALSE)","v":"Conversion Kit a sistemi VX (All-Flash Medium-Large)"},null,null,1,{"$f":"VLOOKUP(L18,Tabella_prezzi!$A$2:$L$65,9,FALSE)","v":"Conversion Kit da SR650 V2 a sistemi VX (All-Flash Medium-Large)"},{"$f":"VLOOKUP(L18,Tabella_prezzi!$A$2:$L$65,6,FALSE)","v":"TS4L3-vSAN-B"},{"$f":"VLOOKUP(L18,Tabella_prezzi!$A$2:$L$65,4,FALSE)","v":7131.5},"TS4L3-KIT-VSAN-B","L3N71",{"$f":"VLOOKUP(L18,Tabella_prezzi!$A$2:$L$65,6,FALSE)","v":"TS4L3-vSAN-B"}]
["TS4L3_CPU"]
["No Additional Processor",null,null,null,null,null,{"$f":"\"\"","v":""},null,{"$f":"\"\"","v":""},null,null,{"$f":"\"\"","v":""},{"$f":"\"\"","v":""}]
[{"$f":"D21","v":"Intel Xeon Silver 4310 12C 120W 2.1GHz Processor"},null,null,{"$f":"VLOOKUP(L21,Tabella_prezzi!$A$2:$L$65,8,FALSE)","v":"Intel Xeon Silver 4310 12C 120W 2.1GHz Processor"},null,null,1,{"$f":"VLOOKUP(L21,Tabella_prezzi!$A$2:$L$65,9,FALSE)","v":"Intel Xeon Silver 4310 12C 120W 2.1GHz Processor"},{"$f":"VLOOKUP(L21,Tabella_prezzi!$A$2:$L$65,3,FALSE)","v":"Kit n. 1 Processore aggiuntivo"},{"$f":"VLOOKUP(L21,Tabella_prezzi!$A$2:$L$65,4,FALSE)","v":623.57000000000005},null,"L3N02",{"$f":"VLOOKUP(L21,Tabella_prezzi!$A$2:$L$65,6,FALSE)","v":"TS4L3-CPU"}]
[{"$f":"D22","v":"Intel Xeon Gold 5315Y 8C 140W 3.2GHz Processor"},null,null,{"$f":"VLOOKUP(L22,Tabella_prezzi!$A$2:$L$115,8,FALSE)","v":"Intel Xeon Gold 5315Y 8C 140W 3.2GHz Processor"},null,null,1,{"$f":"VLOOKUP(L22,Tabella_prezzi!$A$2:$L$115,9,FALSE)","v":"Intel Xeon Gold 5315Y 8C 140W 3.2GHz Processor"},{"$f":"VLOOKUP(L22,Tabella_prezzi!$A$2:$L$115,3,FALSE)","v":"OpzCPU5315"},{"$f":"VLOOKUP(L22,Tabella_prezzi!$A$2:$L$115,4,FALSE)","v":0},null,"L3N93",{"$f":"VLOOKUP(L22,Tabella_prezzi!$A$2:$L$115,6,FALSE)","v":"TS4L3-CPU5315"}]
["Intel Xeon Gold 6326 16C 185W 2.9GHz Processor",null,null,{"$f":"VLOOKUP(L23,Tabella_prezzi!$A$2:$L$115,8,FALSE)","v":"Intel Xeon Gold 6326 16C 185W 2.9GHz Processor"},null,null,1,{"$f":"VLOOKUP(L23,Tabella_prezzi!$A$2:$L$115,9,FALSE)","v":"Intel Xeon Gold 6326 16C 185W 2.9GHz Processor"},{"$f":"VLOOKUP(L23,Tabella_prezzi!$A$2:$L$115,3,FALSE)","v":"Opzso nel KIT di Conversione"},null,{"$f":"VLOOKUP(L23,Tabella_prezzi!$A$2:$L$115,4,FALSE)","v":0},"L3N94",{"$f":"VLOOKUP(L23,Tabella_prezzi!$A$2:$L$115,6,FALSE)","v":"Compreso nel KIT di Conversione"}]
[]
["TS4L3_RAM (1CPU) 32GB"]
[32,"Memory Capacity",null,{"$f":"D27","v":"32GB TruDDR4 3200 MHz (2Rx4 1.2V) RDIMM"},null,"370-AEVP",0,{"$f":"H27","v":"ThinkSystem 32GB TruDDR4 3200 MHz (2Rx4 1.2V) RDIMM"},null,null,null,{"$f":"\"\"","v":""},{"$f":"M27","v":"TS4L3-RAM32"},null,"TS4L3-RAM32"]
[64,"Memory Capacity",null,{"$f":"VLOOKUP(L27,Tabella_prezzi!$A$2:$L$65,8,FALSE)","v":"32GB TruDDR4 3200 MHz (2Rx4 1.2V) RDIMM"},null,"370-AEVP",0,{"$f":"VLOOKUP(L27,Tabella_prezzi!$A$2:$L$65,9,FALSE)","v":"ThinkSystem 32GB TruDDR4 3200 MHz (2Rx4 1.2V) RDIMM"},{"$f":"VLOOKUP(L27,Tabella_prezzi!$A$2:$L$65,3,FALSE)","v":"OpzRAM32GB"},{"$f":"VLOOKUP(L27,Tabella_prezzi!$A$2:$L$65,4,FALSE)*G27","v":0},null,"L3N03",{"$f":"VLOOKUP(L27,Tabella_prezzi!$A$2:$L$65,6,FALSE)","v":"TS4L3-RAM32"},null,"TS4L3-RAM64"]
[{"$f":"(32*G28)+$A$27","v":128},"Memory Capacity",null,{"$f":"VLOOKUP(L28,Tabella_prezzi!$A$2:$L$65,8,FALSE)","v":"32GB TruDDR4 3200 MHz (2Rx4 1.2V) RDIMM"},null,"370-AEVP",2,{"$f":"VLOOKUP(L28,Tabella_prezzi!$A$2:$L$65,9,FALSE)","v":"ThinkSystem 32GB TruDDR4 3200 MHz (2Rx4 1.2V) RDIMM"},{"$f":"VLOOKUP(L28,Tabella_prezzi!$A$2:$L$65,3,FALSE)","v":"OpzRAM32GB"},{"$f":"VLOOKUP(L28,Tabella_prezzi!$A$2:$L$65,4,FALSE)*G28","v":446.62},null,"L3N03",{"$f":"VLOOKUP(L28,Tabella_prezzi!$A$2:$L$65,6,FALSE)","v":"TS4L3-RAM32"}]
[{"$f":"(32*G29)+$A$27","v":192},"Memory Capacity",null,{"$f":"VLOOKUP(L29,Tabella_prezzi!$A$2:$L$65,8,FALSE)","v":"32GB TruDDR4 3200 MHz (2Rx4 1.2V) RDIMM"},null,"370-AEVP",4,{"$f":"VLOOKUP(L29,Tabella_prezzi!$A$2:$L$65,9,FALSE)","v":"ThinkSystem 32GB TruDDR4 3200 MHz (2Rx4 1.2V) RDIMM"},{"$f":"VLOOKUP(L29,Tabella_prezzi!$A$2:$L$65,3,FALSE)","v":"OpzRAM32GB"},{"$f":"VLOOKUP(L29,Tabella_prezzi!$A$2:$L$65,4,FALSE)*G29","v":893.24},null,"L3N03",{"$f":"VLOOKUP(L29,Tabella_prezzi!$A$2:$L$65,6,FALSE)","v":"TS4L3-RAM32"}]
[{"$f":"(32*G30)+$A$27","v":256},"Memory Capacity",null,{"$f":"VLOOKUP(L30,Tabella_prezzi!$A$2:$L$65,8,FALSE)","v":"32GB TruDDR4 3200 MHz (2Rx4 1.2V) RDIMM"},null,"370-AEVP",6,{"$f":"VLOOKUP(L30,Tabella_prezzi!$A$2:$L$65,9,FALSE)","v":"ThinkSystem 32GB TruDDR4 3200 MHz (2Rx4 1.2V) RDIMM"},{"$f":"VLOOKUP(L30,Tabella_prezzi!$A$2:$L$65,3,FALSE)","v":"OpzRAM32GB"},{"$f":"VLOOKUP(L30,Tabella_prezzi!$A$2:$L$65,4,FALSE)*G30","v":1339.8600000000001},null,"L3N03",{"$f":"VLOOKUP(L30,Tabella_prezzi!$A$2:$L$65,6,FALSE)","v":"TS4L3-RAM32"}]
[384,"Memory Capacity",null,{"$f":"VLOOKUP(L31,Tabella_prezzi!$A$2:$L$65,8,FALSE)","v":"32GB TruDDR4 3200 MHz (2Rx4 1.2V) RDIMM"},null,"370-AEVP",10,{"$f":"VLOOKUP(L31,Tabella_prezzi!$A$2:$L$65,9,FALSE)","v":"ThinkSystem 32GB TruDDR4 3200 MHz (2Rx4 1.2V) RDIMM"},{"$f":"VLOOKUP(L31,Tabella_prezzi!$A$2:$L$65,3,FALSE)","v":"OpzRAM32GB"},{"$f":"VLOOKUP(L31,Tabella_prezzi!$A$2:$L$65,4,FALSE)*G31","v":2233.1},null,"L3N03",{"$f":"VLOOKUP(L31,Tabella_prezzi!$A$2:$L$65,6,FALSE)","v":"TS4L3-RAM32"}]
[512,"Memory Capacity",null,{"$f":"VLOOKUP(L32,Tabella_prezzi!$A$2:$L$65,8,FALSE)","v":"32GB TruDDR4 3200 MHz (2Rx4 1.2V) RDIMM"},null,"370-AEVP",14,{"$f":"VLOOKUP(L32,Tabella_prezzi!$A$2:$L$65,9,FALSE)","v":"ThinkSystem 32GB TruDDR4 3200 MHz (2Rx4 1.2V) RDIMM"},{"$f":"VLOOKUP(L32,Tabella_prezzi!$A$2:$L$65,3,FALSE)","v":"OpzRAM32GB"},{"$f":"VLOOKUP(L32,Tabella_prezzi!$A$2:$L$65,4,FALSE)*G32","v":3126.34},null,"L3N03",{"$f":"VLOOKUP(L32,Tabella_prezzi!$A$2:$L$65,6,FALSE)","v":"TS4L3-RAM32"}]
["TS4L3_RAM (1CPU) 64GB"]
[64,"Memory Capacity",null,{"$f":"VLOOKUP(L34,Tabella_prezzi!$A$2:$L$65,8,FALSE)","v":"64GB TruDDR4 3200 MHz (2Rx4 1.2V) RDIMM"},null,"370-AEVP",0,{"$f":"VLOOKUP(L34,Tabella_prezzi!$A$2:$L$65,9,FALSE)","v":"ThinkSystem 64GB TruDDR4 3200 MHz (2Rx4 1.2V) RDIMM"},{"$f":"VLOOKUP(L34,Tabella_prezzi!$A$2:$L$65,3,FALSE)","v":"OpzRAM64GB"},{"$f":"VLOOKUP(L34,Tabella_prezzi!$A$2:$L$65,4,FALSE)*G34","v":0},null,"L3N04",{"$f":"VLOOKUP(L34,Tabella_prezzi!$A$2:$L$65,6,FALSE)","v":"TS4L3-RAM64"}]
[{"$f":"(64*G35)+$A$34","v":128},"Memory Capacity",null,{"$f":"VLOOKUP(L35,Tabella_prezzi!$A$2:$L$65,8,FALSE)","v":"64GB TruDDR4 3200 MHz (2Rx4 1.2V) RDIMM"},null,"370-AEVP",1,{"$f":"VLOOKUP(L35,Tabella_prezzi!$A$2:$L$65,9,FALSE)","v":"ThinkSystem 64GB TruDDR4 3200 MHz (2Rx4 1.2V) RDIMM"},{"$f":"VLOOKUP(L35,Tabella_prezzi!$A$2:$L$65,3,FALSE)","v":"OpzRAM64GB"},{"$f":"VLOOKUP(L35,Tabella_prezzi!$A$2:$L$65,4,FALSE)*G35","v":478.29},null,"L3N04",{"$f":"VLOOKUP(L35,Tabella_prezzi!$A$2:$L$65,6,FALSE)","v":"TS4L3-RAM64"}]
[{"$f":"(64*G36)+$A$34","v":256},"Memory Capacity",null,{"$f":"VLOOKUP(L36,Tabella_prezzi!$A$2:$L$65,8,FALSE)","v":"64GB TruDDR4 3200 MHz (2Rx4 1.2V) RDIMM"},null,"370-AEVP",3,{"$f":"VLOOKUP(L36,Tabella_prezzi!$A$2:$L$65,9,FALSE)","v":"ThinkSystem 64GB TruDDR4 3200 MHz (2Rx4 1.2V) RDIMM"},{"$f":"VLOOKUP(L36,Tabella_prezzi!$A$2:$L$65,3,FALSE)","v":"OpzRAM64GB"},{"$f":"VLOOKUP(L36,Tabella_prezzi!$A$2:$L$65,4,FALSE)*G36","v":1434.8700000000001},null,"L3N04",{"$f":"VLOOKUP(L36,Tabella_prezzi!$A$2:$L$65,6,FALSE)","v":"TS4L3-RAM64"}]
[384,"Memory Capacity",null,{"$f":"VLOOKUP(L37,Tabella_prezzi!$A$2:$L$65,8,FALSE)","v":"64GB TruDDR4 3200 MHz (2Rx4 1.2V) RDIMM"},null,"370-AEVP",5,{"$f":"VLOOKUP(L37,Tabella_prezzi!$A$2:$L$65,9,FALSE)","v":"ThinkSystem 64GB TruDDR4 3200 MHz (2Rx4 1.2V) RDIMM"},{"$f":"VLOOKUP(L37,Tabella_prezzi!$A$2:$L$65,3,FALSE)","v":"OpzRAM64GB"},{"$f":"VLOOKUP(L37,Tabella_prezzi!$A$2:$L$65,4,FALSE)*G37","v":2391.4500000000003},null,"L3N04",{"$f":"VLOOKUP(L37,Tabella_prezzi!$A$2:$L$65,6,FALSE)","v":"TS4L3-RAM64"}]
[512,"Memory Capacity",null,{"$f":"VLOOKUP(L38,Tabella_prezzi!$A$2:$L$65,8,FALSE)","v":"64GB TruDDR4 3200 MHz (2Rx4 1.2V) RDIMM"},null,"370-AEVP",7,{"$f":"VLOOKUP(L38,Tabella_prezzi!$A$2:$L$65,9,FALSE)","v":"ThinkSystem 64GB TruDDR4 3200 MHz (2Rx4 1.2V) RDIMM"},{"$f":"VLOOKUP(L38,Tabella_prezzi!$A$2:$L$65,3,FALSE)","v":"OpzRAM64GB"},{"$f":"VLOOKUP(L38,Tabella_prezzi!$A$2:$L$65,4,FALSE)*G38","v":3348.03},null,"L3N04",{"$f":"VLOOKUP(L38,Tabella_prezzi!$A$2:$L$65,6,FALSE)","v":"TS4L3-RAM64"}]
[768,"Memory Capacity",null,{"$f":"VLOOKUP(L39,Tabella_prezzi!$A$2:$L$65,8,FALSE)","v":"64GB TruDDR4 3200 MHz (2Rx4 1.2V) RDIMM"},null,"370-AEVP",11,{"$f":"VLOOKUP(L39,Tabella_prezzi!$A$2:$L$65,9,FALSE)","v":"ThinkSystem 64GB TruDDR4 3200 MHz (2Rx4 1.2V) RDIMM"},{"$f":"VLOOKUP(L39,Tabella_prezzi!$A$2:$L$65,3,FALSE)","v":"OpzRAM64GB"},{"$f":"VLOOKUP(L39,Tabella_prezzi!$A$2:$L$65,4,FALSE)*G39","v":5261.1900000000005},null,"L3N04",{"$f":"VLOOKUP(L39,Tabella_prezzi!$A$2:$L$65,6,FALSE)","v":"TS4L3-RAM64"}]
[1024,"Memory Capacity",null,{"$f":"VLOOKUP(L40,Tabella_prezzi!$A$2:$L$65,8,FALSE)","v":"64GB TruDDR4 3200 MHz (2Rx4 1.2V) RDIMM"},null,"370-AEVP",15,{"$f":"VLOOKUP(L40,Tabella_prezzi!$A$2:$L$65,9,FALSE)","v":"ThinkSystem 64GB TruDDR4 3200 MHz (2Rx4 1.2V) RDIMM"},{"$f":"VLOOKUP(L40,Tabella_prezzi!$A$2:$L$65,3,FALSE)","v":"OpzRAM64GB"},{"$f":"VLOOKUP(L40,Tabella_prezzi!$A$2:$L$65,4,FALSE)*G40","v":7174.35},null,"L3N04",{"$f":"VLOOKUP(L40,Tabella_prezzi!$A$2:$L$65,6,FALSE)","v":"TS4L3-RAM64"}]
["TS4L3_RAM (vSAN)"]
[{"$f":"(32*G42)+256","v":512},"Memory Capacity",null,{"$f":"D43","v":"32GB TruDDR4 3200 MHz (2Rx4 1.2V) RDIMM"},null,"370-AEVP",8,{"$f":"H43","v":"ThinkSystem 32GB TruDDR4 3200 MHz (2Rx4 1.2V) RDIMM"},{"$f":"VLOOKUP(L42,Tabella_prezzi!$A$2:$L$65,3,FALSE)","v":"OpzRAM32GB"},{"$f":"VLOOKUP(L42,Tabella_prezzi!$A$2:$L$65,4,FALSE)*G42","v":1786.48},null,"L3N03",{"$f":"M43","v":"TS4L3-RAM32"}]
[{"$f":"(32*G43)+256","v":1024},"Memory Capacity",null,{"$f":"VLOOKUP(L43,Tabella_prezzi!$A$2:$L$65,8,FALSE)","v":"32GB TruDDR4 3200 MHz (2Rx4 1.2V) RDIMM"},null,"370-AEVP",24,{"$f":"VLOOKUP(L43,Tabella_prezzi!$A$2:$L$65,9,FALSE)","v":"ThinkSystem 32GB TruDDR4 3200 MHz (2Rx4 1.2V) RDIMM"},{"$f":"VLOOKUP(L43,Tabella_prezzi!$A$2:$L$65,3,FALSE)","v":"OpzRAM32GB"},{"$f":"VLOOKUP(L43,Tabella_prezzi!$A$2:$L$65,4,FALSE)*G43","v":5359.4400000000005},null,"L3N03",{"$f":"VLOOKUP(L43,Tabella_prezzi!$A$2:$L$65,6,FALSE)","v":"TS4L3-RAM32"}]
[{"$f":"(64*G44)","v":2048},"Memory Capacity",null,{"$f":"VLOOKUP(L44,Tabella_prezzi!$A$2:$L$65,8,FALSE)","v":"64GB TruDDR4 3200 MHz (2Rx4 1.2V) RDIMM"},null,"370-AEVP",32,{"$f":"VLOOKUP(L44,Tabella_prezzi!$A$2:$L$65,9,FALSE)","v":"ThinkSystem 64GB TruDDR4 3200 MHz (2Rx4 1.2V) RDIMM"},{"$f":"VLOOKUP(L44,Tabella_prezzi!$A$2:$L$65,3,FALSE)","v":"OpzRAM64GB"},{"$f":"VLOOKUP(L44,Tabella_prezzi!$A$2:$L$65,4,FALSE)*G44","v":15305.28},null,"L3N04",{"$f":"VLOOKUP(L44,Tabella_prezzi!$A$2:$L$65,6,FALSE)","v":"TS4L3-RAM64"}]
["TS4L3_RAM (2CPU) 32GB"]
[64,"Memory Capacity",null,{"$f":"VLOOKUP(L46,Tabella_prezzi!$A$2:$L$65,8,FALSE)","v":"32GB TruDDR4 3200 MHz (2Rx4 1.2V) RDIMM"},null,"370-AEVP",0,{"$f":"VLOOKUP(L46,Tabella_prezzi!$A$2:$L$65,9,FALSE)","v":"ThinkSystem 32GB TruDDR4 3200 MHz (2Rx4 1.2V) RDIMM"},{"$f":"VLOOKUP(L46,Tabella_prezzi!$A$2:$L$65,3,FALSE)","v":"OpzRAM32GB"},{"$f":"VLOOKUP(L46,Tabella_prezzi!$A$2:$L$65,4,FALSE)*G46","v":0},null,"L3N03",{"$f":"VLOOKUP(L46,Tabella_prezzi!$A$2:$L$65,6,FALSE)","v":"TS4L3-RAM32"}]
[{"$f":"(32*G47)+$A$27","v":128},"Memory Capacity",null,{"$f":"VLOOKUP(L47,Tabella_prezzi!$A$2:$L$65,8,FALSE)","v":"32GB TruDDR4 3200 MHz (2Rx4 1.2V) RDIMM"},null,"370-AEVP",2,{"$f":"VLOOKUP(L47,Tabella_prezzi!$A$2:$L$65,9,FALSE)","v":"ThinkSystem 32GB TruDDR4 3200 MHz (2Rx4 1.2V) RDIMM"},{"$f":"VLOOKUP(L47,Tabella_prezzi!$A$2:$L$65,3,FALSE)","v":"OpzRAM32GB"},{"$f":"VLOOKUP(L47,Tabella_prezzi!$A$2:$L$65,4,FALSE)*G47","v":446.62},null,"L3N03",{"$f":"VLOOKUP(L47,Tabella_prezzi!$A$2:$L$65,6,FALSE)","v":"TS4L3-RAM32"}]
[{"$f":"(32*G48)+$A$27","v":256},"Memory Capacity",null,{"$f":"VLOOKUP(L48,Tabella_prezzi!$A$2:$L$65,8,FALSE)","v":"32GB TruDDR4 3200 MHz (2Rx4 1.2V) RDIMM"},null,"370-AEVP",6,{"$f":"VLOOKUP(L48,Tabella_prezzi!$A$2:$L$65,9,FALSE)","v":"ThinkSystem 32GB TruDDR4 3200 MHz (2Rx4 1.2V) RDIMM"},{"$f":"VLOOKUP(L48,Tabella_prezzi!$A$2:$L$65,3,FALSE)","v":"OpzRAM32GB"},{"$f":"VLOOKUP(L48,Tabella_prezzi!$A$2:$L$65,4,FALSE)*G48","v":1339.8600000000001},null,"L3N03",{"$f":"VLOOKUP(L48,Tabella_prezzi!$A$2:$L$65,6,FALSE)","v":"TS4L3-RAM32"}]
[512,"Memory Capacity",null,{"$f":"VLOOKUP(L49,Tabella_prezzi!$A$2:$L$65,8,FALSE)","v":"32GB TruDDR4 3200 MHz (2Rx4 1.2V) RDIMM"},null,"370-AEVP",14,{"$f":"VLOOKUP(L49,Tabella_prezzi!$A$2:$L$65,9,FALSE)","v":"ThinkSystem 32GB TruDDR4 3200 MHz (2Rx4 1.2V) RDIMM"},{"$f":"VLOOKUP(L49,Tabella_prezzi!$A$2:$L$65,3,FALSE)","v":"OpzRAM32GB"},{"$f":"VLOOKUP(L49,Tabella_prezzi!$A$2:$L$65,4,FALSE)*G49","v":3126.34},null,"L3N03",{"$f":"VLOOKUP(L49,Tabella_prezzi!$A$2:$L$65,6,FALSE)","v":"TS4L3-RAM32"}]
[768,"Memory Capacity",null,{"$f":"VLOOKUP(L50,Tabella_prezzi!$A$2:$L$65,8,FALSE)","v":"32GB TruDDR4 3200 MHz (2Rx4 1.2V) RDIMM"},null,"370-AEVP",22,{"$f":"VLOOKUP(L50,Tabella_prezzi!$A$2:$L$65,9,FALSE)","v":"ThinkSystem 32GB TruDDR4 3200 MHz (2Rx4 1.2V) RDIMM"},{"$f":"VLOOKUP(L50,Tabella_prezzi!$A$2:$L$65,3,FALSE)","v":"OpzRAM32GB"},{"$f":"VLOOKUP(L50,Tabella_prezzi!$A$2:$L$65,4,FALSE)*G50","v":4912.82},null,"L3N03",{"$f":"VLOOKUP(L50,Tabella_prezzi!$A$2:$L$65,6,FALSE)","v":"TS4L3-RAM32"}]
[1024,"Memory Capacity",null,{"$f":"VLOOKUP(L51,Tabella_prezzi!$A$2:$L$65,8,FALSE)","v":"32GB TruDDR4 3200 MHz (2Rx4 1.2V) RDIMM"},null,"370-AEVP",30,{"$f":"VLOOKUP(L51,Tabella_prezzi!$A$2:$L$65,9,FALSE)","v":"ThinkSystem 32GB TruDDR4 3200 MHz (2Rx4 1.2V) RDIMM"},{"$f":"VLOOKUP(L51,Tabella_prezzi!$A$2:$L$65,3,FALSE)","v":"OpzRAM32GB"},{"$f":"VLOOKUP(L51,Tabella_prezzi!$A$2:$L$65,4,FALSE)*G51","v":6699.3},null,"L3N03",{"$f":"VLOOKUP(L51,Tabella_prezzi!$A$2:$L$65,6,FALSE)","v":"TS4L3-RAM32"}]
["TS4L3_RAM (2CPU) 64GB"]
[{"$f":"(64*G53)+$A$27","v":128},"Memory Capacity",null,{"$f":"VLOOKUP(L53,Tabella_prezzi!$A$2:$L$65,8,FALSE)","v":"64GB TruDDR4 3200 MHz (2Rx4 1.2V) RDIMM"},null,"370-AEVP",1,{"$f":"VLOOKUP(L53,Tabella_prezzi!$A$2:$L$65,9,FALSE)","v":"ThinkSystem 64GB TruDDR4 3200 MHz (2Rx4 1.2V) RDIMM"},{"$f":"VLOOKUP(L53,Tabella_prezzi!$A$2:$L$65,3,FALSE)","v":"OpzRAM64GB"},{"$f":"VLOOKUP(L53,Tabella_prezzi!$A$2:$L$65,4,FALSE)*G53","v":478.29},null,"L3N04",{"$f":"VLOOKUP(L53,Tabella_prezzi!$A$2:$L$65,6,FALSE)","v":"TS4L3-RAM64"}]
[{"$f":"(64*G54)+$A$27","v":256},"Memory Capacity",null,{"$f":"VLOOKUP(L54,Tabella_prezzi!$A$2:$L$65,8,FALSE)","v":"64GB TruDDR4 3200 MHz (2Rx4 1.2V) RDIMM"},null,"370-AEVP",3,{"$f":"VLOOKUP(L54,Tabella_prezzi!$A$2:$L$65,9,FALSE)","v":"ThinkSystem 64GB TruDDR4 3200 MHz (2Rx4 1.2V) RDIMM"},{"$f":"VLOOKUP(L54,Tabella_prezzi!$A$2:$L$65,3,FALSE)","v":"OpzRAM64GB"},{"$f":"VLOOKUP(L54,Tabella_prezzi!$A$2:$L$65,4,FALSE)*G54","v":1434.8700000000001},null,"L3N04",{"$f":"VLOOKUP(L54,Tabella_prezzi!$A$2:$L$65,6,FALSE)","v":"TS4L3-RAM64"}]
[512,"Memory Capacity",null,{"$f":"VLOOKUP(L55,Tabella_prezzi!$A$2:$L$65,8,FALSE)","v":"64GB TruDDR4 3200 MHz (2Rx4 1.2V) RDIMM"},null,"370-AEVP",7,{"$f":"VLOOKUP(L55,Tabella_prezzi!$A$2:$L$65,9,FALSE)","v":"ThinkSystem 64GB TruDDR4 3200 MHz (2Rx4 1.2V) RDIMM"},{"$f":"VLOOKUP(L55,Tabella_prezzi!$A$2:$L$65,3,FALSE)","v":"OpzRAM64GB"},{"$f":"VLOOKUP(L55,Tabella_prezzi!$A$2:$L$65,4,FALSE)*G55","v":3348.03},null,"L3N04",{"$f":"VLOOKUP(L55,Tabella_prezzi!$A$2:$L$65,6,FALSE)","v":"TS4L3-RAM64"}]
[1024,"Memory Capacity",null,{"$f":"VLOOKUP(L56,Tabella_prezzi!$A$2:$L$65,8,FALSE)","v":"64GB TruDDR4 3200 MHz (2Rx4 1.2V) RDIMM"},null,"370-AEVP",15,{"$f":"VLOOKUP(L56,Tabella_prezzi!$A$2:$L$65,9,FALSE)","v":"ThinkSystem 64GB TruDDR4 3200 MHz (2Rx4 1.2V) RDIMM"},{"$f":"VLOOKUP(L56,Tabella_prezzi!$A$2:$L$65,3,FALSE)","v":"OpzRAM64GB"},{"$f":"VLOOKUP(L56,Tabella_prezzi!$A$2:$L$65,4,FALSE)*G56","v":7174.35},null,"L3N04",{"$f":"VLOOKUP(L56,Tabella_prezzi!$A$2:$L$65,6,FALSE)","v":"TS4L3-RAM64"}]
[1536,"Memory Capacity",null,{"$f":"VLOOKUP(L57,Tabella_prezzi!$A$2:$L$65,8,FALSE)","v":"64GB TruDDR4 3200 MHz (2Rx4 1.2V) RDIMM"},null,"370-AEVP",23,{"$f":"VLOOKUP(L57,Tabella_prezzi!$A$2:$L$65,9,FALSE)","v":"ThinkSystem 64GB TruDDR4 3200 MHz (2Rx4 1.2V) RDIMM"},{"$f":"VLOOKUP(L57,Tabella_prezzi!$A$2:$L$65,3,FALSE)","v":"OpzRAM64GB"},{"$f":"VLOOKUP(L57,Tabella_prezzi!$A$2:$L$65,4,FALSE)*G57","v":11000.67},null,"L3N04",{"$f":"VLOOKUP(L57,Tabella_prezzi!$A$2:$L$65,6,FALSE)","v":"TS4L3-RAM64"}]
[2048,"Memory Capacity",null,{"$f":"VLOOKUP(L58,Tabella_prezzi!$A$2:$L$65,8,FALSE)","v":"64GB TruDDR4 3200 MHz (2Rx4 1.2V) RDIMM"},null,"370-AEVP",31,{"$f":"VLOOKUP(L58,Tabella_prezzi!$A$2:$L$65,9,FALSE)","v":"ThinkSystem 64GB TruDDR4 3200 MHz (2Rx4 1.2V) RDIMM"},{"$f":"VLOOKUP(L58,Tabella_prezzi!$A$2:$L$65,3,FALSE)","v":"OpzRAM64GB"},{"$f":"VLOOKUP(L58,Tabella_prezzi!$A$2:$L$65,4,FALSE)*G58","v":14826.99},null,"L3N04",{"$f":"VLOOKUP(L58,Tabella_prezzi!$A$2:$L$65,6,FALSE)","v":"TS4L3-RAM64"}]
[1,2,3,4,5,6,7,8,9,10,11,12,13,14,15,16,17,18,19,20,21,22,23]
[]
["TS4L3_OS"]
["No Operating System","Operating System",null,null,null,null,0,null,{"$f":"\"\"","v":""},null,null,{"$f":"\"\"","v":""},{"$f":"\"\"","v":""},0,null,{"$f":"\"\"","v":""},{"$f":"\"\"","v":""},null,0,0,null,null,{"$f":"\"\"","v":""}]
[{"$f":"D63","v":"Windows Server 2022,Standard,ROK,16CORE"},"Operating System",null,{"$f":"VLOOKUP(L63,Tabella_prezzi!$A$2:$L$65,9,FALSE)","v":"Windows Server 2022,Standard,ROK,16CORE"},null,null,1,{"$f":"VLOOKUP(L63,Tabella_prezzi!$A$2:$L$65,9,FALSE)","v":"Windows Server 2022,Standard,ROK,16CORE"},{"$f":"VLOOKUP(L63,Tabella_prezzi!$A$2:$L$65,3,FALSE)","v":"OpzWinServSTD"},{"$f":"VLOOKUP(L63,Tabella_prezzi!$A$2:$L$65,4,FALSE)","v":867.59},null,"L3N18",{"$f":"VLOOKUP(L63,Tabella_prezzi!$A$2:$L$65,6,FALSE)","v":"TS4L3-WINSRVSTD"},16,{"$f":"VLOOKUP(T63,Tabella_prezzi!$A$2:$L$65,9,FALSE)","v":{"$error":"#N/A"}},{"$f":"VLOOKUP(T63,Tabella_prezzi!$A$2:$L$65,3,FALSE)","v":{"$error":"#N/A"}},{"$f":"VLOOKUP(T63,Tabella_prezzi!$A$2:$L$65,4,FALSE)*N63","v":{"$error":"#N/A"}},null,6,"L4N23",{"$f":"VLOOKUP(T63,Tabella_prezzi!$A$2:$L$65,4,FALSE)*S63","v":{"$error":"#N/A"}},null,{"$f":"VLOOKUP(T63,Tabella_prezzi!$A$2:$L$65,6,FALSE)","v":{"$error":"#N/A"}}]
["Ubuntu 22.04 LTS 64 Bit","Operating System",null,{"$f":"VLOOKUP(L64,Tabella_prezzi!$A$2:$L$65,9,FALSE)","v":"Ubuntu 22.04 LTS 64 Bit"},null,null,1,{"$f":"VLOOKUP(L64,Tabella_prezzi!$A$2:$L$65,9,FALSE)","v":"Ubuntu 22.04 LTS 64 Bit"},{"$f":"VLOOKUP(L64,Tabella_prezzi!$A$2:$L$65,3,FALSE)","v":"OpzOpenSource"},{"$f":"VLOOKUP(L64,Tabella_prezzi!$A$2:$L$65,4,FALSE)","v":9.5399999999999991},null,"L3N22",{"$f":"VLOOKUP(L64,Tabella_prezzi!$A$2:$L$65,6,FALSE)","v":"TS4L3-LINUX"},16,{"$f":"VLOOKUP(T64,Tabella_prezzi!$A$2:$L$65,9,FALSE)","v":{"$error":"#N/A"}},{"$f":"VLOOKUP(T64,Tabella_prezzi!$A$2:$L$65,3,FALSE)","v":{"$error":"#N/A"}},{"$f":"VLOOKUP(T64,Tabella_prezzi!$A$2:$L$65,4,FALSE)*N64","v":{"$error":"#N/A"}},null,6,"L4N23",{"$f":"VLOOKUP(T64,Tabella_prezzi!$A$2:$L$65,4,FALSE)*S64","v":{"$error":"#N/A"}},null,{"$f":"VLOOKUP(T64,Tabella_prezzi!$A$2:$L$65,6,FALSE)","v":{"$error":"#N/A"}}]
[{"$f":"D65","v":"Windows Server 2022 Standard Edition, Add License,2CORE"},"Operating System",null,{"$f":"VLOOKUP(L65,Tabella_prezzi!$A$2:$L$65,9,FALSE)","v":"Windows Server 2022 Standard Edition, Add License,2CORE"},null,null,1,{"$f":"VLOOKUP(L65,Tabella_prezzi!$A$2:$L$65,9,FALSE)","v":"Windows Server 2022 Standard Edition, Add License,2CORE"},{"$f":"VLOOKUP(L65,Tabella_prezzi!$A$2:$L$65,3,FALSE)","v":"OpzWinServSTD2core"},{"$f":"VLOOKUP(L65,Tabella_prezzi!$A$2:$L$65,4,FALSE)","v":126.25},null,"L3N21",{"$f":"VLOOKUP(L65,Tabella_prezzi!$A$2:$L$65,6,FALSE)","v":"TS4L3-WINSRV2C"}]
["1-pack of Windows Server 2022/2019 Device CALs (STD or DC)","Operating System",null,{"$f":"VLOOKUP(L66,Tabella_prezzi!$A$2:$L$65,9,FALSE)","v":"1-pack of Windows Server 2022/2019 Device CALs (STD or DC)"},null,null,1,{"$f":"VLOOKUP(L66,Tabella_prezzi!$A$2:$L$65,9,FALSE)","v":"1-pack of Windows Server 2022/2019 Device CALs (STD or DC)"},{"$f":"VLOOKUP(L66,Tabella_prezzi!$A$2:$L$65,3,FALSE)","v":"OpzDeviceCal"},{"$f":"VLOOKUP(L66,Tabella_prezzi!$A$2:$L$65,4,FALSE)","v":37.369999999999997},null,"L3N19",{"$f":"VLOOKUP(L66,Tabella_prezzi!$A$2:$L$65,6,FALSE)","v":"TS4L3-WINDEVCAL"}]
[{"$f":"D67","v":"1-pack of Windows Server 2022/2019 User CALs (STD or DC)"},"Operating System",null,{"$f":"VLOOKUP(L67,Tabella_prezzi!$A$2:$L$65,9,FALSE)","v":"1-pack of Windows Server 2022/2019 User CALs (STD or DC)"},null,null,1,{"$f":"VLOOKUP(L67,Tabella_prezzi!$A$2:$L$65,9,FALSE)","v":"1-pack of Windows Server 2022/2019 User CALs (STD or DC)"},{"$f":"VLOOKUP(L67,Tabella_prezzi!$A$2:$L$65,3,FALSE)","v":"OpzUserCal"},{"$f":"VLOOKUP(L67,Tabella_prezzi!$A$2:$L$65,4,FALSE)","v":47.47},null,"L3N20",{"$f":"VLOOKUP(L67,Tabella_prezzi!$A$2:$L$65,6,FALSE)","v":"TS4L3-WINUSRCAL"}]
["TS4L3_HDD"]
[{"$f":"\"\"","v":""},null,null,null,null,null,{"$f":"\"\"","v":""},null,{"$f":"\"\"","v":""},null,null,{"$f":"\"\"","v":""},{"$f":"\"\"","v":""}]
[{"$f":"VLOOKUP(L70,Tabella_prezzi!$A$2:$L$65,8,FALSE)","v":" 8TB 7.2K SAS 12Gb Hot Swap 512e HDD"},"Hard Drives",null,{"$f":"VLOOKUP(L70,Tabella_prezzi!$A$2:$L$65,8,FALSE)","v":" 8TB 7.2K SAS 12Gb Hot Swap 512e HDD"},null,null,1,{"$f":"VLOOKUP(L70,Tabella_prezzi!$A$2:$L$65,9,FALSE)","v":"3.5\" 8TB 7.2K SAS 12Gb Hot Swap 512e HDD"},{"$f":"VLOOKUP(L70,Tabella_prezzi!$A$2:$L$65,3,FALSE)","v":"OpzHDD8TB"},{"$f":"VLOOKUP(L70,Tabella_prezzi!$A$2:$L$65,4,FALSE)","v":206.8},null,"L3N11",{"$f":"VLOOKUP(L70,Tabella_prezzi!$A$2:$L$65,6,FALSE)","v":"TS4L3-HDD8TB"}]
[{"$f":"VLOOKUP(L71,Tabella_prezzi!$A$2:$L$65,8,FALSE)","v":"2TB 7.2K SAS 12Gb Hot Swap 512n HDD"},"Hard Drives",null,{"$f":"VLOOKUP(L71,Tabella_prezzi!$A$2:$L$65,8,FALSE)","v":"2TB 7.2K SAS 12Gb Hot Swap 512n HDD"},null,null,1,{"$f":"VLOOKUP(L71,Tabella_prezzi!$A$2:$L$65,9,FALSE)","v":"3.5\" 2TB 7.2K SAS 12Gb Hot Swap 512n HDD"},{"$f":"VLOOKUP(L71,Tabella_prezzi!$A$2:$L$65,3,FALSE)","v":"OpzHDD2TB"},{"$f":"VLOOKUP(L71,Tabella_prezzi!$A$2:$L$65,4,FALSE)","v":155.88999999999999},null,"L3N12",{"$f":"VLOOKUP(L71,Tabella_prezzi!$A$2:$L$65,6,FALSE)","v":"TS4L3-HDD2TB"}]
[{"$f":"VLOOKUP(L72,Tabella_prezzi!$A$2:$L$65,8,FALSE)","v":"1TB 7.2K SAS 12Gb Hot Swap 512n HDD"},"Hard Drives",null,{"$f":"VLOOKUP(L72,Tabella_prezzi!$A$2:$L$65,8,FALSE)","v":"1TB 7.2K SAS 12Gb Hot Swap 512n HDD"},null,null,1,{"$f":"VLOOKUP(L72,Tabella_prezzi!$A$2:$L$65,9,FALSE)","v":"3.5\" 1TB 7.2K SAS 12Gb Hot Swap 512n HDD"},{"$f":"VLOOKUP(L72,Tabella_prezzi!$A$2:$L$65,3,FALSE)","v":"OpzHDD1TB"},{"$f":"VLOOKUP(L72,Tabella_prezzi!$A$2:$L$65,4,FALSE)","v":138.93},null,"L3N13",{"$f":"VLOOKUP(L72,Tabella_prezzi!$A$2:$L$65,6,FALSE)","v":"TS4L3-HDD1TB"}]
[{"$f":"VLOOKUP(L73,Tabella_prezzi!$A$2:$L$65,8,FALSE)","v":"12TB 7.2K SAS 12Gb Hot Swap 512e HDD"},"Hard Drives",null,{"$f":"VLOOKUP(L73,Tabella_prezzi!$A$2:$L$65,8,FALSE)","v":"12TB 7.2K SAS 12Gb Hot Swap 512e HDD"},null,null,1,{"$f":"VLOOKUP(L73,Tabella_prezzi!$A$2:$L$65,9,FALSE)","v":"3.5\" 12TB 7.2K SAS 12Gb Hot Swap 512e HDD"},{"$f":"VLOOKUP(L73,Tabella_prezzi!$A$2:$L$65,3,FALSE)","v":"OpzHDD12TB"},{"$f":"VLOOKUP(L73,Tabella_prezzi!$A$2:$L$65,4,FALSE)","v":308.61},null,"L3N14",{"$f":"VLOOKUP(L73,Tabella_prezzi!$A$2:$L$65,6,FALSE)","v":"TS4L3-HDD12TB"}]
[{"$f":"D74","v":"PM1643a 3.84TB Entry SAS 12Gb Hot Swap SSD"},"Hard Drives",null,{"$f":"VLOOKUP(L74,Tabella_prezzi!$A$2:$L$65,8,FALSE)","v":"PM1643a 3.84TB Entry SAS 12Gb Hot Swap SSD"},null,null,1,{"$f":"VLOOKUP(L74,Tabella_prezzi!$A$2:$L$65,9,FALSE)","v":"3.5\" PM1643a 3.84TB Entry SAS 12Gb Hot Swap SSD"},{"$f":"VLOOKUP(L74,Tabella_prezzi!$A$2:$L$65,3,FALSE)","v":"OpzSSD-RI3,8TB"},{"$f":"VLOOKUP(L74,Tabella_prezzi!$A$2:$L$65,4,FALSE)","v":1111},null,"L3N26",{"$f":"VLOOKUP(L74,Tabella_prezzi!$A$2:$L$65,6,FALSE)","v":"TS4L3-SSD-RI3,8TB"}]
[{"$f":"D75","v":"PM1645a 1.6TB Mainstream SAS 12Gb Hot Swap SSD"},"Hard Drives",null,{"$f":"VLOOKUP(L75,Tabella_prezzi!$A$2:$L$65,8,FALSE)","v":"PM1645a 1.6TB Mainstream SAS 12Gb Hot Swap SSD"},null,null,1,{"$f":"VLOOKUP(L75,Tabella_prezzi!$A$2:$L$65,9,FALSE)","v":"3.5\" PM1645a 1.6TB Mainstream SAS 12Gb Hot Swap SSD"},{"$f":"VLOOKUP(L75,Tabella_prezzi!$A$2:$L$65,3,FALSE)","v":"OpzSSD-RI1,6TB"},{"$f":"VLOOKUP(L75,Tabella_prezzi!$A$2:$L$65,4,FALSE)","v":722.15},null,"L3N27",{"$f":"VLOOKUP(L75,Tabella_prezzi!$A$2:$L$65,6,FALSE)","v":"TS4L3-SSD-RI1,6TB"}]
[{"$f":"VLOOKUP(L76,Tabella_prezzi!$A$2:$L$65,8,FALSE)","v":"ThinkSystem   3.2TB Mixed Use SAS 24Gb HS SSD"},"Hard Drives",null,{"$f":"VLOOKUP(L76,Tabella_prezzi!$A$2:$L$65,8,FALSE)","v":"ThinkSystem   3.2TB Mixed Use SAS 24Gb HS SSD"},null,null,1,{"$f":"VLOOKUP(L76,Tabella_prezzi!$A$2:$L$65,9,FALSE)","v":"ThinkSystem 3.5\" PM1655 3.2TB Mixed Use SAS 24Gb HS SSD"},{"$f":"VLOOKUP(L76,Tabella_prezzi!$A$2:$L$495,3,FALSE)","v":"OpzSSDSAS3.2TBMU"},{"$f":"VLOOKUP(L76,Tabella_prezzi!$A$2:$L$495,4,FALSE)","v":9999},null,"L3N54",{"$f":"VLOOKUP(L76,Tabella_prezzi!$A$2:$L$65,6,FALSE)","v":"TS4L3-SSDSAS3.2TBMU"}]
[{"$f":"VLOOKUP(L77,Tabella_prezzi!$A$2:$L$65,8,FALSE)","v":"ThinkSystem  6.4TB Mixed Use SAS 24Gb HS SSD"},"Hard Drives",null,{"$f":"VLOOKUP(L77,Tabella_prezzi!$A$2:$L$65,8,FALSE)","v":"ThinkSystem  6.4TB Mixed Use SAS 24Gb HS SSD"},null,null,1,{"$f":"VLOOKUP(L77,Tabella_prezzi!$A$2:$L$65,9,FALSE)","v":"ThinkSystem 3.5\" PM1655 6.4TB Mixed Use SAS 24Gb HS SSD"},{"$f":"VLOOKUP(L77,Tabella_prezzi!$A$2:$L$65,3,FALSE)","v":"OpzSSDSAS6.4TBMU"},{"$f":"VLOOKUP(L77,Tabella_prezzi!$A$2:$L$65,4,FALSE)","v":9999},null,"L3N55",{"$f":"VLOOKUP(L77,Tabella_prezzi!$A$2:$L$65,6,FALSE)","v":"TS4L3-SSDSAS6.4TBMU"}]
[{"$f":"VLOOKUP(L78,Tabella_prezzi!$A$2:$L$65,8,FALSE)","v":"ThinkSystem 7.68TB Read Intensive SAS 24Gb HS SSD"},"Hard Drives",null,{"$f":"VLOOKUP(L78,Tabella_prezzi!$A$2:$L$65,8,FALSE)","v":"ThinkSystem 7.68TB Read Intensive SAS 24Gb HS SSD"},null,null,1,{"$f":"VLOOKUP(L78,Tabella_prezzi!$A$2:$L$65,9,FALSE)","v":"ThinkSystem 3.5\" PM1653 7.68TB Read Intensive SAS 24Gb HS SSD"},{"$f":"VLOOKUP(L78,Tabella_prezzi!$A$2:$L$65,3,FALSE)","v":"OpzSSDSAS7.68TBRI"},{"$f":"VLOOKUP(L78,Tabella_prezzi!$A$2:$L$65,4,FALSE)","v":9999},null,"L3N56",{"$f":"VLOOKUP(L78,Tabella_prezzi!$A$2:$L$65,6,FALSE)","v":"TS4L3-SSDSAS7.68TBRI"}]
[{"$f":"VLOOKUP(L79,Tabella_prezzi!$A$2:$L$65,8,FALSE)","v":"ThinkSystem  15.36TB Read Intensive SAS 24Gb HS SSD"},"Hard Drives",null,{"$f":"VLOOKUP(L79,Tabella_prezzi!$A$2:$L$65,8,FALSE)","v":"ThinkSystem  15.36TB Read Intensive SAS 24Gb HS SSD"},null,null,1,{"$f":"VLOOKUP(L79,Tabella_prezzi!$A$2:$L$65,9,FALSE)","v":"ThinkSystem 3.5\" PM1653 15.36TB Read Intensive SAS 24Gb HS SSD"},{"$f":"VLOOKUP(L79,Tabella_prezzi!$A$2:$L$65,3,FALSE)","v":"OpzSSDSAS15.36TBRI"},{"$f":"VLOOKUP(L79,Tabella_prezzi!$A$2:$L$65,4,FALSE)","v":9999},null,"L3N57",{"$f":"VLOOKUP(L79,Tabella_prezzi!$A$2:$L$65,6,FALSE)","v":"TS4L3-SSDSAS15.36TBRI"}]
[{"$f":"D80","v":"ThinkSystem  3.84TB Read Intensive SATA 6Gb HS SSD"},"Hard Drives",null,{"$f":"VLOOKUP(L80,Tabella_prezzi!$A$2:$L$65,8,FALSE)","v":"ThinkSystem  3.84TB Read Intensive SATA 6Gb HS SSD"},null,null,1,{"$f":"VLOOKUP(L80,Tabella_prezzi!$A$2:$L$65,9,FALSE)","v":"ThinkSystem 3.5\" S4520 3.84TB Read Intensive SATA 6Gb HS SSD"},{"$f":"VLOOKUP(L80,Tabella_prezzi!$A$2:$L$65,3,FALSE)","v":"OpzSSDSATA3.84TBRI"},{"$f":"VLOOKUP(L80,Tabella_prezzi!$A$2:$L$65,4,FALSE)","v":9999},null,"L3N58",{"$f":"VLOOKUP(L80,Tabella_prezzi!$A$2:$L$65,6,FALSE)","v":"TS4L3-SSDSATA3.84TBRI"}]
[{"$f":"D81","v":"ThinkSystem   7.68TB Read Intensive SATA 6Gb HS SSD"},"Hard Drives",null,{"$f":"VLOOKUP(L81,Tabella_prezzi!$A$2:$L$65,8,FALSE)","v":"ThinkSystem   7.68TB Read Intensive SATA 6Gb HS SSD"},null,null,1,{"$f":"VLOOKUP(L81,Tabella_prezzi!$A$2:$L$65,9,FALSE)","v":"ThinkSystem 3.5\" S4520 7.68TB Read Intensive SATA 6Gb HS SSD"},{"$f":"VLOOKUP(L81,Tabella_prezzi!$A$2:$L$65,3,FALSE)","v":"OpzSSDSATA7.68TBRI"},{"$f":"VLOOKUP(L81,Tabella_prezzi!$A$2:$L$65,4,FALSE)","v":9999},null,"L3N59",{"$f":"VLOOKUP(L81,Tabella_prezzi!$A$2:$L$65,6,FALSE)","v":"TS4L3-SSDSATA7.68TBRI"}]
[{"$f":"VLOOKUP(L82,Tabella_prezzi!$A$2:$L$65,8,FALSE)","v":"ThinkSystem 20TB 7.2K SAS 12Gb Hot Swap 512e HDD"},"Hard Drives",null,{"$f":"VLOOKUP(L82,Tabella_prezzi!$A$2:$L$65,8,FALSE)","v":"ThinkSystem 20TB 7.2K SAS 12Gb Hot Swap 512e HDD"},null,null,1,{"$f":"VLOOKUP(L82,Tabella_prezzi!$A$2:$L$65,9,FALSE)","v":"ThinkSystem 3.5\" 20TB 7.2K SAS 12Gb Hot Swap 512e HDD"},{"$f":"VLOOKUP(L82,Tabella_prezzi!$A$2:$L$65,3,FALSE)","v":"OpzHDD_SAS20TB_HW"},{"$f":"VLOOKUP(L82,Tabella_prezzi!$A$2:$L$65,4,FALSE)","v":9999},null,"L3N60",{"$f":"VLOOKUP(L82,Tabella_prezzi!$A$2:$L$65,6,FALSE)","v":"TS4L3-HDD_SAS20TB_HW"}]
[{"$f":"VLOOKUP(L83,Tabella_prezzi!$A$2:$L$65,8,FALSE)","v":"ThinkSystem 16TB 7.2K SATA 6Gb Hot Swap 512e HDD"},"Hard Drives",null,{"$f":"VLOOKUP(L83,Tabella_prezzi!$A$2:$L$65,8,FALSE)","v":"ThinkSystem 16TB 7.2K SATA 6Gb Hot Swap 512e HDD"},null,null,1,{"$f":"VLOOKUP(L83,Tabella_prezzi!$A$2:$L$65,9,FALSE)","v":"ThinkSystem 3.5\" 16TB 7.2K SATA 6Gb Hot Swap 512e HDD"},{"$f":"VLOOKUP(L83,Tabella_prezzi!$A$2:$L$65,3,FALSE)","v":"OpzHDD_SATA16TB_HW"},{"$f":"VLOOKUP(L83,Tabella_prezzi!$A$2:$L$65,4,FALSE)","v":9999},null,"L3N61",{"$f":"VLOOKUP(L83,Tabella_prezzi!$A$2:$L$65,6,FALSE)","v":"TS4L3-HDD_SATA16TB_HW"}]
[{"$f":"VLOOKUP(L84,Tabella_prezzi!$A$2:$L$65,8,FALSE)","v":"ThinkSystem 3.5\" 16TB 7.2K SAS 12Gb Hot Swap 512e HDD"},"Hard Drives",null,{"$f":"VLOOKUP(L84,Tabella_prezzi!$A$2:$L$65,8,FALSE)","v":"ThinkSystem 3.5\" 16TB 7.2K SAS 12Gb Hot Swap 512e HDD"},null,null,1,{"$f":"VLOOKUP(L84,Tabella_prezzi!$A$2:$L$65,9,FALSE)","v":"ThinkSystem 3.5\" 16TB 7.2K SAS 12Gb Hot Swap 512e HDD"},{"$f":"VLOOKUP(L84,Tabella_prezzi!$A$2:$L$65,3,FALSE)","v":"OpzHDD_SAS16TB_HW"},{"$f":"VLOOKUP(L84,Tabella_prezzi!$A$2:$L$65,4,FALSE)","v":9999},null,"L3N62",{"$f":"VLOOKUP(L84,Tabella_prezzi!$A$2:$L$65,6,FALSE)","v":"TS4L3-HDD_SAS16TB_HW"}]
[{"$f":"VLOOKUP(L85,Tabella_prezzi!$A$2:$L$65,8,FALSE)","v":"ThinkSystem 3.5\"  800GB Write Intensive SAS 12Gb HS SSD"},"Hard Drives",null,{"$f":"VLOOKUP(L85,Tabella_prezzi!$A$2:$L$65,8,FALSE)","v":"ThinkSystem 3.5\"  800GB Write Intensive SAS 12Gb HS SSD"},null,null,1,{"$f":"VLOOKUP(L85,Tabella_prezzi!$A$2:$L$65,9,FALSE)","v":"ThinkSystem 3.5\" Nytro 3750 800GB Write Intensive SAS 12Gb HS SSD"},{"$f":"VLOOKUP(L85,Tabella_prezzi!$A$2:$L$65,3,FALSE)","v":"OpzSSD_SAS800GB_WI"},{"$f":"VLOOKUP(L85,Tabella_prezzi!$A$2:$L$65,4,FALSE)","v":9999},null,"L3N63",{"$f":"VLOOKUP(L85,Tabella_prezzi!$A$2:$L$65,6,FALSE)","v":"TS4L3-SSD_SAS800GB_WI"}]
[{"$f":"D86","v":"ThinkSystem 3.5\"  1.6TB Write Intensive SAS 12Gb HS SSD"},"Hard Drives",null,{"$f":"VLOOKUP(L86,Tabella_prezzi!$A$2:$L$65,8,FALSE)","v":"ThinkSystem 3.5\"  1.6TB Write Intensive SAS 12Gb HS SSD"},null,null,1,{"$f":"VLOOKUP(L86,Tabella_prezzi!$A$2:$L$65,9,FALSE)","v":"ThinkSystem 3.5\" Nytro 3750 1.6TB Write Intensive SAS 12Gb HS SSD"},{"$f":"VLOOKUP(L86,Tabella_prezzi!$A$2:$L$65,3,FALSE)","v":"OpzSSD_SAS1.6TB_WI"},{"$f":"VLOOKUP(L86,Tabella_prezzi!$A$2:$L$65,4,FALSE)","v":9999},null,"L3N64",{"$f":"VLOOKUP(L86,Tabella_prezzi!$A$2:$L$65,6,FALSE)","v":"TS4L3-SSD_SAS1.6TB_WI"}]
[{"$f":"D87","v":"ThinkSystem 3.5\"  3.2TB Write Intensive SAS 12Gb HS SSD"},"Hard Drives",null,{"$f":"VLOOKUP(L87,Tabella_prezzi!$A$2:$L$65,8,FALSE)","v":"ThinkSystem 3.5\"  3.2TB Write Intensive SAS 12Gb HS SSD"},null,null,1,{"$f":"VLOOKUP(L87,Tabella_prezzi!$A$2:$L$65,9,FALSE)","v":"ThinkSystem 3.5\" Nytro 3750 3.2TB Write Intensive SAS 12Gb HS SSD"},{"$f":"VLOOKUP(L87,Tabella_prezzi!$A$2:$L$65,3,FALSE)","v":"OpzSSD_SAS3.2TB_WI"},{"$f":"VLOOKUP(L87,Tabella_prezzi!$A$2:$L$65,4,FALSE)","v":9999},null,"L3N65",{"$f":"VLOOKUP(L87,Tabella_prezzi!$A$2:$L$65,6,FALSE)","v":"TS4L3-SSD_SAS3.2TB_WI"}]
[]
["TS4L3_RAID"]
["NO RAID",null,null,null,null,null,{"$f":"\"\"","v":""},null,{"$f":"\"\"","v":""},null,null,{"$f":"\"\"","v":""},{"$f":"\"\"","v":""}]
[{"$f":"VLOOKUP(L91,Tabella_prezzi!$A$2:$L$65,8,FALSE)","v":"Intel VROC (VMD NVMe RAID) Premium"},"Hard Drives",null,{"$f":"VLOOKUP(L91,Tabella_prezzi!$A$2:$L$65,8,FALSE)","v":"Intel VROC (VMD NVMe RAID) Premium"},null,null,1,{"$f":"VLOOKUP(L91,Tabella_prezzi!$A$2:$L$65,9,FALSE)","v":"Intel VROC (VMD NVMe RAID) Premium"},{"$f":"VLOOKUP(L91,Tabella_prezzi!$A$2:$L$65,3,FALSE)","v":"OpzVROC"},null,{"$f":"VLOOKUP(L91,Tabella_prezzi!$A$2:$L$65,4,FALSE)","v":380},"L3N52",{"$f":"VLOOKUP(L91,Tabella_prezzi!$A$2:$L$65,6,FALSE)","v":"TS4L3-VROC"}]
[{"$f":"VLOOKUP(L92,Tabella_prezzi!$A$2:$L$65,8,FALSE)","v":"ThinkSystem M.2 NVMe 2-Bay RAID Enablement Kit"},"Hard Drives",null,{"$f":"VLOOKUP(L92,Tabella_prezzi!$A$2:$L$65,8,FALSE)","v":"ThinkSystem M.2 NVMe 2-Bay RAID Enablement Kit"},null,null,1,{"$f":"VLOOKUP(L92,Tabella_prezzi!$A$2:$L$65,9,FALSE)","v":"ThinkSystem M.2 NVMe 2-Bay RAID Enablement Kit"},{"$f":"VLOOKUP(L92,Tabella_prezzi!$A$2:$L$65,3,FALSE)","v":"OpzRAID"},null,{"$f":"VLOOKUP(L92,Tabella_prezzi!$A$2:$L$65,4,FALSE)","v":9999},"L3N53",{"$f":"VLOOKUP(L92,Tabella_prezzi!$A$2:$L$65,6,FALSE)","v":"TS4L3-RAID"}]
["TS4L3_PSU"]
[{"$f":"D94","v":"2 x 750W(230V/115V) Platinum Hot-Swap Power Supply v2"},"Power Supply",null,{"$f":"VLOOKUP(L94,Tabella_prezzi!$A$2:$L$65,8,FALSE)","v":"2 x 750W(230V/115V) Platinum Hot-Swap Power Supply v2"},null,null,1,{"$f":"VLOOKUP(L94,Tabella_prezzi!$A$2:$L$65,9,FALSE)","v":"2 x 750W(230V/115V) Platinum Hot-Swap Power Supply v2"},{"$f":"VLOOKUP(L94,Tabella_prezzi!$A$2:$L$65,3,FALSE)","v":"PSU"},null,{"$f":"VLOOKUP(L94,Tabella_prezzi!$A$2:$L$65,4,FALSE)","v":0},"L3N51",{"$f":"VLOOKUP(L94,Tabella_prezzi!$A$2:$L$65,6,FALSE)","v":"TS4L3-PSU"}]
[]
["TS4L3_CTRL"]
[null,null,null,null,null,null,{"$f":"\"\"","v":""},null,{"$f":"\"\"","v":""},null,null,{"$f":"\"\"","v":""},{"$f":"\"\"","v":""}]
[{"$f":"D98","v":"RAID 9350-16i 4GB Flash PCIe 12Gb Adapter"},{"$f":"D98","v":"RAID 9350-16i 4GB Flash PCIe 12Gb Adapter"},null,{"$f":"VLOOKUP(L98,Tabella_prezzi!$A$2:$L$65,9,FALSE)","v":"RAID 9350-16i 4GB Flash PCIe 12Gb Adapter"},null,null,{"$f":"\"\"","v":""},{"$f":"VLOOKUP(L98,Tabella_prezzi!$A$2:$L$65,9,FALSE)","v":"RAID 9350-16i 4GB Flash PCIe 12Gb Adapter"},{"$f":"\"\"","v":""},null,null,"L3N50",{"$f":"VLOOKUP(L98,Tabella_prezzi!$A$2:$L$65,6,FALSE)","v":"TS4L3-DiskController"}]
["SAS HBA",null,null,"SAS HBA"]
[]
["TS4L3_WARRANTY"]
["Manutenzione in garanzia (36 mesi)",null,null,null,null,null,{"$f":"\"\"","v":""},null,{"$f":"\"\"","v":""},null,null,{"$f":"\"\"","v":""},{"$f":"\"\"","v":""}]
[{"$f":"D103","v":"Estensione della Garanzia Per ulteriori 24 Mesi"},null,null,{"$f":"VLOOKUP(L103,Tabella_prezzi!$A$2:$L$65,8,FALSE)","v":"Estensione della Garanzia Per ulteriori 24 Mesi"},null,null,1,{"$f":"VLOOKUP(L103,Tabella_prezzi!$A$2:$L$260,9,FALSE)","v":"Estensione della Garanzia Per ulteriori 24 Mesi"},{"$f":"VLOOKUP(L103,Tabella_prezzi!$A$2:$L$260,3,FALSE)","v":"OpzEstensione24"},{"$f":"VLOOKUP(L103,Tabella_prezzi!$A$2:$L$260,4,FALSE)","v":88.92},null,"L3N24",{"$f":"VLOOKUP(L103,Tabella_prezzi!$A$2:$L$65,6,FALSE)","v":"TS4L3-OpzEst24"}]
[]
["TS4L3_HDDRET"]
["No Hard Disk Retention",null,null,null,null,null,{"$f":"\"\"","v":""},null,{"$f":"\"\"","v":""},null,null,{"$f":"\"\"","v":""},{"$f":"\"\"","v":""}]
[{"$f":"D107","v":"Hard Disk Retention 36 mesi"},"Keep Your Hard Drive",null,{"$f":"VLOOKUP(L107,Tabella_prezzi!$A$2:$L$65,8,FALSE)","v":"Hard Disk Retention 36 mesi"},null,null,1,{"$f":"VLOOKUP(L107,Tabella_prezzi!$A$2:$L$260,9,FALSE)","v":"Hard Disk Retention 36 mesi"},{"$f":"VLOOKUP(L107,Tabella_prezzi!$A$2:$L$260,3,FALSE)","v":"OpzHDDRetention36"},{"$f":"VLOOKUP(L107,Tabella_prezzi!$A$2:$L$260,4,FALSE)","v":32.880000000000003},null,"L3N23",{"$f":"VLOOKUP(L107,Tabella_prezzi!$A$2:$L$65,6,FALSE)","v":"TS4L3-HDRTN36"}]
["Hard Disk Retention 60 mesi","Keep Your Hard Drive",null,{"$f":"VLOOKUP(L108,Tabella_prezzi!$A$2:$L$65,8,FALSE)","v":"Hard Disk Retention 60 mesi"},null,null,1,{"$f":"VLOOKUP(L108,Tabella_prezzi!$A$2:$L$260,9,FALSE)","v":"Hard Disk Retention 60 mesi"},{"$f":"VLOOKUP(L108,Tabella_prezzi!$A$2:$L$260,3,FALSE)","v":"OpzHDDRetention60"},{"$f":"VLOOKUP(L108,Tabella_prezzi!$A$2:$L$260,4,FALSE)","v":54.79},null,"L3N23e",{"$f":"VLOOKUP(L108,Tabella_prezzi!$A$2:$L$65,6,FALSE)","v":"TS4L3-HDRTN60"}]
[]
["TS4L3_Rack"]
[{"$f":"\"\"","v":""},null,null,null,null,null,{"$f":"\"\"","v":""},null,{"$f":"\"\"","v":""},null,null,{"$f":"\"\"","v":""},{"$f":"\"\"","v":""}]
[{"$f":"D112","v":"Armadio Rack 42U"},null,null,{"$f":"VLOOKUP(L112,Tabella_prezzi!$A$2:$L$65,8,FALSE)","v":"Armadio Rack 42U"},null,null,1,{"$f":"VLOOKUP(L112,Tabella_prezzi!$A$2:$L$260,9,FALSE)","v":"Armadio Rack 42U"},{"$f":"VLOOKUP(L112,Tabella_prezzi!$A$2:$L$260,3,FALSE)","v":"OpzRack"},{"$f":"VLOOKUP(L112,Tabella_prezzi!$A$2:$L$260,4,FALSE)","v":579.17999999999995},null,"L3N25",{"$f":"VLOOKUP(L112,Tabella_prezzi!$A$2:$L$65,6,FALSE)","v":"TS4L3-RACK"}]
[]
["TS4L3_UPS"]
[{"$f":"\"\"","v":""},null,null,null,null,null,{"$f":"\"\"","v":""},null,{"$f":"\"\"","v":""},null,null,{"$f":"\"\"","v":""},{"$f":"\"\"","v":""}]
["UPS PowerMe RPMM/9K - 3000VA",null,null,{"$f":"VLOOKUP(L116,Tabella_prezzi!$A$2:$L$65,8,FALSE)","v":"Dispositivo UPS di tipo On-line doppia conversione, strutturato per il montaggio a rack da 19”"},null,null,1,{"$f":"VLOOKUP(L116,Tabella_prezzi!$A$2:$L$260,9,FALSE)","v":"Dispositivo UPS di tipo On-line doppia conversione, strutturato per il montaggio a rack da 19”"},{"$f":"VLOOKUP(L116,Tabella_prezzi!$A$2:$L$260,3,FALSE)","v":"OpzUps"},{"$f":"VLOOKUP(L116,Tabella_prezzi!$A$2:$L$260,4,FALSE)","v":371.18},null,"L3N15",{"$f":"VLOOKUP(L116,Tabella_prezzi!$A$2:$L$65,6,FALSE)","v":"TS4L3-UPS"}]
[]
["TS4L3_GUI"]
[{"$f":"\"\"","v":""},null,null,null,null,null,{"$f":"\"\"","v":""},null,{"$f":"\"\"","v":""},null,null,{"$f":"\"\"","v":""},{"$f":"\"\"","v":""}]
["Unità KVM - monitor 17\", cavo combi PS/2&USB",null,null,{"$f":"VLOOKUP(L120,Tabella_prezzi!$A$2:$L$65,8,FALSE)","v":"Unità KVM - monitor 17\", cavo combi PS/2&USB da 1,8mt, tastiera italiana, touch pad"},null,null,1,{"$f":"VLOOKUP(L120,Tabella_prezzi!$A$2:$L$260,9,FALSE)","v":"Unità KVM - monitor 17\", cavo combi PS/2&USB da 1,8mt, tastiera italiana, touch pad"},{"$f":"VLOOKUP(L120,Tabella_prezzi!$A$2:$L$260,3,FALSE)","v":"OpzGUI"},{"$f":"VLOOKUP(L120,Tabella_prezzi!$A$2:$L$260,4,FALSE)","v":491.62},null,"L3N16",{"$f":"VLOOKUP(L120,Tabella_prezzi!$A$2:$L$65,6,FALSE)","v":"TS4L3-GUI"}]
[]
["TS4L3_KVM"]
[{"$f":"\"\"","v":""},null,null,null,null,null,{"$f":"\"\"","v":""},null,{"$f":"\"\"","v":""},null,null,{"$f":"\"\"","v":""},{"$f":"\"\"","v":""}]
[{"$f":"D124","v":"KVM Switch IP per GUI 16P"},null,null,{"$f":"VLOOKUP(L124,Tabella_prezzi!$A$2:$L$65,8,FALSE)","v":"KVM Switch IP per GUI 16P"},null,null,1,{"$f":"VLOOKUP(L124,Tabella_prezzi!$A$2:$L$260,9,FALSE)","v":"KVM Switch IP per GUI 16P"},{"$f":"VLOOKUP(L124,Tabella_prezzi!$A$2:$L$260,3,FALSE)","v":"OpzKVM"},{"$f":"VLOOKUP(L124,Tabella_prezzi!$A$2:$L$260,4,FALSE)","v":553.94000000000005},null,"L3N17",{"$f":"VLOOKUP(L124,Tabella_prezzi!$A$2:$L$65,6,FALSE)","v":"TS4L3-KVM"}]
[]
["TS4L3_PCI_A"]
["RISERVATO SCHEDA SAS HBA ThinkSystem 4350",{"$f":"\"\"","v":""},{"$f":"\"\"","v":""},{"$f":"\"\"","v":""},{"$f":"\"\"","v":""},{"$f":"\"\"","v":""},{"$f":"\"\"","v":""},{"$f":"\"\"","v":""},{"$f":"\"\"","v":""},0,0,{"$f":"\"\"","v":""},{"$f":"\"\"","v":""},null,null,null,null,null,null,null,null,null,null,null,null,null,null,null,null,null,null,null,null,null,null,null,null,null,null,null,null,null,null,null,null,null,null,null,null,null,null,null,null,null,null,null,null,null,null,null,null,null,null,null,null,null,null,null,null,null,null,null,null,null,null,null,null,null,null,null,null,null,null,null,null,null,null,null,null,null,null,null,null,null,null,null,null,null,null,null,null,null,null,null,null,null,null,null,null,null,null,null,null,null,null,null,null,null,null,null,null,null,null,null,null,null,null,null,null,null,null,null,null,null,null,null,null,null,null,null,null,null,null,null,null,null,null,null,null,null,null,null,null,null,null,null,null,null,null,null,null,null,null,null,null,null,null,null,null,null,null,null,null,null,null,null,null,null,null,null,null,null,null,null,null,null,null,null,null,null,null,null,null,null,null,null,null,null,null,null,null,null,null,null,null,null,null,null,null,null,null,null,null,null,null,null,null,null,null,null,null,null,null,null,null,null,null,null,null,null,null,null,null,null,null,null,null,null,null,null,null,null,null,null,null,null,null,null,null,null,null,null,null,null,null,null,null,null,null,null,null,null,null,null,null,null,null,null,null,null,null,null,null,null,null,null,null,null,null,null,null,null,null,null,null,null,null,null,null,null,null,null,null,null,null,null,null,null,null,null,null,null,null,null,null,null,null,null,null,null,null,null,null,null,null,null,null,null,null,null,null,null,null,null,null,null,null,null,null,null,null,null,null,null,null,null,null,null,null,null,null,null,null,null,null,null,null,null,null,null,null,null,null,null,null,null,null,null,null,null,null,null,null,null,null,null,null,null,null,null,null,null,null,null,null,null,null,null,null,null,null,null,null,null,null,null,null,null,null,null,null,null,null,null,null,null,null,null,null,null,null,null,null,null,null,null,null,null,null,null,null,null,null,null,null,null,null,null,null,null,null,null,null,null,null,null,null,null,null,null,null,null,null,null,null,null,null,null,null,null,null,null,null,null,null,null,null,null,null,null,null,null,null,null,null,null,null,null,null,null,null,null,null,null,null,null,null,null,null,null,null,null,null,null,null,null,null,null,null,null,null,null,null,null,null,null,null,null,null,null,null,null,null,null,null,null,null,null,null,null,null,null,null,null,null,null,null,null,null,null,null,null,null,null,null,null,null,null,null,null,null,null,null,null,null,null,null,null,null,null,null,null,null,null,null,null,null,null,null,null,null,null,null,null,null,null,null,null,null,null,null,null,null,null,null,null,null,null,null,null,null,null,null,null,null,null,null,null,null,null,null,null,null,null,null,null,null,null,null,null,null,null,null,null,null,null,null,null,null,null,null,null,null,null,null,null,null,null,null,null,null,null,null,null,null,null,null,null,null,null,null,null,null,null,null,null,null,null,null,null,null,null,null,null,null,null,null,null,null,null,null,null,null,null,null,null,null,null,null,null,null,null,null,null,null,null,null,null,null,null,null,null,null,null,null,null,null,null,null,null,null,null,null,null,null,null,null,null,null,null,null,null,null,null,null,null,null,null,null,null,null,null,null,null,null,null,null,null,null,null,null,null,null,null,null,null,null,null,null,null,null,null,null,null,null,null,null,null,null,null,null,null,null,null,null,null,null,null,null,null,null,null,null,null,null,null,null,null,null,null,null,null,null,null,null,null,null,null,null,null,null,null,null,null,null,null,null,null,null,null,null,null,null,null,null,null,null,null,null,null,null,null,null,null,null,null,null,null,null,null,null,null,null,null,null,null,null,null,null,null,null,null,null,null,null,null,null,null,null,null,null,null,null,null,null,null,null,null,null,null,null,null,null,null,null,null,null,null,null,null,null,null,null,null,null,null,null,null,null,null,null,null,null,null,null,null,null,null,null,null,null,null,null,null,null,null,null,null,null,null,null,null,null,null,null,null,null,null,null,null,null,null,null,null,null,null,null,null,null,null,null,null,null,null,null,null,null,null,null,null,null,null,null,null,null,null,null,null,null,null,null,null,null,null,null,null,null,null,null,null,null,null,null,null,null,null,null,null,null,null,null,null,null,null,null,null,null,null,null,null,null,null,null,null,null,null,null,null,null,null,null,null,null,null,null,null,null,null,null,null,null,null,null,null,null,null,null,null,null,null,null,null,null,null,null,null,null,null,null,null,null,null,null,null,null,null,null,null,null,null,null,null,null,null,null,null,null,null,null,null,null,null,null,null,null,null,null,null,null,null,null,null,null,null,null,null,null,null,null,null,null,null,null,null,null,null,null,null,null,null,null,null,null,null,null,null,null,null,null,null,null,null,null,null,null,null,null,null,null,null,null,null,null,null,null,null,null,null,null,null,null,null,null,null,null,null,null,null,null,null,null,null,null,null,null,null,null,null,null,null,null,null,null,null,null,null,null,null,null,null,null,null,null,null,null,null,null,null,null,null,null,null,null,null,null,null,null,null,null,null,null,null,null,null,null,null,null,null,null,null,null,null,null,null,null,null,null,null,null,null,null,null,null,null,null,null,null,null,null,null,null,null,null,null,null,null,null,null,null,null,null,null,null,null,null,null,null,null,null,null,null,null,null,null,null,null,null,null,null,null,null,null,null,null,null,null,null,null,null,null,null,null,null,null,null,null,null,null,null,null,null,null,null,null,null,null,null,null,null,null,null,null,null,null,null,null,null,null,null,null,null,null,null,null,null,null,null,null,null,null,null,null,null,null,null,null,null,null,null,null,null,null,null,null,null,null,null,null,null,null,null,null,null,null,null,null,null,null,null,null,null,null,null,null,null,null,null,null,null,null,null,null,null,null,null,null,null,null,null,null,null,null,null,null,null,null,null,null,null,null,null,null,null,null,null,null,null,null,null,null,null,null,null,null,null,null,null,null,null,null,null,null,null,null,null,null,null,null,null,null,null,null,null,null,null,null,null,null,null,null,null,null,null,null,null,null,null,null,null,null,null,null,null,null,null,null,null,null,null,null,null,null,null,null,null,null,null,null,null,null,null,null,null,null,null,null,null,null,null,null,null,null,null,null,null,null,null,null,null,null,null,null,null,null,null,null,null,null,null,null,null,null,null,null,null,null,null,null,null,null,null,null,null,null,null,null,null,null,null,null,null,null,null,null,null,null,null,null,null,null,null,null,null,null,null,null,null,null,null,null,null,null,null,null,null,null,null,null,null,null,null,null,null,null,null,null,null,null,null,null,null,null,null,null,null,null,null,null,null,null,null,null,null,null,null,null,null,null,null,null,null,null,null,null,null,null,null,null,null,null,null,null,null,null,null,null,null,null,null,null,null,null,null,null,null,null,null,null,null,null,null,null,null,null,null,null,null,null,null,null,null,null,null,null,null,null,null,null,null,null,null,null,null,null,null,null,null,null,null,null,null,null,null,null,null,null,null,null,null,null,null,null,null,null,null,null,null,null,null,null,null,null,null,null,null,null,null,null,null,null,null,null,null,null,null,null,null,null,null,null,null,null,null,null,null,null,null,null,null,null,null,null,null,null,null,null,null,null,null,null,null,null,null,null,null,null,null,null,null,null,null,null,null,null,null,null,null,null,null,null,null,null,null,null,null,null,null,null,null,null,null,null,null,null,null,null,null,null,null,null,null,null,null,null,null,null,null,null,null,null,null,null,null,null,null,null,null,null,null,null,null,null,null,null,null,null,null,null,null,null,null,null,null,null,null,null,null,null,null,null,null,null,null,null,null,null,null,null,null,null,null,null,null,null,null,null,null,null,null,null,null,null,null,null,null,null,null,null,null,null,null,null,null,null,null,null,null,null,null,null,null,null,null,null,null,null,null,null,null,null,null,null,null,null,null,null,null,null,null,null,null,null,null,null,null,null,null,null,null,null,null,null,null,null,null,null,null,null,null,null,null,null,null,null,null,null,null,null,null,null,null,null,null,null,null,null,null,null,null,null,null,null,null,null,null,null,null,null,null,null,null,null,null,null,null,null,null,null,null,null,null,null,null,null,null,null,null,null,null,null,null,null,null,null,null,null,null,null,null,null,null,null,null,null,null,null,null,null,null,null,null,null,null,null,null,null,null,null,null,null,null,null,null,null,null,null,null,null,null,null,null,null,null,null,null,null,null,null,null,null,null,null,null,null,null,null,null,null,null,null,null,null,null,null,null,null,null,null,null,null,null,null,null,null,null,null,null,null,null,null,null,null,null,null,null,null,null,null,null,null,null,null,null,null,null,null,null,null,null,null,null,null,null,null,null,null,null,null,null,null,null,null,null,null,null,null,null,null,null,null,null,null,null,null,null,null,null,null,null,null,null,null,null,null,null,null,null,null,null,null,null,null,null,null,null,null,null,null,null,null,null,null,null,null,null,null,null,null,null,null,null,null,null,null,null,null,null,null,null,null,null,null,null,null,null,null,null,null,null,null,null,null,null,null,null,null,null,null,null,null,null,null,null,null,null,null,null,null,null,null,null,null,null,null,null,null,null,null,null,null,null,null,null,null,null,null,null,null,null,null,null,null,null,null,null,null,null,null,null,null,null,null,null,null,null,null,null,null,null,null,null,null,null,null,null,null,null,null,null,null,null,null,null,null,null,null,null,null,null,null,null,null,null,null,null,null,null,null,null,null,null,null,null,null,null,null,null,null,null,null,null,null,null,null,null,null,null,null,null,null,null,null,null,null,null,null,null,null,null,null,null,null,null,null,null,null,null,null,null,null,null,null,null,null,null,null,null,null,null,null,null,null,null,null,null,null,null,null,null,null,null,null,null,null,null,null,null,null,null,null,null,null,null,null,null,null,null,null,null,null,null,null,null,null,null,null,null,null,null,null,null,null,null,null,null,null,null,null,null,null,null,null,null,null,null,null,null,null,null,null,null,null,null,null,null,null,null,null,null,null,null,null,null,null,null,null,null,null,null,null,null,null,null,null,null,null,null,null,null,null,null,null,null,null,null,null,null,null,null,null,null,null,null,null,null,null,null,null,null,null,null,null,null,null,null,null,null,null,null,null,null,null,null,null,null,null,null,null,null,null,null,null,null,null,null,null,null,null,null,null,null,null,null,null,null,null,null,null,null,null,null,null,null,null,null,null,null,null,null,null,null,null,null,null,null,null,null,null,null,null,null,null,null,null,null,null,null,null,null,null,null,null,null,null,null,null,null,null,null,null,null,null,null,null,null,null,null,null,null,null,null,null,null,null,null,null,null,null,null,null,null,null,null,null,null,null,null,null,null,null,null,null,null,null,null,null,null,null,null,null,null,null,null,null,null,null,null,null,null,null,null,null,null,null,null,null,null,null,null,null,null,null,null,null,null,null,null,null,null,null,null,null,null,null,null,null,null,null,null,null,null,null,null,null,null,null,null,null,null,null,null,null,null,null,null,null,null,null,null,null,null,null,null,null,null,null,null,null,null,null,null,null,null,null,null,null,null,null,null,null,null,null,null,null,null,null,null,null,null,null,null,null,null,null,null,null,null,null,null,null,null,null,null,null,null,null,null,null,null,null,null,null,null,null,null,null,null,null,null,null,null,null,null,null,null,null,null,null,null,null,null,null,null,null,null,null,null,null,null,null,null,null,null,null,null,null,null,null,null,null,null,null,null,null,null,null,null,null,null,null,null,null,null,null,null,null,null,null,null,null,null,null,null,null,null,null,null,null,null,null,null,null,null,null,null,null,null,null,null,null,null,null,null,null,null,null,null,null,null,null,null,null,null,null,null,null,null,null,null,null,null,null,null,null,null,null,null,null,null,null,null,null,null,null,null,null,null,null,null,null,null,null,null,null,null,null,null,null,null,null,null,null,null,null,null,null,null,null,null,null,null,null,null,null,null,null,null,null,null,null,null,null,null,null,null,null,null,null,null,null,null,null,null,null,null,null,null,null,null,null,null,null,null,null,null,null,null,null,null,null,null,null,null,null,null,null,null,null,null,null,null,null,null,null,null,null,null,null,null,null,null,null,null,null,null,null,null,null,null,null,null,null,null,null,null,null,null,null,null,null,null,null,null,null,null,null,null,null,null,null,null,null,null,null,null,null,null,null,null,null,null,null,null,null,null,null,null,null,null,null,null,null,null,null,null,null,null,null,null,null,null,null,null,null,null,null,null,null,null,null,null,null,null,null,null,null,null,null,null,null,null,null,null,null,null,null,null,null,null,null,null,null,null,null,null,null,null,null,null,null,null,null,null,null,null,null,null,null,null,null,null,null,null,null,null,null,null,null,null,null,null,null,null,null,null,null,null,null,null,null,null,null,null,null,null,null,null,null,null,null,null,null,null,null,null,null,null,null,null,null,null,null,null,null,null,null,null,null,null,null,null,null,null,null,null,null,null,null,null,null,null,null,null,null,null,null,null,null,null,null,null,null,null,null,null,null,null,null,null,null,null,null,null,null,null,null,null,null,null,null,null,null,null,null,null,null,null,null,null,null,null,null,null,null,null,null,null,null,null,null,null,null,null,null,null,null,null,null,null,null,null,null,null,null,null,null,null,null,null,null,null,null,null,null,null,null,null,null,null,null,null,null,null,null,null,null,null,null,null,null,null,null,null,null,null,null,null,null,null,null,null,null,null,null,null,null,null,null,null,null,null,null,null,null,null,null,null,null,null,null,null,null,null,null,null,null,null,null,null,null,null,null,null,null,null,null,null,null,null,null,null,null,null,null,null,null,null,null,null,null,null,null,null,null,null,null,null,null,null,null,null,null,null,null,null,null,null,null,null,null,null,null,null,null,null,null,null,null,null,null,null,null,null,null,null,null,null,null,null,null,null,null,null,null,null,null,null,null,null,null,null,null,null,null,null,null,null,null,null,null,null,null,null,null,null,null,null,null,null,null,null,null,null,null,null,null,null,null,null,null,null,null,null,null,null,null,null,null,null,null,null,null,null,null,null,null,null,null,null,null,null,null,null,null,null,null,null,null,null,null,null,null,null,null,null,null,null,null,null,null,null,null,null,null,null,null,null,null,null,null,null,null,null,null,null,null,null,null,null,null,null,null,null,null,null,null,null,null,null,null,null,null,null,null,null,null,null,null,null,null,null,null,null,null,null,null,null,null,null,null,null,null,null,null,null,null,null,null,null,null,null,null,null,null,null,null,null,null,null,null,null,null,null,null,null,null,null,null,null,null,null,null,null,null,null,null,null,null,null,null,null,null,null,null,null,null,null,null,null,null,null,null,null,null,null,null,null,null,null,null,null,null,null,null,null,null,null,null,null,null,null,null,null,null,null,null,null,null,null,null,null,null,null,null,null,null,null,null,null,null,null,null,null,null,null,null,null,null,null,null,null,null,null,null,null,null,null,null,null,null,null,null,null,null,null,null,null,null,null,null,null,null,null,null,null,null,null,null,null,null,null,null,null,null,null,null,null,null,null,null,null,null,null,null,null,null,null,null,null,null,null,null,null,null,null,null,null,null,null,null,null,null,null,null,null,null,null,null,null,null,null,null,null,null,null,null,null,null,null,null,null,null,null,null,null,null,null,null,null,null,null,null,null,null,null,null,null,null,null,null,null,null,null,null,null,null,null,null,null,null,null,null,null,null,null,null,null,null,null,null,null,null,null,null,null,null,null,null,null,null,null,null,null,null,null,null,null,null,null,null,null,null,null,null,null,null,null,null,null,null,null,null,null,null,null,null,null,null,null,null,null,null,null,null,null,null,null,null,null,null,null,null,null,null,null,null,null,null,null,null,null,null,null,null,null,null,null,null,null,null,null,null,null,null,null,null,null,null,null,null,null,null,null,null,null,null,null,null,null,null,null,null,null,null,null,null,null,null,null,null,null,null,null,null,null,null,null,null,null,null,null,null,null,null,null,null,null,null,null,null,null,null,null,null,null,null,null,null,null,null,null,null,null,null,null,null,null,null,null,null,null,null,null,null,null,null,null,null,null,null,null,null,null,null,null,null,null,null,null,null,null,null,null,null,null,null,null,null,null,null,null,null,null,null,null,null,null,null,null,null,null,null,null,null,null,null,null,null,null,null,null,null,null,null,null,null,null,null,null,null,null,null,null,null,null,null,null,null,null,null,null,null,null,null,null,null,null,null,null,null,null,null,null,null,null,null,null,null,null,null,null,null,null,null,null,null,null,null,null,null,null,null,null,null,null,null,null,null,null,null,null,null,null,null,null,null,null,null,null,null,null,null,null,null,null,null,null,null,null,null,null,null,null,null,null,null,null,null,null,null,null,null,null,null,null,null,null,null,null,null,null,null,null,null,null,null,null,null,null,null,null,null,null,null,null,null,null,null,null,null,null,null,null,null,null,null,null,null,null,null,null,null,null,null,null,null,null,null,null,null,null,null,null,null,null,null,null,null,null,null,null,null,null,null,null,null,null,null,null,null,null,null,null,null,null,null,null,null,null,null,null,null,null,null,null,null,null,null,null,null,null,null,null,null,null,null,null,null,null,null,null,null,null,null,null,null,null,null,null,null,null,null,null,null,null,null,null,null,null,null,null,null,null,null,null,null,null,null,null,null,null,null,null,null,null,null,null,null,null,null,null,null,null,null,null,null,null,null,null,null,null,null,null,null,null,null,null,null,null,null,null,null,null,null,null,null,null,null,null,null,null,null,null,null,null,null,null,null,null,null,null,null,null,null,null,null,null,null,null,null,null,null,null,null,null,null,null,null,null,null,null,null,null,null,null,null,null,null,null,null,null,null,null,null,null,null,null,null,null,null,null,null,null,null,null,null,null,null,null,null,null,null,null,null,null,null,null,null,null,null,null,null,null,null,null,null,null,null,null,null,null,null,null,null,null,null,null,null,null,null,null,null,null,null,null,null,null,null,null,null,null,null,null,null,null,null,null,null,null,null,null,null,null,null,null,null,null,null,null,null,null,null,null,null,null,null,null,null,null,null,null,null,null,null,null,null,null,null,null,null,null,null,null,null,null,null,null,null,null,null,null,null,null,null,null,null,null,null,null,null,null,null,null,null,null,null,null,null,null,null,null,null,null,null,null,null,null,null,null,null,null,null,null,null,null,null,null,null,null,null,null,null,null,null,null,null,null,null,null,null,null,null,null,null,null,null,null,null,null,null,null,null,null,null,null,null,null,null,null,null,null,null,null,null,null,null,null,null,null,null,null,null,null,null,null,null,null,null,null,null,null,null,null,null,null,null,null,null,null,null,null,null,null,null,null,null,null,null,null,null,null,null,null,null,null,null,null,null,null,null,null,null,null,null,null,null,null,null,null,null,null,null,null,null,null,null,null,null,null,null,null,null,null,null,null,null,null,null,null,null,null,null,null,null,null,null,null,null,null,null,null,null,null,null,null,null,null,null,null,null,null,null,null,null,null,null,null,null,null,null,null,null,null,null,null,null,null,null,null,null,null,null,null,null,null,null,null,null,null,null,null,null,null,null,null,null,null,null,null,null,null,null,null,null,null,null,null,null,null,null,null,null,null,null,null,null,null,null,null,null,null,null,null,null,null,null,null,null,null,null,null,null,null,null,null,null,null,null,null,null,null,null,null,null,null,null,null,null,null,null,null,null,null,null,null,null,null,null,null,null,null,null,null,null,null,null,null,null,null,null,null,null,null,null,null,null,null,null,null,null,null,null,null,null,null,null,null,null,null,null,null,null,null,null,null,null,null,null,null,null,null,null,null,null,null,null,null,null,null,null,null,null,null,null,null,null,null,null,null,null,null,null,null,null,null,null,null,null,null,null,null,null,null,null,null,null,null,null,null,null,null,null,null,null,null,null,null,null,null,null,null,null,null,null,null,null,null,null,null,null,null,null,null,null,null,null,null,null,null,null,null,null,null,null,null,null,null,null,null,null,null,null,null,null,null,null,null,null,null,null,null,null,null,null,null,null,null,null,null,null,null,null,null,null,null,null,null,null,null,null,null,null,null,null,null,null,null,null,null,null,null,null,null,null,null,null,null,null,null,null,null,null,null,null,null,null,null,null,null,null,null,null,null,null,null,null,null,null,null,null,null,null,null,null,null,null,null,null,null,null,null,null,null,null,null,null,null,null,null,null,null,null,null,null,null,null,null,null,null,null,null,null,null,null,null,null,null,null,null,null,null,null,null,null,null,null,null,null,null,null,null,null,null,null,null,null,null,null,null,null,null,null,null,null,null,null,null,null,null,null,null,null,null,null,null,null,null,null,null,null,null,null,null,null,null,null,null,null,null,null,null,null,null,null,null,null,null,null,null,null,null,null,null,null,null,null,null,null,null,null,null,null,null,null,null,null,null,null,null,null,null,null,null,null,null,null,null,null,null,null,null,null,null,null,null,null,null,null,null,null,null,null,null,null,null,null,null,null,null,null,null,null,null,null,null,null,null,null,null,null,null,null,null,null,null,null,null,null,null,null,null,null,null,null,null,null,null,null,null,null,null,null,null,null,null,null,null,null,null,null,null,null,null,null,null,null,null,null,null,null,null,null,null,null,null,null,null,null,null,null,null,null,null,null,null,null,null,null,null,null,null,null,null,null,null,null,null,null,null,null,null,null,null,null,null,null,null,null,null,null,null,null,null,null,null,null,null,null,null,null,null,null,null,null,null,null,null,null,null,null,null,null,null,null,null,null,null,null,null,null,null,null,null,null,null,null,null,null,null,null,null,null,null,null,null,null,null,null,null,null,null,null,null,null,null,null,null,null,null,null,null,null,null,null,null,null,null,null,null,null,null,null,null,null,null,null,null,null,null,null,null,null,null,null,null,null,null,null,null,null,null,null,null,null,null,null,null,null,null,null,null,null,null,null,null,null,null,null,null,null,null,null,null,null,null,null,null,null,null,null,null,null,null,null,null,null,null,null,null,null,null,null,null,null,null,null,null,null,null,null,null,null,null,null,null,null,null,null,null,null,null,null,null,null,null,null,null,null,null,null,null,null,null,null,null,null,null,null,null,null,null,null,null,null,null,null,null,null,null,null,null,null,null,null,null,null,null,null,null,null,null,null,null,null,null,null,null,null,null,null,null,null,null,null,null,null,null,null,null,null,null,null,null,null,null,null,null,null,null,null,null,null,null,null,null,null,null,null,null,null,null,null,null,null,null,null,null,null,null,null,null,null,null,null,null,null,null,null,null,null,null,null,null,null,null,null,null,null,null,null,null,null,null,null,null,null,null,null,null,null,null,null,null,null,null,null,null,null,null,null,null,null,null,null,null,null,null,null,null,null,null,null,null,null,null,null,null,null,null,null,null,null,null,null,null,null,null,null,null,null,null,null,null,null,null,null,null,null,null,null,null,null,null,null,null,null,null,null,null,null,null,null,null,null,null,null,null,null,null,null,null,null,null,null,null,null,null,null,null,null,null,null,null,null,null,null,null,null,null,null,null,null,null,null,null,null,null,null,null,null,null,null,null,null,null,null,null,null,null,null,null,null,null,null,null,null,null,null,null,null,null,null,null,null,null,null,null,null,null,null,null,null,null,null,null,null,null,null,null,null,null,null,null,null,null,null,null,null,null,null,null,null,null,null,null,null,null,null,null,null,null,null,null,null,null,null,null,null,null,null,null,null,null,null,null,null,null,null,null,null,null,null,null,null,null,null,null,null,null,null,null,null,null,null,null,null,null,null,null,null,null,null,null,null,null,null,null,null,null,null,null,null,null,null,null,null,null,null,null,null,null,null,null,null,null,null,null,null,null,null,null,null,null,null,null,null,null,null,null,null,null,null,null,null,null,null,null,null,null,null,null,null,null,null,null,null,null,null,null,null,null,null,null,null,null,null,null,null,null,null,null,null,null,null,null,null,null,null,null,null,null,null,null,null,null,null,null,null,null,null,null,null,null,null,null,null,null,null,null,null,null,null,null,null,null,null,null,null,null,null,null,null,null,null,null,null,null,null,null,null,null,null,null,null,null,null,null,null,null,null,null,null,null,null,null,null,null,null,null,null,null,null,null,null,null,null,null,null,null,null,null,null,null,null,null,null,null,null,null,null,null,null,null,null,null,null,null,null,null,null,null,null,null,null,null,null,null,null,null,null,null,null,null,null,null,null,null,null,null,null,null,null,null,null,null,null,null,null,null,null,null,null,null,null,null,null,null,null,null,null,null,null,null,null,null,null,null,null,null,null,null,null,null,null,null,null,null,null,null,null,null,null,null,null,null,null,null,null,null,null,null,null,null,null,null,null,null,null,null,null,null,null,null,null,null,null,null,null,null,null,null,null,null,null,null,null,null,null,null,null,null,null,null,null,null,null,null,null,null,null,null,null,null,null,null,null,null,null,null,null,null,null,null,null,null,null,null,null,null,null,null,null,null,null,null,null,null,null,null,null,null,null,null,null,null,null,null,null,null,null,null,null,null,null,null,null,null,null,null,null,null,null,null,null,null,null,null,null,null,null,null,null,null,null,null,null,null,null,null,null,null,null,null,null,null,null,null,null,null,null,null,null,null,null,null,null,null,null,null,null,null,null,null,null,null,null,null,null,null,null,null,null,null,null,null,null,null,null,null,null,null,null,null,null,null,null,null,null,null,null,null,null,null,null,null,null,null,null,null,null,null,null,null,null,null,null,null,null,null,null,null,null,null,null,null,null,null,null,null,null,null,null,null,null,null,null,null,null,null,null,null,null,null,null,null,null,null,null,null,null,null,null,null,null,null,null,null,null,null,null,null,null,null,null,null,null,null,null,null,null,null,null,null,null,null,null,null,null,null,null,null,null,null,null,null,null,null,null,null,null,null,null,null,null,null,null,null,null,null,null,null,null,null,null,null,null,null,null,null,null,null,null,null,null,null,null,null,null,null,null,null,null,null,null,null,null,null,null,null,null,null,null,null,null,null,null,null,null,null,null,null,null,null,null,null,null,null,null,null,null,null,null,null,null,null,null,null,null,null,null,null,null,null,null,null,null,null,null,null,null,null,null,null,null,null,null,null,null,null,null,null,null,null,null,null,null,null,null,null,null,null,null,null,null,null,null,null,null,null,null,null,null,null,null,null,null,null,null,null,null,null,null,null,null,null,null,null,null,null,null,null,null,null,null,null,null,null,null,null,null,null,null,null,null,null,null,null,null,null,null,null,null,null,null,null,null,null,null,null,null,null,null,null,null,null,null,null,null,null,null,null,null,null,null,null,null,null,null,null,null,null,null,null,null,null,null,null,null,null,null,null,null,null,null,null,null,null,null,null,null,null,null,null,null,null,null,null,null,null,null,null,null,null,null,null,null,null,null,null,null,null,null,null,null,null,null,null,null,null,null,null,null,null,null,null,null,null,null,null,null,null,null,null,null,null,null,null,null,null,null,null,null,null,null,null,null,null,null,null,null,null,null,null,null,null,null,null,null,null,null,null,null,null,null,null,null,null,null,null,null,null,null,null,null,null,null,null,null,null,null,null,null,null,null,null,null,null,null,null,null,null,null,null,null,null,null,null,null,null,null,null,null,null,null,null,null,null,null,null,null,null,null,null,null,null,null,null,null,null,null,null,null,null,null,null,null,null,null,null,null,null,null,null,null,null,null,null,null,null,null,null,null,null,null,null,null,null,null,null,null,null,null,null,null,null,null,null,null,null,null,null,null,null,null,null,null,null,null,null,null,null,null,null,null,null,null,null,null,null,null,null,null,null,null,null,null,null,null,null,null,null,null,null,null,null,null,null,null,null,null,null,null,null,null,null,null,null,null,null,null,null,null,null,null,null,null,null,null,null,null,null,null,null,null,null,null,null,null,null,null,null,null,null,null,null,null,null,null,null,null,null,null,null,null,null,null,null,null,null,null,null,null,null,null,null,null,null,null,null,null,null,null,null,null,null,null,null,null,null,null,null,null,null,null,null,null,null,null,null,null,null,null,null,null,null,null,null,null,null,null,null,null,null,null,null,null,null,null,null,null,null,null,null,null,null,null,null,null,null,null,null,null,null,null,null,null,null,null,null,null,null,null,null,null,null,null,null,null,null,null,null,null,null,null,null,null,null,null,null,null,null,null,null,null,null,null,null,null,null,null,null,null,null,null,null,null,null,null,null,null,null,null,null,null,null,null,null,null,null,null,null,null,null,null,null,null,null,null,null,null,null,null,null,null,null,null,null,null,null,null,null,null,null,null,null,null,null,null,null,null,null,null,null,null,null,null,null,null,null,null,null,null,null,null,null,null,null,null,null,null,null,null,null,null,null,null,null,null,null,null,null,null,null,null,null,null,null,null,null,null,null,null,null,null,null,null,null,null,null,null,null,null,null,null,null,null,null,null,null,null,null,null,null,null,null,null,null,null,null,null,null,null,null,null,null,null,null,null,null,null,null,null,null,null,null,null,null,null,null,null,null,null,null,null,null,null,null,null,null,null,null,null,null,null,null,null,null,null,null,null,null,null,null,null,null,null,null,null,null,null,null,null,null,null,null,null,null,null,null,null,null,null,null,null,null,null,null,null,null,null,null,null,null,null,null,null,null,null,null,null,null,null,null,null,null,null,null,null,null,null,null,null,null,null,null,null,null,null,null,null,null,null,null,null,null,null,null,null,null,null,null,null,null,null,null,null,null,null,null,null,null,null,null,null,null,null,null,null,null,null,null,null,null,null,null,null,null,null,null,null,null,null,null,null,null,null,null,null,null,null,null,null,null,null,null,null,null,null,null,null,null,null,null,null,null,null,null,null,null,null,null,null,null,null,null,null,null,null,null,null,null,null,null,null,null,null,null,null,null,null,null,null,null,null,null,null,null,null,null,null,null,null,null,null,null,null,null,null,null,null,null,null,null,null,null,null,null,null,null,null,null,null,null,null,null,null,null,null,null,null,null,null,null,null,null,null,null,null,null,null,null,null,null,null,null,null,null,null,null,null,null,null,null,null,null,null,null,null,null,null,null,null,null,null,null,null,null,null,null,null,null,null,null,null,null,null,null,null,null,null,null,null,null,null,null,null,null,null,null,null,null,null,null,null,null,null,null,null,null,null,null,null,null,null,null,null,null,null,null,null,null,null,null,null,null,null,null,null,null,null,null,null,null,null,null,null,null,null,null,null,null,null,null,null,null,null,null,null,null,null,null,null,null,null,null,null,null,null,null,null,null,null,null,null,null,null,null,null,null,null,null,null,null,null,null,null,null,null,null,null,null,null,null,null,null,null,null,null,null,null,null,null,null,null,null,null,null,null,null,null,null,null,null,null,null,null,null,null,null,null,null,null,null,null,null,null,null,null,null,null,null,null,null,null,null,null,null,null,null,null,null,null,null,null,null,null,null,null,null,null,null,null,null,null,null,null,null,null,null,null,null,null,null,null,null,null,null,null,null,null,null,null,null,null,null,null,null,null,null,null,null,null,null,null,null,null,null,null,null,null,null,null,null,null,null,null,null,null,null,null,null,null,null,null,null,null,null,null,null,null,null,null,null,null,null,null,null,null,null,null,null,null,null,null,null,null,null,null,null,null,null,null,null,null,null,null,null,null,null,null,null,null,null,null,null,null,null,null,null,null,null,null,null,null,null,null,null,null,null,null,null,null,null,null,null,null,null,null,null,null,null,null,null,null,null,null,null,null,null,null,null,null,null,null,null,null,null,null,null,null,null,null,null,null,null,null,null,null,null,null,null,null,null,null,null,null,null,null,null,null,null,null,null,null,null,null,null,null,null,null,null,null,null,null,null,null,null,null,null,null,null,null,null,null,null,null,null,null,null,null,null,null,null,null,null,null,null,null,null,null,null,null,null,null,null,null,null,null,null,null,null,null,null,null,null,null,null,null,null,null,null,null,null,null,null,null,null,null,null,null,null,null,null,null,null,null,null,null,null,null,null,null,null,null,null,null,null,null,null,null,null,null,null,null,null,null,null,null,null,null,null,null,null,null,null,null,null,null,null,null,null,null,null,null,null,null,null,null,null,null,null,null,null,null,null,null,null,null,null,null,null,null,null,null,null,null,null,null,null,null,null,null,null,null,null,null,null,null,null,null,null,null,null,null,null,null,null,null,null,null,null,null,null,null,null,null,null,null,null,null,null,null,null,null,null,null,null,null,null,null,null,null,null,null,null,null,null,null,null,null,null,null,null,null,null,null,null,null,null,null,null,null,null,null,null,null,null,null,null,null,null,null,null,null,null,null,null,null,null,null,null,null,null,null,null,null,null,null,null,null,null,null,null,null,null,null,null,null,null,null,null,null,null,null,null,null,null,null,null,null,null,null,null,null,null,null,null,null,null,null,null,null,null,null,null,null,null,null,null,null,null,null,null,null,null,null,null,null,null,null,null,null,null,null,null,null,null,null,null,null,null,null,null,null,null,null,null,null,null,null,null,null,null,null,null,null,null,null,null,null,null,null,null,null,null,null,null,null,null,null,null,null,null,null,null,null,null,null,null,null,null,null,null,null,null,null,null,null,null,null,null,null,null,null,null,null,null,null,null,null,null,null,null,null,null,null,null,null,null,null,null,null,null,null,null,null,null,null,null,null,null,null,null,null,null,null,null,null,null,null,null,null,null,null,null,null,null,null,null,null,null,null,null,null,null,null,null,null,null,null,null,null,null,null,null,null,null,null,null,null,null,null,null,null,null,null,null,null,null,null,null,null,null,null,null,null,null,null,null,null,null,null,null,null,null,null,null,null,null,null,null,null,null,null,null,null,null,null,null,null,null,null,null,null,null,null,null,null,null,null,null,null,null,null,null,null,null,null,null,null,null,null,null,null,null,null,null,null,null,null,null,null,null,null,null,null,null,null,null,null,null,null,null,null,null,null,null,null,null,null,null,null,null,null,null,null,null,null,null,null,null,null,null,null,null,null,null,null,null,null,null,null,null,null,null,null,null,null,null,null,null,null,null,null,null,null,null,null,null,null,null,null,null,null,null,null,null,null,null,null,null,null,null,null,null,null,null,null,null,null,null,null,null,null,null,null,null,null,null,null,null,null,null,null,null,null,null,null,null,null,null,null,null,null,null,null,null,null,null,null,null,null,null,null,null,null,null,null,null,null,null,null,null,null,null,null,null,null,null,null,null,null,null,null,null,null,null,null,null,null,null,null,null,null,null,null,null,null,null,null,null,null,null,null,null,null,null,null,null,null,null,null,null,null,null,null,null,null,null,null,null,null,null,null,null,null,null,null,null,null,null,null,null,null,null,null,null,null,null,null,null,null,null,null,null,null,null,null,null,null,null,null,null,null,null,null,null,null,null,null,null,null,null,null,null,null,null,null,null,null,null,null,null,null,null,null,null,null,null,null,null,null,null,null,null,null,null,null,null,null,null,null,null,null,null,null,null,null,null,null,null,null,null,null,null,null,null,null,null,null,null,null,null,null,null,null,null,null,null,null,null,null,null,null,null,null,null,null,null,null,null,null,null,null,null,null,null,null,null,null,null,null,null,null,null,null,null,null,null,null,null,null,null,null,null,null,null,null,null,null,null,null,null,null,null,null,null,null,null,null,null,null,null,null,null,null,null,null,null,null,null,null,null,null,null,null,null,null,null,null,null,null,null,null,null,null,null,null,null,null,null,null,null,null,null,null,null,null,null,null,null,null,null,null,null,null,null,null,null,null,null,null,null,null,null,null,null,null,null,null,null,null,null,null,null,null,null,null,null,null,null,null,null,null,null,null,null,null,null,null,null,null,null,null,null,null,null,null,null,null,null,null,null,null,null,null,null,null,null,null,null,null,null,null,null,null,null,null,null,null,null,null,null,null,null,null,null,null,null,null,null,null,null,null,null,null,null,null,null,null,null,null,null,null,null,null,null,null,null,null,null,null,null,null,null,null,null,null,null,null,null,null,null,null,null,null,null,null,null,null,null,null,null,null,null,null,null,null,null,null,null,null,null,null,null,null,null,null,null,null,null,null,null,null,null,null,null,null,null,null,null,null,null,null,null,null,null,null,null,null,null,null,null,null,null,null,null,null,null,null,null,null,null,null,null,null,null,null,null,null,null,null,null,null,null,null,null,null,null,null,null,null,null,null,null,null,null,null,null,null,null,null,null,null,null,null,null,null,null,null,null,null,null,null,null,null,null,null,null,null,null,null,null,null,null,null,null,null,null,null,null,null,null,null,null,null,null,null,null,null,null,null,null,null,null,null,null,null,null,null,null,null,null,null,null,null,null,null,null,null,null,null,null,null,null,null,null,null,null,null,null,null,null,null,null,null,null,null,null,null,null,null,null,null,null,null,null,null,null,null,null,null,null,null,null,null,null,null,null,null,null,null,null,null,null,null,null,null,null,null,null,null,null,null,null,null,null,null,null,null,null,null,null,null,null,null,null,null,null,null,null,null,null,null,null,null,null,null,null,null,null,null,null,null,null,null,null,null,null,null,null,null,null,null,null,null,null,null,null,null,null,null,null,null,null,null,null,null,null,null,null,null,null,null,null,null,null,null,null,null,null,null,null,null,null,null,null,null,null,null,null,null,null,null,null,null,null,null,null,null,null,null,null,null,null,null,null,null,null,null,null,null,null,null,null,null,null,null,null,null,null,null,null,null,null,null,null,null,null,null,null,null,null,null,null,null,null,null,null,null,null,null,null,null,null,null,null,null,null,null,null,null,null,null,null,null,null,null,null,null,null,null,null,null,null,null,null,null,null,null,null,null,null,null,null,null,null,null,null,null,null,null,null,null,null,null,null,null,null,null,null,null,null,null,null,null,null,null,null,null,null,null,null,null,null,null,null,null,null,null,null,null,null,null,null,null,null,null,null,null,null,null,null,null,null,null,null,null,null,null,null,null,null,null,null,null,null,null,null,null,null,null,null,null,null,null,null,null,null,null,null,null,null,null,null,null,null,null,null,null,null,null,null,null,null,null,null,null,null,null,null,null,null,null,null,null,null,null,null,null,null,null,null,null,null,null,null,null,null,null,null,null,null,null,null,null,null,null,null,null,null,null,null,null,null,null,null,null,null,null,null,null,null,null,null,null,null,null,null,null,null,null,null,null,null,null,null,null,null,null,null,null,null,null,null,null,null,null,null,null,null,null,null,null,null,null,null,null,null,null,null,null,null,null,null,null,null,null,null,null,null,null,null,null,null,null,null,null,null,null,null,null,null,null,null,null,null,null,null,null,null,null,null,null,null,null,null,null,null,null,null,null,null,null,null,null,null,null,null,null,null,null,null,null,null,null,null,null,null,null,null,null,null,null,null,null,null,null,null,null,null,null,null,null,null,null,null,null,null,null,null,null,null,null,null,null,null,null,null,null,null,null,null,null,null,null,null,null,null,null,null,null,null,null,null,null,null,null,null,null,null,null,null,null,null,null,null,null,null,null,null,null,null,null,null,null,null,null,null,null,null,null,null,null,null,null,null,null,null,null,null,null,null,null,null,null,null,null,null,null,null,null,null,null,null,null,null,null,null,null,null,null,null,null,null,null,null,null,null,null,null,null,null,null,null,null,null,null,null,null,null,null,null,null,null,null,null,null,null,null,null,null,null,null,null,null,null,null,null,null,null,null,null,null,null,null,null,null,null,null,null,null,null,null,null,null,null,null,null,null,null,null,null,null,null,null,null,null,null,null,null,null,null,null,null,null,null,null,null,null,null,null,null,null,null,null,null,null,null,null,null,null,null,null,null,null,null,null,null,null,null,null,null,null,null,null,null,null,null,null,null,null,null,null,null,null,null,null,null,null,null,null,null,null,null,null,null,null,null,null,null,null,null,null,null,null,null,null,null,null,null,null,null,null,null,null,null,null,null,null,null,null,null,null,null,null,null,null,null,null,null,null,null,null,null,null,null,null,null,null,null,null,null,null,null,null,null,null,null,null,null,null,null,null,null,null,null,null,null,null,null,null,null,null,null,null,null,null,null,null,null,null,null,null,null,null,null,null,null,null,null,null,null,null,null,null,null,null,null,null,null,null,null,null,null,null,null,null,null,null,null,null,null,null,null,null,null,null,null,null,null,null,null,null,null,null,null,null,null,null,null,null,null,null,null,null,null,null,null,null,null,null,null,null,null,null,null,null,null,null,null,null,null,null,null,null,null,null,null,null,null,null,null,null,null,null,null,null,null,null,null,null,null,null,null,null,null,null,null,null,null,null,null,null,null,null,null,null,null,null,null,null,null,null,null,null,null,null,null,null,null,null,null,null,null,null,null,null,null,null,null,null,null,null,null,null,null,null,null,null,null,null,null,null,null,null,null,null,null,null,null,null,null,null,null,null,null,null,null,null,null,null,null,null,null,null,null,null,null,null,null,null,null,null,null,null,null,null,null,null,null,null,null,null,null,null,null,null,null,null,null,null,null,null,null,null,null,null,null,null,null,null,null,null,null,null,null,null,null,null,null,null,null,null,null,null,null,null,null,null,null,null,null,null,null,null,null,null,null,null,null,null,null,null,null,null,null,null,null,null,null,null,null,null,null,null,null,null,null,null,null,null,null,null,null,null,null,null,null,null,null,null,null,null,null,null,null,null,null,null,null,null,null,null,null,null,null,null,null,null,null,null,null,null,null,null,null,null,null,null,null,null,null,null,null,null,null,null,null,null,null,null,null,null,null,null,null,null,null,null,null,null,null,null,null,null,null,null,null,null,null,null,null,null,null,null,null,null,null,null,null,null,null,null,null,null,null,null,null,null,null,null,null,null,null,null,null,null,null,null,null,null,null,null,null,null,null,null,null,null,null,null,null,null,null,null,null,null,null,null,null,null,null,null,null,null,null,null,null,null,null,null,null,null,null,null,null,null,null,null,null,null,null,null,null,null,null,null,null,null,null,null,null,null,null,null,null,null,null,null,null,null,null,null,null,null,null,null,null,null,null,null,null,null,null,null,null,null,null,null,null,null,null,null,null,null,null,null,null,null,null,null,null,null,null,null,null,null,null,null,null,null,null,null,null,null,null,null,null,null,null,null,null,null,null,null,null,null,null,null,null,null,null,null,null,null,null,null,null,null,null,null,null,null,null,null,null,null,null,null,null,null,null,null,null,null,null,null,null,null,null,null,null,null,null,null,null,null,null,null,null,null,null,null,null,null,null,null,null,null,null,null,null,null,null,null,null,null,null,null,null,null,null,null,null,null,null,null,null,null,null,null,null,null,null,null,null,null,null,null,null,null,null,null,null,null,null,null,null,null,null,null,null,null,null,null,null,null,null,null,null,null,null,null,null,null,null,null,null,null,null,null,null,null,null,null,null,null,null,null,null,null,null,null,null,null,null,null,null,null,null,null,null,null,null,null,null,null,null,null,null,null,null,null,null,null,null,null,null,null,null,null,null,null,null,null,null,null,null,null,null,null,null,null,null,null,null,null,null,null,null,null,null,null,null,null,null,null,null,null,null,null,null,null,null,null,null,null,null,null,null,null,null,null,null,null,null,null,null,null,null,null,null,null,null,null,null,null,null,null,null,null,null,null,null,null,null,null,null,null,null,null,null,null,null,null,null,null,null,null,null,null,null,null,null,null,null,null,null,null,null,null,null,null,null,null,null,null,null,null,null,null,null,null,null,null,null,null,null,null,null,null,null,null,null,null,null,null,null,null,null,null,null,null,null,null,null,null,null,null,null,null,null,null,null,null,null,null,null,null,null,null,null,null,null,null,null,null,null,null,null,null,null,null,null,null,null,null,null,null,null,null,null,null,null,null,null,null,null,null,null,null,null,null,null,null,null,null,null,null,null,null,null,null,null,null,null,null,null,null,null,null,null,null,null,null,null,null,null,null,null,null,null,null,null,null,null,null,null,null,null,null,null,null,null,null,null,null,null,null,null,null,null,null,null,null,null,null,null,null,null,null,null,null,null,null,null,null,null,null,null,null,null,null,null,null,null,null,null,null,null,null,null,null,null,null,null,null,null,null,null,null,null,null,null,null,null,null,null,null,null,null,null,null,null,null,null,null,null,null,null,null,null,null,null,null,null,null,null,null,null,null,null,null,null,null,null,null,null,null,null,null,null,null,null,null,null,null,null,null,null,null,null,null,null,null,null,null,null,null,null,null,null,null,null,null,null,null,null,null,null,null,null,null,null,null,null,null,null,null,null,null,null,null,null,null,null,null,null,null,null,null,null,null,null,null,null,null,null,null,null,null,null,null,null,null,null,null,null,null,null,null,null,null,null,null,null,null,null,null,null,null,null,null,null,null,null,null,null,null,null,null,null,null,null,null,null,null,null,null,null,null,null,null,null,null,null,null,null,null,null,null,null,null,null,null,null,null,null,null,null,null,null,null,null,null,null,null,null,null,null,null,null,null,null,null,null,null,null,null,null,null,null,null,null,null,null,null,null,null,null,null,null,null,null,null,null,null,null,null,null,null,null,null,null,null,null,null,null,null,null,null,null,null,null,null,null,null,null,null,null,null,null,null,null,null,null,null,null,null,null,null,null,null,null,null,null,null,null,null,null,null,null,null,null,null,null,null,null,null,null,null,null,null,null,null,null,null,null,null,null,null,null,null,null,null,null,null,null,null,null,null,null,null,null,null,null,null,null,null,null,null,null,null,null,null,null,null,null,null,null,null,null,null,null,null,null,null,null,null,null,null,null,null,null,null,null,null,null,null,null,null,null,null,null,null,null,null,null,null,null,null,null,null,null,null,null,null,null,null,null,null,null,null,null,null,null,null,null,null,null,null,null,null,null,null,null,null,null,null,null,null,null,null,null,null,null,null,null,null,null,null,null,null,null,null,null,null,null,null,null,null,null,null,null,null,null,null,null,null,null,null,null,null,null,null,null,null,null,null,null,null,null,null,null,null,null,null,null,null,null,null,null,null,null,null,null,null,null,null,null,null,null,null,null,null,null,null,null,null,null,null,null,null,null,null,null,null,null,null,null,null,null,null,null,null,null,null,null,null,null,null,null,null,null,null,null,null,null,null,null,null,null,null,null,null,null,null,null,null,null,null,null,null,null,null,null,null,null,null,null,null,null,null,null,null,null,null,null,null,null,null,null,null,null,null,null,null,null,null,null,null,null,null,null,null,null,null,null,null,null,null,null,null,null,null,null,null,null,null,null,null,null,null,null,null,null,null,null,null,null,null,null,null,null,null,null,null,null,null,null,null,null,null,null,null,null,null,null,null,null,null,null,null,null,null,null,null,null,null,null,null,null,null,null,null,null,null,null,null,null,null,null,null,null,null,null,null,null,null,null,null,null,null,null,null,null,null,null,null,null,null,null,null,null,null,null,null,null,null,null,null,null,null,null,null,null,null,null,null,null,null,null,null,null,null,null,null,null,null,null,null,null,null,null,null,null,null,null,null,null,null,null,null,null,null,null,null,null,null,null,null,null,null,null,null,null,null,null,null,null,null,null,null,null,null,null,null,null,null,null,null,null,null,null,null,null,null,null,null,null,null,null,null,null,null,null,null,null,null,null,null,null,null,null,null,null,null,null,null,null,null,null,null,null,null,null,null,null,null,null,null,null,null,null,null,null,null,null,null,null,null,null,null,null,null,null,null,null,null,null,null,null,null,null,null,null,null,null,null,null,null,null,null,null,null,null,null,null,null,null,null,null,null,null,null,null,null,null,null,null,null,null,null,null,null,null,null,null,null,null,null,null,null,null,null,null,null,null,null,null,null,null,null,null,null,null,null,null,null,null,null,null,null,null,null,null,null,null,null,null,null,null,null,null,null,null,null,null,null,null,null,null,null,null,null,null,null,null,null,null,null,null,null,null,null,null,null,null,null,null,null,null,null,null,null,null,null,null,null,null,null,null,null,null,null,null,null,null,null,null,null,null,null,null,null,null,null,null,null,null,null,null,null,null,null,null,null,null,null,null,null,null,null,null,null,null,null,null,null,null,null,null,null,null,null,null,null,null,null,null,null,null,null,null,null,null,null,null,null,null,null,null,null,null,null,null,null,null,null,null,null,null,null,null,null,null,null,null,null,null,null,null,null,null,null,null,null,null,null,null,null,null,null,null,null,null,null,null,null,null,null,null,null,null,null,null,null,null,null,null,null,null,null,null,null,null,null,null,null,null,null,null,null,null,null,null,null,null,null,null,null,null,null,null,null,null,null,null,null,null,null,null,null,null,null,null,null,null,null,null,null,null,null,null,null,null,null,null,null,null,null,null,null,null,null,null,null,null,null,null,null,null,null,null,null,null,null,null,null,null,null,null,null,null,null,null,null,null,null,null,null,null,null,null,null,null,null,null,null,null,null,null,null,null,null,null,null,null,null,null,null,null,null,null,null,null,null,null,null,null,null,null,null,null,null,null,null,null,null,null,null,null,null,null,null,null,null,null,null,null,null,null,null,null,null,null,null,null,null,null,null,null,null,null,null,null,null,null,null,null,null,null,null,null,null,null,null,null,null,null,null,null,null,null,null,null,null,null,null,null,null,null,null,null,null,null,null,null,null,null,null,null,null,null,null,null,null,null,null,null,null,null,null,null,null,null,null,null,null,null,null,null,null,null,null,null,null,null,null,null,null,null,null,null,null,null,null,null,null,null,null,null,null,null,null,null,null,null,null,null,null,null,null,null,null,null,null,null,null,null,null,null,null,null,null,null,null,null,null,null,null,null,null,null,null,null,null,null,null,null,null,null,null,null,null,null,null,null,null,null,null,null,null,null,null,null,null,null,null,null,null,null,null,null,null,null,null,null,null,null,null,null,null,null,null,null,null,null,null,null,null,null,null,null,null,null,null,null,null,null,null,null,null,null,null,null,null,null,null,null,null,null,null,null,null,null,null,null,null,null,null,null,null,null,null,null,null,null,null,null,null,null,null,null,null,null,null,null,null,null,null,null,null,null,null,null,null,null,null,null,null,null,null,null,null,null,null,null,null,null,null,null,null,null,null,null,null,null,null,null,null,null,null,null,null,null,null,null,null,null,null,null,null,null,null,null,null,null,null,null,null,null,null,null,null,null,null,null,null,null,null,null,null,null,null,null,null,null,null,null,null,null,null,null,null,null,null,null,null,null,null,null,null,null,null,null,null,null,null,null,null,null,null,null,null,null,null,null,null,null,null,null,null,null,null,null,null,null,null,null,null,null,null,null,null,null,null,null,null,null,null,null,null,null,null,null,null,null,null,null,null,null,null,null,null,null,null,null,null,null,null,null,null,null,null,null,null,null,null,null,null,null,null,null,null,null,null,null,null,null,null,null,null,null,null,null,null,null,null,null,null,null,null,null,null,null,null,null,null,null,null,null,null,null,null,null,null,null,null,null,null,null,null,null,null,null,null,null,null,null,null,null,null,null,null,null,null,null,null,null,null,null,null,null,null,null,null,null,null,null,null,null,null,null,null,null,null,null,null,null,null,null,null,null,null,null,null,null,null,null,null,null,null,null,null,null,null,null,null,null,null,null,null,null,null,null,null,null,null,null,null,null,null,null,null,null,null,null,null,null,null,null,null,null,null,null,null,null,null,null,null,null,null,null,null,null,null,null,null,null,null,null,null,null,null,null,null,null,null,null,null,null,null,null,null,null,null,null,null,null,null,null,null,null,null,null,null,null,null,null,null,null,null,null,null,null,null,null,null,null,null,null,null,null,null,null,null,null,null,null,null,null,null,null,null,null,null,null,null,null,null,null,null,null,null,null,null,null,null,null,null,null,null,null,null,null,null,null,null,null,null,null,null,null,null,null,null,null,null,null,null,null,null,null,null,null,null,null,null,null,null,null,null,null,null,null,null,null,null,null,null,null,null,null,null,null,null,null,null,null,null,null,null,null,null,null,null,null,null,null,null,null,null,null,null,null,null,null,null,null,null,null,null,null,null,null,null,null,null,null,null,null,null,null,null,null,null,null,null,null,null,null,null,null,null,null,null,null,null,null,null,null,null,null,null,null,null,null,null,null,null,null,null,null,null,null,null,null,null,null,null,null,null,null,null,null,null,null,null,null,null,null,null,null,null,null,null,null,null,null,null,null,null,null,null,null,null,null,null,null,null,null,null,null,null,null,null,null,null,null,null,null,null,null,null,null,null,null,null,null,null,null,null,null,null,null,null,null,null,null,null,null,null,null,null,null,null,null,null,null,null,null,null,null,null,null,null,null,null,null,null,null,null,null,null,null,null,null,null,null,null,null,null,null,null,null,null,null,null,null,null,null,null,null,null,null,null,null,null,null,null,null,null,null,null,null,null,null,null,null,null,null,null,null,null,null,null,null,null,null,null,null,null,null,null,null,null,null,null,null,null,null,null,null,null,null,null,null,null,null,null,null,null,null,null,null,null,null,null,null,null,null,null,null,null,null,null,null,null,null,null,null,null,null,null,null,null,null,null,null,null,null,null,null,null,null,null,null,null,null,null,null,null,null,null,null,null,null,null,null,null,null,null,null,null,null,null,null,null,null,null,null,null,null,null,null,null,null,null,null,null,null,null,null,null,null,null,null,null,null,null,null,null,null,null,null,null,null,null,null,null,null,null,null,null,null,null,null,null,null,null,null,null,null,null,null,null,null,null,null,null,null,null,null,null,null,null,null,null,null,null,null,null,null,null,null,null,null,null,null,null,null,null,null,null,null,null,null,null,null,null,null,null,null,null,null,null,null,null,null,null,null,null,null,null,null,null,null,null,null,null,null,null,null,null,null,null,null,null,null,null,null,null,null,null,null,null,null,null,null,null,null,null,null,null,null,null,null,null,null,null,null,null,null,null,null,null,null,null,null,null,null,null,null,null,null,null,null,null,null,null,null,null,null,null,null,null,null,null,null,null,null,null,null,null,null,null,null,null,null,null,null,null,null,null,null,null,null,null,null,null,null,null,null,null,null,null,null,null,null,null,null,null,null,null,null,null,null,null,null,null,null,null,null,null,null,null,null,null,null,null,null,null,null,null,null,null,null,null,null,null,null,null,null,null,null,null,null,null,null,null,null,null,null,null,null,null,null,null,null,null,null,null,null,null,null,null,null,null,null,null,null,null,null,null,null,null,null,null,null,null,null,null,null,null,null,null,null,null,null,null,null,null,null,null,null,null,null,null,null,null,null,null,null,null,null,null,null,null,null,null,null,null,null,null,null,null,null,null,null,null,null,null,null,null,null,null,null,null,null,null,null,null,null,null,null,null,null,null,null,null,null,null,null,null,null,null,null,null,null,null,null,null,null,null,null,null,null,null,null,null,null,null,null,null,null,null,null,null,null,null,null,null,null,null,null,null,null,null,null,null,null,null,null,null,null,null,null,null,null,null,null,null,null,null,null,null,null,null,null,null,null,null,null,null,null,null,null,null,null,null,null,null,null,null,null,null,null,null,null,null,null,null,null,null,null,null,null,null,null,null,null,null,null,null,null,null,null,null,null,null,null,null,null,null,null,null,null,null,null,null,null,null,null,null,null,null,null,null,null,null,null,null,null,null,null,null,null,null,null,null,null,null,null,null,null,null,null,null,null,null,null,null,null,null,null,null,null,null,null,null,null,null,null,null,null,null,null,null,null,null,null,null,null,null,null,null,null,null,null,null,null,null,null,null,null,null,null,null,null,null,null,null,null,null,null,null,null,null,null,null,null,null,null,null,null,null,null,null,null,null,null,null,null,null,null,null,null,null,null,null,null,null,null,null,null,null,null,null,null,null,null,null,null,null,null,null,null,null,null,null,null,null,null,null,null,null,null,null,null,null,null,null,null,null,null,null,null,null,null,null,null,null,null,null,null,null,null,null,null,null,null,null,null,null,null,null,null,null,null,null,null,null,null,null,null,null,null,null,null,null,null,null,null,null,null,null,null,null,null,null,null,null,null,null,null,null,null,null,null,null,null,null,null,null,null,null,null,null,null,null,null,null,null,null,null,null,null,null,null,null,null,null,null,null,null,null,null,null,null,null,null,null,null,null,null,null,null,null,null,null,null,null,null,null,null,null,null,null,null,null,null,null,null,null,null,null,null,null,null,null,null,null,null,null,null,null,null,null,null,null,null,null,null,null,null,null,null,null,null,null,null,null,null,null,null,null,null,null,null,null,null,null,null,null,null,null,null,null,null,null,null,null,null,null,null,null,null,null,null,null,null,null,null,null,null,null,null,null,null,null,null,null,null,null,null,null,null,null,null,null,null,null,null,null,null,null,null,null,null,null,null,null,null,null,null,null,null,null,null,null,null,null,null,null,null,null,null,null,null,null,null,null,null,null,null,null,null,null,null,null,null,null,null,null,null,null,null,null,null,null,null,null,null,null,null,null,null,null,null,null,null,null,null,null,null,null,null,null,null,null,null,null,null,null,null,null,null,null,null,null,null,null,null,null,null,null,null,null,null,null,null,null,null,null,null,null,null,null,null,null,null,null,null,null,null,null,null,null,null,null,null,null,null,null,null,null,null,null,null,null,null,null,null,null,null,null,null,null,null,null,null,null,null,null,null,null,null,null,null,null,null,null,null,null,null,null,null,null,null,null,null,null,null,null,null,null,null,null,null,null,null,null,null,null,null,null,null,null,null,null,null,null,null,null,null,null,null,null,null,null,null,null,null,null,null,null,null,null,null,null,null,null,null,null,null,null,null,null,null,null,null,null,null,null,null,null,null,null,null,null,null,null,null,null,null,null,null,null,null,null,null,null,null,null,null,null,null,null,null,null,null,null,null,null,null,null,null,null,null,null,null,null,null,null,null,null,null,null,null,null,null,null,null,null,null,null,null,null,null,null,null,null,null,null,null,null,null,null,null,null,null,null,null,null,null,null,null,null,null,null,null,null,null,null,null,null,null,null,null,null,null,null,null,null,null,null,null,null,null,null,null,null,null,null,null,null,null,null,null,null,null,null,null,null,null,null,null,null,null,null,null,null,null,null,null,null,null,null,null,null,null,null,null,null,null,null,null,null,null,null,null,null,null,null,null,null,null,null,null,null,null,null,null,null,null,null,null,null,null,null,null,null,null,null,null,null,null,null,null,null,null,null,null,null,null,null,null,null,null,null,null,null,null,null,null,null,null,null,null,null,null,null,null,null,null,null,null,null,null,null,null,null,null,null,null,null,null,null,null,null,null,null,null,null,null,null,null,null,null,null,null,null,null,null,null,null,null,null,null,null,null,null,null,null,null,null,null,null,null,null,null,null,null,null,null,null,null,null,null,null,null,null,null,null,null,null,null,null,null,null,null,null,null,null,null,null,null,null,null,null,null,null,null,null,null,null,null,null,null,null,null,null,null,null,null,null,null,null,null,null,null,null,null,null,null,null,null,null,null,null,null,null,null,null,null,null,null,null,null,null,null,null,null,null,null,null,null,null,null,null,null,null,null,null,null,null,null,null,null,null,null,null,null,null,null,null,null,null,null,null,null,null,null,null,null,null,null,null,null,null,null,null,null,null,null,null,null,null,null,null,null,null,null,null,null,null,null,null,null,null,null,null,null,null,null,null,null,null,null,null,null,null,null,null,null,null,null,null,null,null,null,null,null,null,null,null,null,null,null,null,null,null,null,null,null,null,null,null,null,null,null,null,null,null,null,null,null,null,null,null,null,null,null,null,null,null,null,null,null,null,null,null,null,null,null,null,null,null,null,null,null,null,null,null,null,null,null,null,null,null,null,null,null,null,null,null,null,null,null,null,null,null,null,null,null,null,null,null,null,null,null,null,null,null,null,null,null,null,null,null,null,null,null,null,null,null,null,null,null,null,null,null,null,null,null,null,null,null,null,null,null,null,null,null,null,null,null,null,null,null,null,null,null,null,null,null,null,null,null,null,null,null,null,null,null,null,null,null,null,null,null,null,null,null,null,null,null,null,null,null,null,null,null,null,null,null,null,null,null,null,null,null,null,null,null,null,null,null,null,null,null,null,null,null,null,null,null,null,null,null,null,null,null,null,null,null,null,null,null,null,null,null,null,null,null,null,null,null,null,null,null,null,null,null,null,null,null,null,null,null,null,null,null,null,null,null,null,null,null,null,null,null,null,null,null,null,null,null,null,null,null,null,null,null,null,null,null,null,null,null,null,null,null,null,null,null,null,null,null,null,null,null,null,null,null,null,null,null,null,null,null,null,null,null,null,null,null,null,null,null,null,null,null,null,null,null,null,null,null,null,null,null,null,null,null,null,null,null,null,null,null,null,null,null,null,null,null,null,null,null,null,null,null,null,null,null,null,null,null,null,null,null,null,null,null,null,null,null,null,null,null,null,null,null,null,null,null,null,null,null,null,null,null,null,null,null,null,null,null,null,null,null,null,null,null,null,null,null,null,null,null,null,null,null,null,null,null,null,null,null,null,null,null,null,null,null,null,null,null,null,null,null,null,null,null,null,null,null,null,null,null,null,null,null,null,null,null,null,null,null,null,null,null,null,null,null,null,null,null,null,null,null,null,null,null,null,null,null,null,null,null,null,null,null,null,null,null,null,null,null,null,null,null,null,null,null,null,null,null,null,null,null,null,null,null,null,null,null,null,null,null,null,null,null,null,null,null,null,null,null,null,null,null,null,null,null,null,null,null,null,null,null,null,null,null,null,null,null,null,null,null,null,null,null,null,null,null,null,null,null,null,null,null,null,null,null,null,null,null,null,null,null,null,null,null,null,null,null,null,null,null,null,null,null,null,null,null,null,null,null,null,null,null,null,null,null,null,null,null,null,null,null,null,null,null,null,null,null,null,null,null,null,null,null,null,null,null,null,null,null,null,null,null,null,null,null,null,null,null,null,null,null,null,null,null,null,null,null,null,null,null,null,null,null,null,null,null,null,null,null,null,null,null,null,null,null,null,null,null,null,null,null,null,null,null,null,null,null,null,null,null,null,null,null,null,null,null,null,null,null,null,null,null,null,null,null,null,null,null,null,null,null,null,null,null,null,null,null,null,null,null,null,null,null,null,null,null,null,null,null,null,null,null,null,null,null,null,null,null,null,null,null,null,null,null,null,null,null,null,null,null,null,null,null,null,null,null,null,null,null,null,null,null,null,null,null,null,null,null,null,null,null,null,null,null,null,null,null,null,null,null,null,null,null,null,null,null,null,null,null,null,null,null,null,null,null,null,null,null,null,null,null,null,null,null,null,null,null,null,null,null,null,null,null,null,null,null,null,null,null,null,null,null,null,null,null,null,null,null,null,null,null,null,null,null,null,null,null,null,null,null,null,null,null,null,null,null,null,null,null,null,null,null,null,null,null,null,null,null,null,null,null,null,null,null,null,null,null,null,null,null,null,null,null,null,null,null,null,null,null,null,null,null,null,null,null,null,null,null,null,null,null,null,null,null,null,null,null,null,null,null,null,null,null,null,null,null,null,null,null,null,null,null,null,null,null,null,null,null,null,null,null,null,null,null,null,null,null,null,null,null,null,null,null,null,null,null,null,null,null,null,null,null,null,null,null,null,null,null,null,null,null,null,null,null,null,null,null,null,null,null,null,null,null,null,null,null,null,null,null,null,null,null,null,null,null,null,null,null,null,null,null,null,null,null,null,null,null,null,null,null,null,null,null,null,null,null,null,null,null,null,null,null,null,null,null,null,null,null,null,null,null,null,null,null,null,null,null,null,null,null,null,null,null,null,null,null,null,null,null,null,null,null,null,null,null,null,null,null,null,null,null,null,null,null,null,null,null,null,null,null,null,null,null,null,null,null,null,null,null,null,null,null,null,null,null,null,null,null,null,null,null,null,null,null,null,null,null,null,null,null,null,null,null,null,null,null,null,null,null,null,null,null,null,null,null,null,null,null,null,null,null,null,null,null,null,null,null,null,null,null,null,null,null,null,null,null,null,null,null,null,null,null,null,null,null,null,null,null,null,null,null,null,null,null,null,null,null,null,null,null,null,null,null,null,null,null,null,null,null,null,null,null,null,null,null,null,null,null,null,null,null,null,null,null,null,null,null,null,null,null,null,null,null,null,null,null,null,null,null,null,null,null,null,null,null,null,null,null,null,null,null,null,null,null,null,null,null,null,null,null,null,null,null,null,null,null,null,null,null,null,null,null,null,null,null,null,null,null,null,null,null,null,null,null,null,null,null,null,null,null,null,null,null,null,null,null,null,null,null,null,null,null,null,null,null,null,null,null,null,null,null,null,null,null,null,null,null,null,null,null,null,null,null,null,null,null,null,null,null,null,null,null,null,null,null,null,null,null,null,null,null,null,null,null,null,null,null,null,null,null,null,null,null,null,null,null,null,null,null,null,null,null,null,null,null,null,null,null,null,null,null,null,null,null,null,null,null,null,null,null,null,null,null,null,null,null,null,null,null,null,null,null,null,null,null,null,null,null,null,null,null,null,null,null,null,null,null,null,null,null,null,null,null,null,null,null,null,null,null,null,null,null,null,null,null,null,null,null,null,null,null,null,null,null,null,null,null,null,null,null,null,null,null,null,null,null,null,null,null,null,null,null,null,null,null,null,null,null,null,null,null,null,null,null,null,null,null,null,null,null,null,null,null,null,null,null,null,null,null,null,null,null,null,null,null,null,null,null,null,null,null,null,null,null,null,null,null,null,null,null,null,null,null,null,null,null,null,null,null,null,null,null,null,null,null,null,null,null,null,null,null,null,null,null,null,null,null,null,null,null,null,null,null,null,null,null,null,null,null,null,null,null,null,null,null,null,null,null,null,null,null,null,null,null,null,null,null,null,null,null,null,null,null,null,null,null,null,null,null,null,null,null,null,null,null,null,null,null,null,null,null,null,null,null,null,null,null,null,null,null,null,null,null,null,null,null,null,null,null,null,null,null,null,null,null,null,null,null,null,null,null,null,null,null,null,null,null,null,null,null,null,null,null,null,null,null,null,null,null,null,null,null,null,null,null,null,null,null,null,null,null,null,null,null,null,null,null,null,null,null,null,null,null,null,null,null,null,null,null,null,null,null,null,null,null,null,null,null,null,null,null,null,null,null,null,null,null,null,null,null,null,null,null,null,null,null,null,null,null,null,null,null,null,null,null,null,null,null,null,null,null,null,null,null,null,null,null,null,null,null,null,null,null,null,null,null,null,null,null,null,null,null,null,null,null,null,null,null,null,null,null,null,null,null,null,null,null,null,null,null,null,null,null,null,null,null,null,null,null,null,null,null,null,null,null,null,null,null,null,null,null,null,null,null,null,null,null,null,null,null,null,null,null,null,null,null,null,null,null,null,null,null,null,null,null,null,null,null,null,null,null,null,null,null,null,null,null,null,null,null,null,null,null,null,null,null,null,null,null,null,null,null,null,null,null,null,null,null,null,null,null,null,null,null,null,null,null,null,null,null,null,null,null,null,null,null,null,null,null,null,null,null,null,null,null,null,null,null,null,null,null,null,null,null,null,null,null,null,null,null,null,null,null,null,null,null,null,null,null,null,null,null,null,null,null,null,null,null,null,null,null,null,null,null,null,null,null,null,null,null,null,null,null,null,null,null,null,null,null,null,null,null,null,null,null,null,null,null,null,null,null,null,null,null,null,null,null,null,null,null,null,null,null,null,null,null,null,null,null,null,null,null,null,null,null,null,null,null,null,null,null,null,null,null,null,null,null,null,null,null,null,null,null,null,null,null,null,null,null,null,null,null,null,null,null,null,null,null,null,null,null,null,null,null,null,null,null,null,null,null,null,null,null,null,null,null,null,null,null,null,null,null,null,null,null,null,null,null,null,null,null,null,null,null,null,null,null,null,null,null,null,null,null,null,null,null,null,null,null,null,null,null,null,null,null,null,null,null,null,null,null,null,null,null,null,null,null,null,null,null,null,null,null,null,null,null,null,null,null,null,null,null,null,null,null,null,null,null,null,null,null,null,null,null,null,null,null,null,null,null,null,null,null,null,null,null,null,null,null,null,null,null,null,null,null,null,null,null,null,null,null,null,null,null,null,null,null,null,null,null,null,null,null,null,null,null,null,null,null,null,null,null,null,null,null,null,null,null,null,null,null,null,null,null,null,null,null,null,null,null,null,null,null,null,null,null,null,null,null,null,null,null,null,null,null,null,null,null,null,null,null,null,null,null,null,null,null,null,null,null,null,null,null,null,null,null,null,null,null,null,null,null,null,null,null,null,null,null,null,null,null,null,null,null,null,null,null,null,null,null,null,null,null,null,null,null,null,null,null,null,null,null,null,null,null,null,null,null,null,null,null,null,null,null,null,null,null,null,null,null,null,null,null,null,null,null,null,null,null,null,null,null,null,null,null,null,null,null,null,null,null,null,null,null,null,null,null,null,null,null,null,null,null,null,null,null,null,null,null,null,null,null,null,null,null,null,null,null,null,null,null,null,null,null,null,null,null,null,null,null,null,null,null,null,null,null,null,null,null,null,null,null,null,null,null,null,null,null,null,null,null,null,null,null,null,null,null,null,null,null,null,null,null,null,null,null,null,null,null,null,null,null,null,null,null,null,null,null,null,null,null,null,null,null,null,null,null,null,null,null,null,null,null,null,null,null,null,null,null,null,null,null,null,null,null,null,null,null,null,null,null,null,null,null,null,null,null,null,null,null,null,null,null,null,null,null,null,null,null,null,null,null,null,null,null,null,null,null,null,null,null,null,null,null,null,null,null,null,null,null,null,null,null,null,null,null,null,null,null,null,null,null,null,null,null,null,null,null,null,null,null,null,null,null,null,null,null,null,null,null,null,null,null,null,null,null,null,null,null,null,null,null,null,null,null,null,null,null,null,null,null,null,null,null,null,null,null,null,null,null,null,null,null,null,null,null,null,null,null,null,null,null,null,null,null,null,null,null,null,null,null,null,null,null,null,null,null,null,null,null,null,null,null,null,null,null,null,null,null,null,null,null,null,null,null,null,null,null,null,null,null,null,null,null,null,null,null,null,null,null,null,null,null,null,null,null,null,null,null,null,null,null,null,null,null,null,null,null,null,null,null,null,null,null,null,null,null,null,null,null,null,null,null,null,null,null,null,null,null,null,null,null,null,null,null,null,null,null,null,null,null,null,null,null,null,null,null,null,null,null,null,null,null,null,null,null,null,null,null,null,null,null,null,null,null,null,null,null,null,null,null,null,null,null,null,null,null,null,null,null,null,null,null,null,null,null,null,null,null,null,null,null,null,null,null,null,null,null,null,null,null,null,null,null,null,null,null,null,null,null,null,null,null,null,null,null,null,null,null,null,null,null,null,null,null,null,null,null,null,null,null,null,null,null,null,null,null,null,null,null,null,null,null,null,null,null,null,null,null,null,null,null,null,null,null,null,null,null,null,null,null,null,null,null,null,null,null,null,null,null,null,null,null,null,null,null,null,null,null,null,null,null,null,null,null,null,null,null,null,null,null,null,null,null,null,null,null,null,null,null,null,null,null,null,null,null,null,null,null,null,null,null,null,null,null,null,null,null,null,null,null,null,null,null,null,null,null,null,null,null,null,null,null,null,null,null,null,null,null,null,null,null,null,null,null,null,null,null,null,null,null,null,null,null,null,null,null,null,null,null,null,null,null,null,null,null,null,null,null,null,null,null,null,null,null,null,null,null,null,null,null,null,null,null,null,null,null,null,null,null,null,null,null,null,null,null,null,null,null,null,null,null,null,null,null,null,null,null,null,null,null,null,null,null,null,null,null,null,null,null,null,null,null,null,null,null,null,null,null,null,null,null,null,null,null,null,null,null,null,null,null,null,null,null,null,null,null,null,null,null,null,null,null,null,null,null,null,null,null,null,null,null,null,null,null,null,null,null,null,null,null,null,null,null,null,null,null,null,null,null,null,null,null,null,null,null,null,null,null,null,null,null,null,null,null,null,null,null,null,null,null,null,null,null,null,null,null,null,null,null,null,null,null,null,null,null,null,null,null,null,null,null,null,null,null,null,null,null,null,null,null,null,null,null,null,null,null,null,null,null,null,null,null,null,null,null,null,null,null,null,null,null,null,null,null,null,null,null,null,null,null,null,null,null,null,null,null,null,null,null,null,null,null,null,null,null,null,null,null,null,null,null,null,null,null,null,null,null,null,null,null,null,null,null,null,null,null,null,null,null,null,null,null,null,null,null,null,null,null,null,null,null,null,null,null,null,null,null,null,null,null,null,null,null,null,null,null,null,null,null,null,null,null,null,null,null,null,null,null,null,null,null,null,null,null,null,null,null,null,null,null,null,null,null,null,null,null,null,null,null,null,null,null,null,null,null,null,null,null,null,null,null,null,null,null,null,null,null,null,null,null,null,null,null,null,null,null,null,null,null,null,null,null,null,null,null,null,null,null,null,null,null,null,null,null,null,null,null,null,null,null,null,null,null,null,null,null,null,null,null,null,null,null,null,null,null,null,null,null,null,null,null,null,null,null,null,null,null,null,null,null,null,null,null,null,null,null,null,null,null,null,null,null,null,null,null,null,null,null,null,null,null,null,null,null,null,null,null,null,null,null,null,null,null,null,null,null,null,null,null,null,null,null,null,null,null,null,null,null,null,null,null,null,null,null,null,null,null,null,null,null,null,null,null,null,null,null,null,null,null,null,null,null,null,null,null,null,null,null,null,null,null,null,null,null,null,null,null,null,null,null,null,null,null,null,null,null,null,null,null,null,null,null,null,null,null,null,null,null,null,null,null,null,null,null,null,null,null,null,null,null,null,null,null,null,null,null,null,null,null,null,null,null,null,null,null,null,null,null,null,null,null,null,null,null,null,null,null,null,null,null,null,null,null,null,null,null,null,null,null,null,null,null,null,null,null,null,null,null,null,null,null,null,null,null,null,null,null,null,null,null,null,null,null,null,null,null,null,null,null,null,null,null,null,null,null,null,null,null,null,null,null,null,null,null,null,null,null,null,null,null,null,null,null,null,null,null,null,null,null,null,null,null,null,null,null,null,null,null,null,null,null,null,null,null,null,null,null,null,null,null,null,null,null,null,null,null,null,null,null,null,null,null,null,null,null,null,null,null,null,null,null,null,null,null,null,null,null,null,null,null,null,null,null,null,null,null,null,null,null,null,null,null,null,null,null,null,null,null,null,null,null,null,null,null,null,null,null,null,null,null,null,null,null,null,null,null,null,null,null,null,null,null,null,null,null,null,null,null,null,null,null,null,null,null,null,null,null,null,null,null,null,null,null,null,null,null,null,null,null,null,null,null,null,null,null,null,null,null,null,null,null,null,null,null,null,null,null,null,null,null,null,null,null,null,null,null,null,null,null,null,null,null,null,null,null,null,null,null,null,null,null,null,null,null,null,null,null,null,null,null,null,null,null,null,null,null,null,null,null,null,null,null,null,null,null,null,null,null,null,null,null,null,null,null,null,null,null,null,null,null,null,null,null,null,null,null,null,null,null,null,null,null,null,null,null,null,null,null,null,null,null,null,null,null,null,null,null,null,null,null,null,null,null,null,null,null,null,null,null,null,null,null,null,null,null,null,null,null,null,{"$f":"\"\"","v":""}]
["Slot non Utilizzato",null,null,null,null,null,{"$f":"\"\"","v":""},null,{"$f":"\"\"","v":""},null,null,{"$f":"\"\"","v":""},{"$f":"\"\"","v":""}]
[{"$f":"D129","v":"Broadcom 5720 1GbE RJ45 2-Port PCIe Ethernet Adapter"},null,null,{"$f":"VLOOKUP(L129,Tabella_prezzi!$A$2:$L$65,9,FALSE)","v":"Broadcom 5720 1GbE RJ45 2-Port PCIe Ethernet Adapter"},null,null,1,{"$f":"VLOOKUP(L129,Tabella_prezzi!$A$2:$L$65,9,FALSE)","v":"Broadcom 5720 1GbE RJ45 2-Port PCIe Ethernet Adapter"},{"$f":"VLOOKUP(L129,Tabella_prezzi!$A$2:$L$65,3,FALSE)","v":"OpzGigabit"},{"$f":"VLOOKUP(L129,Tabella_prezzi!$A$2:$L$65,4,FALSE)","v":28.28},null,"L3N05",{"$f":"VLOOKUP(L129,Tabella_prezzi!$A$2:$L$65,6,FALSE)","v":"TS4L3-LAN1"}]
["Broadcom 57414 Dual Port 10Gb, SFP28, PCIe Adapter, Full Height + Optics",null,null,{"$f":"VLOOKUP(L130,Tabella_prezzi!$A$2:$L$65,9,FALSE)","v":"Broadcom 57414 Dual Port 10Gb, SFP28, PCIe Adapter, Full Height + Optics"},null,null,1,{"$f":"VLOOKUP(L130,Tabella_prezzi!$A$2:$L$65,9,FALSE)","v":"Broadcom 57414 Dual Port 10Gb, SFP28, PCIe Adapter, Full Height + Optics"},{"$f":"VLOOKUP(L130,Tabella_prezzi!$A$2:$L$65,3,FALSE)","v":"OpzGigabit10Gbps"},{"$f":"VLOOKUP(L130,Tabella_prezzi!$A$2:$L$65,4,FALSE)","v":227.94},null,"L3N06",{"$f":"VLOOKUP(L130,Tabella_prezzi!$A$2:$L$65,6,FALSE)","v":"TS4L3-LAN10"}]
["Broadcom 57414 10/25GbE SFP28 2-port PCIe Ethernet Adapter + 2x Lenovo 25Gb SR SFP28 Ethernet Transceiver",null,null,{"$f":"VLOOKUP(L131,Tabella_prezzi!$A$2:$L$65,9,FALSE)","v":"Broadcom 57414 10/25GbE SFP28 2-port PCIe Ethernet Adapter + 2x Lenovo 25Gb SR SFP28 Ethernet Transceiver"},null,null,1,{"$f":"VLOOKUP(L131,Tabella_prezzi!$A$2:$L$65,9,FALSE)","v":"Broadcom 57414 10/25GbE SFP28 2-port PCIe Ethernet Adapter + 2x Lenovo 25Gb SR SFP28 Ethernet Transceiver"},{"$f":"VLOOKUP(L131,Tabella_prezzi!$A$2:$L$65,3,FALSE)","v":"OpzGigabit25Gbps"},{"$f":"VLOOKUP(L131,Tabella_prezzi!$A$2:$L$65,4,FALSE)","v":389.96},null,"L3N07",{"$f":"VLOOKUP(L131,Tabella_prezzi!$A$2:$L$65,6,FALSE)","v":"TS4L3-LAN25"}]
["QLogic QL41262 10/25GbE SFP28 2-Port PCIe Ethernet Adapter + 2x SFP+ SR Transceiver",null,null,{"$f":"VLOOKUP(L132,Tabella_prezzi!$A$2:$L$65,9,FALSE)","v":"QLogic QL41262 10/25GbE SFP28 2-Port PCIe Ethernet Adapter + 2x SFP+ SR Transceiver"},null,null,1,{"$f":"VLOOKUP(L132,Tabella_prezzi!$A$2:$L$65,9,FALSE)","v":"QLogic QL41262 10/25GbE SFP28 2-Port PCIe Ethernet Adapter + 2x SFP+ SR Transceiver"},{"$f":"VLOOKUP(L132,Tabella_prezzi!$A$2:$L$65,3,FALSE)","v":"OpzGigabit10Gbps CNA"},{"$f":"VLOOKUP(L132,Tabella_prezzi!$A$2:$L$65,4,FALSE)","v":404.05},null,"L3N08",{"$f":"VLOOKUP(L132,Tabella_prezzi!$A$2:$L$65,6,FALSE)","v":"TS4L3-CNA10"}]
["Broadcom 57416 10GBASE-T 2-Port PCIe Ethernet Adapter",null,null,{"$f":"VLOOKUP(L133,Tabella_prezzi!$A$2:$L$65,9,FALSE)","v":"Broadcom 57416 10GBASE-T 2-Port PCIe Ethernet Adapter"},null,null,1,{"$f":"VLOOKUP(L133,Tabella_prezzi!$A$2:$L$65,9,FALSE)","v":"Broadcom 57416 10GBASE-T 2-Port PCIe Ethernet Adapter"},{"$f":"VLOOKUP(L133,Tabella_prezzi!$A$2:$L$65,3,FALSE)","v":"Opz10Gigabit BaseT"},{"$f":"VLOOKUP(L133,Tabella_prezzi!$A$2:$L$65,4,FALSE)","v":213.16},null,"L3N09",{"$f":"VLOOKUP(L133,Tabella_prezzi!$A$2:$L$65,6,FALSE)","v":"TS4L3-BaseT"}]
["Emulex 16Gb Gen6 FC Dual-port HBA",null,null,{"$f":"VLOOKUP(L134,Tabella_prezzi!$A$2:$L$65,9,FALSE)","v":"Emulex 16Gb Gen6 FC Dual-port HBA"},null,null,1,{"$f":"VLOOKUP(L134,Tabella_prezzi!$A$2:$L$65,9,FALSE)","v":"Emulex 16Gb Gen6 FC Dual-port HBA"},{"$f":"VLOOKUP(L134,Tabella_prezzi!$A$2:$L$65,3,FALSE)","v":"OpzFibreChannel"},{"$f":"VLOOKUP(L134,Tabella_prezzi!$A$2:$L$65,4,FALSE)","v":427.23},null,"L3N10",{"$f":"VLOOKUP(L134,Tabella_prezzi!$A$2:$L$65,6,FALSE)","v":"TS4L3- FibreChannel"}]
[]
[0]
[2]
[4]
[6]
["Illimitate"]
[]
[]
[1,3]
[3,6]
[4,9,"1CPU","2CPU"]
[]
[1,null,4,16,{"$f":"16+(C147*2)","v":24},{"$f":"16+(D147*2)","v":48}]
[2,null,16,28,{"$f":"16+(C148*2)","v":48},{"$f":"16+(D148*2)","v":72}]
[3,null,28,40,{"$f":"16+(C149*2)","v":72},96]
[4]
[5]
[6]
[7]
[8]
[9]
[10]
[11]
[12]
[13]
[14]
[15]
[16]

{"sheet":"Tabella_prezzi","index":7,"n_rows":89,"n_cols":17,"rows_kept":89,"cut":false,"hidden":true,"merged":[[6,0,12,0]]}
["N°",null,"Attributo","Valore inserito","N°","Codice Convenzione","Qty:",null,"Description:","Manufacturer Part","Sku Number:","Brand"]
["L3N01",1,"Server rackable bi-processore prest.",2050.54,"L3N01","TS4L3-SRV",1,"Lenovo ThinkSystem SR650 V2 Server","Lenovo ThinkSystem SR650 V2 Server","L3N01-ServerSR650","210-AUVQ","DELL",null,null,null,"210-321-BCPX","-"]
["L3N200",1,"Server rackable bi-processore prest.",6000,"L3N200","TS4L3-SRV",1,null,"Lenovo ThinkSystem SR650 V2 Server","L3N01-ServerSR650","210-AUVQ","DELL",null,null,null,"210-321-BCPX","-"]
["L3N01-NVME",1,"Server rackable bi-processore prest.",null,"L3N01-NVME","TS4L3-SRV-NVMe",1,"Lenovo ThinkSystem SR650 V2 Server NVMe","Lenovo ThinkSystem SR650 V2 Server NVMe","L3N01-ServerR7525-NVMe","210-AUVQ","DELL",null,null,null,"210-321-BCPX","-"]
["L3N01-NVME",1,"Server rackable bi-processore prest.",null,"L3N01-vSAN","TS4L3-SRV-vSAN",1,"Lenovo ThinkSystem SR650 V2 Server vSAN","Lenovo ThinkSystem SR650 V2 Server vSAN ","L3N01-ServerR7525-vSAN","210-AUVQ","DELL",null,null,null,"210-321-BCPX","-"]
["L3N01-NVME",1,"Server rackable bi-processore prest.",null,"L3N01-NUT","TS4L3-SRV-NUT",1,"Lenovo ThinkSystem SR650 V2 Server Nutanix","Lenovo ThinkSystem SR650 V2 Server Nutanix","L3N01-ServerR7525-NUT","210-AUVQ","DELL",null,null,null,"210-321-BCPX","-"]
["L3N02",2,"Kit n. 1 Processore aggiuntivo",623.57000000000005,"L3N02","TS4L3-CPU",1,"Intel Xeon Silver 4310 12C 120W 2.1GHz Processor","Intel Xeon Silver 4310 12C 120W 2.1GHz Processor","L3N02-OpzCPU","338-BZSB","DELL",null,null,null,"338-BZSB","WX6G7"]
[null,null,null,null,null,null,1,"L Shape Heatsink for 2nd CPU equal to or greater than 180W,PowerEdge R6525/R7525, Customer Install","L Shape Heatsink for 2nd CPU equal to or greater than 180W,PowerEdge R6525/R7525, Customer Install",null,"412-AASW","DELL",null,null,null,"412-AASW","4RCGC"]
[null,null,null,null,null,null,1,"PowerEdge R7525 High Performance Fan Customer Kit V3","PowerEdge R7525 High Performance Fan Customer Kit V3",null,"121-BBBI","DELL",null,null,null,"121-BBBI","HVVRP"]
[null,null,null,null,null,null,1,"Riser with Two x8(x16 connector) PCIe Gen4 (Slots 4 & 5), Customer Install","Riser with Two x8(x16 connector) PCIe Gen4 (Slots 4 & 5), Customer Install",null,"330-BBTM","DELL",null,null,null,"330-BBTM","234T7"]
[null,null,null,null,null,null,1,"Riser 4B, PCIe Gen4 1x16 (x16 connector), Half Length, PowerEdge R7525, CK","Riser 4B, PCIe Gen4 1x16 (x16 connector), Half Length, PowerEdge R7525, CK",null,"330-BBPR","DELL",null,null,null,"330-BBPR"]
[null,null,null,null,null,null,1,"Riser 1B, PCIe Gen4 2x8 (x16 connector), Half Length, PowerEdge R7525, CK","Riser 1B, PCIe Gen4 2x8 (x16 connector), Half Length, PowerEdge R7525, CK",null,"330-BBPV","DELL",null,null,null,"330-BBPV","R80PP"]
[null,null,null,null,null,null,1,"Riser 2A, PCIe Gen4 2x16 (x16 connector), PowerEdge R7525, CK","Riser 2A, PCIe Gen4 2x16 (x16 connector), PowerEdge R7525, CK",null,"330-BBPO","DELL",null,null,null,"330-BBPO"]
["L3N03",3,"OpzRAM32GB",223.31,"L3N03","TS4L3-RAM32",1,"32GB TruDDR4 3200 MHz (2Rx4 1.2V) RDIMM","ThinkSystem 32GB TruDDR4 3200 MHz (2Rx4 1.2V) RDIMM","L3N03-OpzRAM32GB","370-AEVN","DELL",null,null,null,"AA79SNP75X1VC/32G","SNP75X1VC/32G"]
["L3N04",4,"OpzRAM64GB",478.29,"L3N04","TS4L3-RAM64",1,"64GB TruDDR4 3200 MHz (2Rx4 1.2V) RDIMM","ThinkSystem 64GB TruDDR4 3200 MHz (2Rx4 1.2V) RDIMM","L3N04-OpzRAM64GB","370-AEVP","DELL",null,null,null,"AA79SNPP2MYXC/64G","SNPP2MYXC/64G"]
["L3N05",5,"OpzGigabit",28.28,"L3N05","TS4L3-LAN1",1," Broadcom 5720 1GbE RJ45 2-Port PCIe Ethernet Adapter","Broadcom 5720 1GbE RJ45 2-Port PCIe Ethernet Adapter","L3N05-OpzGigabit","540-BBCW","DELL",1,2,3,"540-XF9VF","XF9VF"]
["L3N06",6,"OpzGigabit10Gbps",227.94,"L3N06","TS4L3-LAN10",1,"Broadcom 57414 Dual Port 10Gb, SFP28, PCIe Adapter, Full Height + Optics","Broadcom 57414 Dual Port 10Gb, SFP28, PCIe Adapter, Full Height + Optics","L3N06-OpzGigabit10Gbps","540-BDHF","DELL",1,2,3,"540-H6N50","H6N50"]
["L3N07",7,"OpzGigabit25Gbps",389.96,"L3N07","TS4L3-LAN25",1,"Broadcom 57414 25GbE SFP28 2-port PCIe Ethernet Adapter + 2x Lenovo 25Gb SR SFP28 Ethernet Transceiver","Broadcom 57414 10/25GbE SFP28 2-port PCIe Ethernet Adapter + 2x Lenovo 25Gb SR SFP28 Ethernet Transceiver","L3N07-OpzGigabit25Gbps","540-BCDH","DELL",1,2,3,"540-86P4V","86P4V"]
["L3N08",8,"OpzGigabit10Gbps CNA",404.05,"L3N08","TS4L3-CNA10",1,"QLogic QL41262 10/25GbE SFP28 2-Port PCIe Ethernet Adapter + 2x SFP+ SR Transceiver","QLogic QL41262 10/25GbE SFP28 2-Port PCIe Ethernet Adapter + 2x SFP+ SR Transceiver","L3N08-OpzCNA10Gbps","540-BBYL","DELL",1,2,3,"540-42H35","42H35"]
["L3N09",9,"Opz10Gigabit BaseT",213.16,"L3N09","TS4L3-BaseT",1,"Broadcom 57416 10GBASE-T 2-Port PCIe Ethernet Adapter","Broadcom 57416 10GBASE-T 2-Port PCIe Ethernet Adapter","L3N09-Opz-BaseT","540-BCRO","DELL",1,2,3,"403-YH1DK","YH1DK"]
["L3N10",10,"OpzFibreChannel",427.23,"L3N10","TS4L3- FibreChannel",1,"Emulex 16Gb Gen6 FC Dual-port HBA","Emulex 16Gb Gen6 FC Dual-port HBA","L3N10-OpzFibreChannel","540-BDHC","DELL",4,null,null,"403-P0TRP","P0TRP"]
["L3N11",11,"OpzHDD8TB",206.8,"L3N11","TS4L3-HDD8TB",1," 8TB 7.2K SAS 12Gb Hot Swap 512e HDD","3.5\" 8TB 7.2K SAS 12Gb Hot Swap 512e HDD","L3N11-OpzHDD8TB","400-AVEZ","DELL",null,null,null,"400-HTMGW","HTMGW"]
["L3N12",12,"OpzHDD2TB",155.88999999999999,"L3N12","TS4L3-HDD2TB",1,"2TB 7.2K SAS 12Gb Hot Swap 512n HDD","3.5\" 2TB 7.2K SAS 12Gb Hot Swap 512n HDD","L3N12-OpzHDD2TB","400-AVFE","DELL",null,null,null,"400-400-ATJL","400-ATJL"]
["L3N13",13,"OpzHDD1TB",138.93,"L3N13","TS4L3-HDD1TB",1,"1TB 7.2K SAS 12Gb Hot Swap 512n HDD","3.5\" 1TB 7.2K SAS 12Gb Hot Swap 512n HDD","L3N13-OpzHDD1TB","345-BCNU","DELL",null,null,null,"400-PDNT1","PDNT1"]
["L3N14",14,"OpzHDD12TB",308.61,"L3N14","TS4L3-HDD12TB",1,"12TB 7.2K SAS 12Gb Hot Swap 512e HDD","3.5\" 12TB 7.2K SAS 12Gb Hot Swap 512e HDD","L3N14-OpzHDD12TB","345-BBVC","DELL",null,null,null,"400-2H59H","2H59H"]
["L3N15",15,"OpzUps",371.18,"L3N15","TS4L3-UPS",1,"Dispositivo UPS di tipo On-line doppia conversione, strutturato per il montaggio a rack da 19”","Dispositivo UPS di tipo On-line doppia conversione, strutturato per il montaggio a rack da 19”","L3N15-OpzUps","RPMM9/3K",null,null,null,null,"400-CDPWY","CDPWY"]
["L3N16",16,"OpzGUI",491.62,"L3N16","TS4L3-GUI",1,"Unità KVM - monitor 17\", cavo combi PS/2&USB da 1,8mt, tastiera italiana, touch pad","Unità KVM - monitor 17\", cavo combi PS/2&USB da 1,8mt, tastiera italiana, touch pad","L3N16-OpzGUI","F9857N",null,null,null,null,"400-VPV60","VPV60"]
["L3N17",17,"OpzKVM",553.94000000000005,"L3N17","TS4L3-KVM",1,"KVM Switch IP per GUI 16P","KVM Switch IP per GUI 16P","L3N17-OpzKVM","T9816NIP",null,null,null,null,"400-MW0DK","MW0DK"]
["L3N18",18,"OpzWinServSTD",867.59,"L3N18","TS4L3-WINSRVSTD",1,"Windows Server 2022,Standard,ROK,16CORE","Windows Server 2022,Standard,ROK,16CORE","L3N18-WinServSTD","400-BMVM","DELL",null,null,null,"403-C359R","C359R"]
["L3N19",19,"OpzDeviceCal",37.369999999999997,"L3N19","TS4L3-WINDEVCAL",1,"1-pack of Windows Server 2022/2019 Device CALs (STD or DC)","1-pack of Windows Server 2022/2019 Device CALs (STD or DC)","L3N19-OpzDeviceCal","RPMM9/3K",null,null,null,null,"RPMMRPMM9/3K","RPMM9/3K"]
["L3N20",20,"OpzUserCal",47.47,"L3N20","TS4L3-WINUSRCAL",1,"1-pack of Windows Server 2022/2019 User CALs (STD or DC)","1-pack of Windows Server 2022/2019 User CALs (STD or DC)","L3N20-OpzUserCal","F9857N",null,null,null,null,"F985F9857N","F9857N"]
["L3N21",21,"OpzWinServSTD2core",126.25,"L3N21","TS4L3-WINSRV2C",1,"Windows Server 2022 Standard Edition, Add License,2CORE","Windows Server 2022 Standard Edition, Add License,2CORE","L3N21-OpzWinServSTD2core","T9816NIP",null,null,null,null,"T981T9816NIP","T9816NIP"]
["L3N22",22,"OpzOpenSource",9.5399999999999991,"L3N22","TS4L3-LINUX",1,"Ubuntu Server 22.04 LTS 64 Bit","Ubuntu 22.04 LTS 64 Bit","L3N22-OpzOpenSource","634-BYKR","DELL",null,null,null,"634-634-BSFX","634-BSFX"]
["L3N23",23,"OpzHDDRetention36",32.880000000000003,"L3N23","TS4L3-HDRTN36",1,"Hard Disk Retention 36 mesi","Hard Disk Retention 36 mesi","L3N23-OpzHDDRetention36","634-BYLD","DELL",null,null,null,"623-623-BBCV","623-BBCV"]
["L3N23E",23,"OpzHDDRetention60",54.79,"L3N23","TS4L3-HDRTN60",1,"Hard Disk Retention 60 mesi","Hard Disk Retention 60 mesi","L3N23-OpzHDDRetention60","634-BYLD","DELL",null,null,null,"623-623-BBCV","623-BBCV"]
["L3N24",24,"OpzEstensione24",88.92,"L3N24","TS4L3-OpzEst24",1,"Estensione della Garanzia Per ulteriori 24 Mesi","Estensione della Garanzia Per ulteriori 24 Mesi","L3N24-OpzEst24","634-BYKZ","DELL",null,null,null,"623-623-BBCT","623-BBCT"]
["L3N25",25,"OpzRack",579.17999999999995,"L3N25","TS4L3-RACK",1,"Armadio Rack 42U","Armadio Rack 42U","L3N25-OpzRack","634-BYKQ","DELL",null,null,null,"634-634-BSGS","634-BSGS"]
["L3N26",26,"OpzSSD-RI3,8TB",1111,"L3N26","TS4L3-SSD-RI3,8TB",1,"PM1643a 3.84TB Entry SAS 12Gb Hot Swap SSD","3.5\" PM1643a 3.84TB Entry SAS 12Gb Hot Swap SSD","L3N26-OpzSSD-RI3,8TB",null,null,null,null,null,""]
["L3N27",27,"OpzSSD-RI1,6TB",722.15,"L3N27","TS4L3-SSD-RI1,6TB",1,"PM1645a 1.6TB Mainstream SAS 12Gb Hot Swap SSD","3.5\" PM1645a 1.6TB Mainstream SAS 12Gb Hot Swap SSD","L3N26-OpzSSD-RI1,6TB","634-BYLC","DELL",null,null,null,"785-785-10921","785-10921"]
["L3N50",50,"Disk Controller",null,null,"TS4L3-DiskController",1,"RAID 9350-16i 4GB Flash PCIe 12Gb Adapter","RAID 9350-16i 4GB Flash PCIe 12Gb Adapter",{"$f":"CONCATENATE(A40,\"-\",C40)","v":"L3N50-Disk Controller"},"634-BYLC",null,null,null,null,"785-785-10921","785-10921"]
["L3N51",51,"PSU",null,null,"TS4L3-PSU",1,"2 x 750W(230V/115V) Platinum Hot-Swap Power Supply v2","2 x 750W(230V/115V) Platinum Hot-Swap Power Supply v2",{"$f":"CONCATENATE(A41,\"-\",C41)","v":"L3N51-PSU"},null,null,null,null,null,"785-785-10921","785-10921"]
["L3N52",null,{"$f":"CONCATENATE(\"Opz\",MID(F42,7,LEN(F42)-6))","v":"OpzVROC"},380,999,"TS4L3-VROC",1,"Intel VROC (VMD NVMe RAID) Premium","Intel VROC (VMD NVMe RAID) Premium","L3N52-OpzVROC"]
["L3N53",null,{"$f":"CONCATENATE(\"Opz\",MID(F43,7,LEN(F43)-6))","v":"OpzRAID"},9999,null,"TS4L3-RAID",1,"ThinkSystem M.2 NVMe 2-Bay RAID Enablement Kit","ThinkSystem M.2 NVMe 2-Bay RAID Enablement Kit","L3N53-OpzRAID"]
["L3N54",null,{"$f":"CONCATENATE(\"Opz\",MID(F44,7,LEN(F44)-6))","v":"OpzSSDSAS3.2TBMU"},9999,null,"TS4L3-SSDSAS3.2TBMU",1,"ThinkSystem   3.2TB Mixed Use SAS 24Gb HS SSD","ThinkSystem 3.5\" PM1655 3.2TB Mixed Use SAS 24Gb HS SSD","L3N54-OpzSSDSAS3.2TBMU"]
["L3N55",null,"OpzSSDSAS6.4TBMU",9999,null,"TS4L3-SSDSAS6.4TBMU",1,"ThinkSystem  6.4TB Mixed Use SAS 24Gb HS SSD","ThinkSystem 3.5\" PM1655 6.4TB Mixed Use SAS 24Gb HS SSD","L3N55-OpzSSDSAS6.4TBMU"]
["L3N56",null,"OpzSSDSAS7.68TBRI",9999,null,"TS4L3-SSDSAS7.68TBRI",1,"ThinkSystem 7.68TB Read Intensive SAS 24Gb HS SSD","ThinkSystem 3.5\" PM1653 7.68TB Read Intensive SAS 24Gb HS SSD","L3N56-OpzSSDSAS7.68TBRI"]
["L3N57",null,"OpzSSDSAS15.36TBRI",9999,null,"TS4L3-SSDSAS15.36TBRI",1,"ThinkSystem  15.36TB Read Intensive SAS 24Gb HS SSD","ThinkSystem 3.5\" PM1653 15.36TB Read Intensive SAS 24Gb HS SSD","L3N57-OpzSSDSAS15.36TBRI"]
["L3N58",null,"OpzSSDSATA3.84TBRI",9999,null,"TS4L3-SSDSATA3.84TBRI",1,"ThinkSystem  3.84TB Read Intensive SATA 6Gb HS SSD","ThinkSystem 3.5\" S4520 3.84TB Read Intensive SATA 6Gb HS SSD","L3N58-OpzSSDSATA3.84TBRI"]
["L3N59",null,"OpzSSDSATA7.68TBRI",9999,null,"TS4L3-SSDSATA7.68TBRI",1,"ThinkSystem   7.68TB Read Intensive SATA 6Gb HS SSD","ThinkSystem 3.5\" S4520 7.68TB Read Intensive SATA 6Gb HS SSD","L3N59-OpzSSDSATA7.68TBRI"]
["L3N60",null,"OpzHDD_SAS20TB_HW",9999,null,"TS4L3-HDD_SAS20TB_HW",1,"ThinkSystem 20TB 7.2K SAS 12Gb Hot Swap 512e HDD","ThinkSystem 3.5\" 20TB 7.2K SAS 12Gb Hot Swap 512e HDD","L3N60-OpzHDD_SAS20TB_HW"]
["L3N61",null,"OpzHDD_SATA16TB_HW",9999,null,"TS4L3-HDD_SATA16TB_HW",1,"ThinkSystem 16TB 7.2K SATA 6Gb Hot Swap 512e HDD","ThinkSystem 3.5\" 16TB 7.2K SATA 6Gb Hot Swap 512e HDD","L3N61-OpzHDD_SATA16TB_HW"]
["L3N62",null,"OpzHDD_SAS16TB_HW",9999,null,"TS4L3-HDD_SAS16TB_HW",1,"ThinkSystem 3.5\" 16TB 7.2K SAS 12Gb Hot Swap 512e HDD","ThinkSystem 3.5\" 16TB 7.2K SAS 12Gb Hot Swap 512e HDD","L3N62-OpzHDD_SAS16TB_HW"]
["L3N63",null,"OpzSSD_SAS800GB_WI",9999,null,"TS4L3-SSD_SAS800GB_WI",1,"ThinkSystem 3.5\"  800GB Write Intensive SAS 12Gb HS SSD","ThinkSystem 3.5\" Nytro 3750 800GB Write Intensive SAS 12Gb HS SSD","L3N63-OpzSSD_SAS800GB_WI"]
["L3N64",null,"OpzSSD_SAS1.6TB_WI",9999,null,"TS4L3-SSD_SAS1.6TB_WI",1,"ThinkSystem 3.5\"  1.6TB Write Intensive SAS 12Gb HS SSD","ThinkSystem 3.5\" Nytro 3750 1.6TB Write Intensive SAS 12Gb HS SSD","L3N64-OpzSSD_SAS1.6TB_WI"]
["L3N65",null,"OpzSSD_SAS3.2TB_WI",9999,null,"TS4L3-SSD_SAS3.2TB_WI",1,"ThinkSystem 3.5\"  3.2TB Write Intensive SAS 12Gb HS SSD","ThinkSystem 3.5\" Nytro 3750 3.2TB Write Intensive SAS 12Gb HS SSD","L3N65-OpzSSD_SAS3.2TB_WI"]
["L3N66",null,"OpzNUTANIX-A",4200,null,"TS4L3-NUTANIX-A",1,"Conversion Kit a sistemi HX (Hybrid)","Conversion Kit da SR650 V2 a sistemi HX (Hybrid)","L3N66-OpzNUTANIX-A"]
["L3N68",null,"OpzNUTANIX-B",7546,null,"TS4L3-NUTANIX-B",1,"Conversion Kit sistemi HX (All-Flash Medium-Large)","Conversion Kit sistemi HX (All-Flash Medium-Large)","L3N68-OpzNUTANIX-B"]
["L3N69",null,"OpzvSAN-A",3200,null,"TS4L3-vSAN-A",1,"Conversion Kit a sistemi VX (Hybrid Storage)","Conversion Kit da SR650 V2 a sistemi VX (Hybrid Storage)","L3N69-OpzvSAN-A"]
["L3N71",null,"OpzvSAN-B",7131.5,null,"TS4L3-vSAN-B",1,"Conversion Kit a sistemi VX (All-Flash Medium-Large)","Conversion Kit da SR650 V2 a sistemi VX (All-Flash Medium-Large)","L3N71-OpzvSAN-B"]
["L3N72",null,"OpzPCI-BaseT-57454",106,null,"TS4L3-PCI-BaseT-57454",1,"ThinkSystem Broadcom 57454 10GBASE-T 4-port PCIe Ethernet Adapter","ThinkSystem Broadcom 57454 10GBASE-T 4-port PCIe Ethernet Adapter","L3N72-OpzPCI-BaseT-57454"]
["L3N73",null,"OpzPCI-10/25GB-57454",107,null,"TS4L3-PCI-10/25GB-57454",1,"ThinkSystem Broadcom 57454 10/25GbE SFP28 4-port PCIe Ethernet Adapter V2","ThinkSystem Broadcom 57454 10/25GbE SFP28 4-port PCIe Ethernet Adapter V2","L3N73-OpzPCI-10/25GB-57454"]
["L3N74",null,"OpzCX6-10/25GB-2Port",108,null,"TS4L3-CX6-10/25GB-2Port",1,"ThinkSystem Mellanox ConnectX-6 Lx 10/25GbE SFP28 2-port PCIe Ethernet Adapter","ThinkSystem Mellanox ConnectX-6 Lx 10/25GbE SFP28 2-port PCIe Ethernet Adapter","L3N74-OpzCX6-10/25GB-2Port"]
["L3N75",null,"OpzCX6-100GB-2Port",109,null,"TS4L3-CX6-100GB-2Port",1,"ThinkSystem Mellanox ConnectX-6 Dx 100GbE QSFP56 2-port PCIe 4 Ethernet Adapter","ThinkSystem Mellanox ConnectX-6 Dx 100GbE QSFP56 2-port PCIe 4 Ethernet Adapter","L3N75-OpzCX6-100GB-2Port"]
["L3N76",null,"OpzCX4-10/25GB-2Port",110,null,"TS4L3-CX4-10/25GB-2Port",1,"ThinkSystem Mellanox ConnectX-4 Lx 10/25GbE SFP28 2-port PCIe Ethernet Adapter","ThinkSystem Mellanox ConnectX-4 Lx 10/25GbE SFP28 2-port PCIe Ethernet Adapter","L3N76-OpzCX4-10/25GB-2Port"]
["L3N77",null,"OpzSFP28-10/25GB",111,null,"TS4L3-SFP28-10/25GB",1,"Lenovo Dual Rate 10G/25G SR SFP28 Transceiver","Lenovo Dual Rate 10G/25G SR SFP28 Transceiver","L3N77-OpzSFP28-10/25GB"]
["L3N78",null,"OpzSFP28.85C-10/25GB",112,null,"TS4L3-SFP28.85C-10/25GB",1,"Lenovo Dual Rate 10G/25G SR SFP28 85C Transceiver","Lenovo Dual Rate 10G/25G SR SFP28 85C Transceiver","L3N78-OpzSFP28.85C-10/25GB"]
["L3N79",null,"OpzSFP28-25GB",113,null,"TS4L3-SFP28-25GB",1,"Lenovo 25Gb SR SFP28 Ethernet Transceiver","Lenovo 25Gb SR SFP28 Ethernet Transceiver","L3N79-OpzSFP28-25GB"]
["L3N80",null,"OpzSFP+SR",114,null,"TS4L3-SFP+SR",1,"SFP+ SR Transceiver","SFP+ SR Transceiver","L3N80-OpzSFP+SR"]
["L3N81",null,"OpzQSFP28-100GBBase",115,null,"TS4L3-QSFP28-100GBBase",1,"Lenovo 100GBase-SR4 QSFP28 Transceiver","Lenovo 100GBase-SR4 QSFP28 Transceiver","L3N81-OpzQSFP28-100GBBase"]
["L3N82",null,"OpzQSFP28-100GB",116,null,"TS4L3-QSFP28-100GB",1,"Lenovo 100Gb SR4 QSFP28 Ethernet Transceiver","Lenovo 100Gb SR4 QSFP28 Ethernet Transceiver","L3N82-OpzQSFP28-100GB"]
["L3N83",null,"OpzFC-32GB-2Port",117,null,"TS4L3-FC-32GB-2Port",1,"ThinkSystem QLogic QLE2772 32Gb 2-Port PCIe Fibre Channel Adapter","ThinkSystem QLogic QLE2772 32Gb 2-Port PCIe Fibre Channel Adapter","L3N83-OpzFC-32GB-2Port"]
["L3N84",null,"OpzFC-64GB-2Port",118,null,"TS4L3-FC-64GB-2Port",1,"ThinkSystem Emulex LPe36002 64Gb 2-port PCIe Fibre Channel Adapter","ThinkSystem Emulex LPe36002 64Gb 2-port PCIe Fibre Channel Adapter","L3N84-OpzFC-64GB-2Port"]
["L3N85",null,"OpzMMF.Cable-5Mt-OM3",null,null,"TS4L3-MMF.Cable-5Mt-OM3",1,"Lenovo 5m LC-LC OM3 MMF Cable","Lenovo 5m LC-LC OM3 MMF Cable","L3N85-OpzMMF.Cable-5Mt-OM3"]
["L3N86",null,"OpzMMF.Cable-5Mt-OM4",null,null,"TS4L3-MMF.Cable-5Mt-OM4",1,"Lenovo 5m LC-LC OM4 MMF Cable","Lenovo 5m LC-LC OM4 MMF Cable","L3N86-OpzMMF.Cable-5Mt-OM4"]
["L3N87",null,"OpzMMF.Cable-15Mt-OM3",null,null,"TS4L3-MMF.Cable-15Mt-OM3",1,"Lenovo 15m LC-LC OM3 MMF Cable","Lenovo 15m LC-LC OM3 MMF Cable","L3N87-OpzMMF.Cable-15Mt-OM3"]
["L3N88",null,"OpzMMF.Cable-25Mt-OM3",null,null,"TS4L3-MMF.Cable-25Mt-OM3",1,"Lenovo 25m LC-LC OM3 MMF Cable","Lenovo 25m LC-LC OM3 MMF Cable","L3N88-OpzMMF.Cable-25Mt-OM3"]
["L3N89",null,"OpzMMF.Cable-15Mt-OM4",null,null,"TS4L3-MMF.Cable-15Mt-OM4",1,"Lenovo 15m LC-LC OM4 MMF Cable","Lenovo 15m LC-LC OM4 MMF Cable","L3N89-OpzMMF.Cable-15Mt-OM4"]
["L3N90",null,"OpzMMF.Cable-25Mt-OM4",null,null,"TS4L3-MMF.Cable-25Mt-OM4",1,"Lenovo 25m LC-LC OM4 MMF Cable","Lenovo 25m LC-LC OM4 MMF Cable","L3N90-OpzMMF.Cable-25Mt-OM4"]
["L3N91",null,"OpzMMF.Cable-3Mt-OM3",null,null,"TS4L3-MMF.Cable-3Mt-OM3",1,"Lenovo 3m LC-LC OM3 MMF Cable","Lenovo 3m LC-LC OM3 MMF Cable","L3N91-OpzMMF.Cable-3Mt-OM3"]
["L3N92",null,"OpzMMF.Cable-3Mt-OM4",null,null,"TS4L3-MMF.Cable-3Mt-OM4",1,"Lenovo 3m LC-LC OM4 MMF Cable","Lenovo 3m LC-LC OM4 MMF Cable","L3N92-OpzMMF.Cable-3Mt-OM4"]
["L3N93",null,"OpzCPU5315",null,null,"TS4L3-CPU5315",1,"Intel Xeon Gold 5315Y 8C 140W 3.2GHz Processor","Intel Xeon Gold 5315Y 8C 140W 3.2GHz Processor","L3N93-OpzCPU5315"]
["L3N94",null,"Opzso nel KIT di Conversione",0,null,"Compreso nel KIT di Conversione",1,"Intel Xeon Gold 6326 16C 185W 2.9GHz Processor","Intel Xeon Gold 6326 16C 185W 2.9GHz Processor","L3N94-Opzso nel KIT di Conversione"]
["L3N95"]
["L3N96"]
["L3N97"]
["L3N98"]
["L3N99"]
["L3N100"]
["L3N101"]